{"text_format":"2","workbook":"xlsx","n_sheets":5,"sheets":["NV có CCHN BVĐKTPCT 10.2023","NV ĐÃ NGHĨ 10.2023","DS NVBV chưa có CCHN 10.2023","DS ĐĂNG KÝ NGƯỜI LÀM VIỆC 10 ","DS HỌC VIÊN THỰC HÀNH CCHN"],"not_rendered":{"charts":0,"images":0,"macros":0,"external_links":2,"defined_names":4,"comments":0,"pivot_tables":0},"unopened":[],"bounds":{"document_bytes":16777216,"sheet_cells":100000,"run_cost":"one","rows_first":2000,"rows_last":500,"rows_between":2000,"halvings":0,"cell_chars":16384,"cell_head_chars":4096},"cells_cut":0,"cells_raw":0,"read":"whole","date_system":"1900"}

{"sheet":"NV có CCHN BVĐKTPCT 10.2023","index":0,"n_rows":767,"n_cols":9,"rows_kept":767,"cut":false,"hidden":false,"merged":[[4,2,4,7],[5,2,5,7],[6,1,6,8],[13,4,13,6],[766,6,766,7],[1,0,1,2],[1,4,1,8],[2,0,2,2],[2,4,2,8],[3,4,3,8]]}
[]
[" SỞ Y TẾ TP.CẦN THƠ",null,null,null,"CỘNG HÒA XÃ HỘI CHỦ NGHĨA VIỆT NAM"]
["BỆNH VIỆN ĐA KHOA TP.CẦN THƠ",null,null,null,"                       Độc lập - Tự do - Hạnh phúc"]
[{"$nulls":4},"Cần Thơ, ngày    tháng     năm 2023"]
[null,null,"DANH SÁCH"]
[null,null,"         Đăng ký hành nghề tại cơ sở khám bệnh, chữa bệnh"]
[null," (đến tháng 20/10/2023)"]
[]
["1. Tên cơ sở khám bệnh, chữa bệnh: Bệnh viện Đa khoa thành phố Cần Thơ"]
["2. Địa chỉ: số 04 đường Châu Văn Liêm, phường An Lạc, quận Ninh Kiều, thành phố Cần Thơ"]
["3. Thời gian hoạt động của cơ sở khám, chữa bệnh: 24/24"]
["4.1 Danh sách nhân viên đã có CCHN"]
[]
["STT","Họ và tên","Số CCHN\nđã được cấp","Phạm vi hoạt động chuyên môn","Thời gian đăng ký làm việc\ntại cơ sở khám bệnh, chữa bệnh\n(ghi cụ thể thời gian làm việc)",null,null,"Học vị","Chức vụ"]
[{"$nulls":4},"Thời gian\nđăng ký ","Thời gian\n(ngày)","Thời gian\n(giờ)"]
["1","Trần Quốc Luận","000813/CT-CCHN","Khám bệnh, chữa bệnh chuyên khoa Nội","Toàn thời gian",null,"07h00 - 11h00; 13h00 - 17h00","BSCKII","Giám đốc"]
["2","Huỳnh Minh Phú","000797/CT-CCHN","Khám, chữa bệnh chuyên khoa Chẩn đoán hình ảnh","Toàn thời gian",null,"07h00 - 11h00; 13h00 - 17h00","BSCKII","Phó Giám đốc"]
["3","Phạm Văn Phương","000518/CT-CCHN","Khám, chữa bệnh chuyên khoa Ngoại","Toàn thời gian",null,"07h00 - 11h00; 13h00 - 17h00","BSCKII","Phó Giám đốc"]
["4","Trần Dạ Thảo","000841/CT-CCHN","Khám bệnh, chữa bệnh chuyên khoa Nội","Toàn thời gian",null,"07h00 - 11h00; 13h00 - 17h00","BSCKII","Phó Giám đốc"]
["5","Phạm Thị Ngọc Thúy","000512/CT-CCHN","Khám, chữa bệnh chuyên khoa Nội","Toàn thời gian",null,"07h00 - 11h00; 13h00 - 17h00","BSCKII"," Phó\nTrưởng phòng"]
["6","Trần Thanh Khoa","003786/CT-CCHN","Khám bệnh, chữa bệnh Nội khoa\nKhám bệnh, chữa bệnh Da liễu","Toàn thời gian",null,"07h00 - 11h00; 13h00 - 17h00","BSCKI"," Phó\nTrưởng phòng"]
["7","Quách Thị Sáu","1082/CCHN-D-SYT-CT","Bán buôn thuốc, nguyên liệu làm thuốc; Bán lẻ thuốc.\nChịu trách nhiệm chuyên môn về dược của cơ sở: Bán buôn thuốc, nguyên liệu làm thuốc (trừ vắc xin, sinh phẩm, dược liệu), thuốc dược liệu, thuốc cổ truyền; Nhà thuốc; Quầy thuốc; Tủ thuốc Trạm y tế.","Toàn thời gian",null,"07h00 - 11h00; 13h00 - 17h00","DSĐH"]
["8","Trương Thị Bích Ngân","611/CCHN-D-SYT-CT","Bảo quản; bán thuốc, nguyên liệu làm thuốc\nChiệu trách nhiệm chuyên môn về dược của cơ sở: Kinh doanh dịch vụ bảo quản; bán buôn thuốc, nguyên liệu làm thuốc (trừ vắc xin, sinh phẩm), dược liệu, thuốc dược liệu, thuốc cổ truyền; nhà thuốc; quầy thuốc; tủ thuốc Trạm Y tế.","Toàn thời gian",null,"07h00 - 11h00; 13h00 - 17h00","DSĐH/\nCKI Dược lý &DLS"]
["9","Thạch Bảo Châu","126/CCHN-D-SYT-CT","Bán lẻ thuốc (người chịu trách nhiệm chuyên môn về Dược của quầy thuốc )","Toàn thời gian",null,"07h00 - 11h00; 13h00 - 17h00","ThS Dược"]
["10","Nguyễn Thanh Mỹ Dị","003171/CT-CCHN","Thực hiện các kỹ thuật điều dưỡng cơ bản","Toàn thời gian",null,"07h00 - 11h00; 13h00 - 17h00","CNĐD"]
["11","Thị Mỹ Lan","004052/CT-CCHN","Thực hiện các kỹ thuật điều dưỡng cơ bản và các kỹ thuật điều dưỡng chuyên khoa","Toàn thời gian",null,"07h00 - 11h00; 13h00 - 17h00","CNĐD"]
["12","Nguyễn Phương Dung","005098/CT-CCHN","Thực hiện theo chức năng nhiệm vụ của Điều dưỡng quy định tại Thông tư liên tịch số 26/2015/TTLT-BYT-BNV ngày 07/10/2015.","Toàn thời gian",null,"07h00 - 11h00; 13h00 - 17h00","CNĐD"]
["13","Nguyễn Thị Thùy Dung","004762/CT-CCHN","Thực hiện theo chức năng nhiệm vụ của Điều dưỡng quy định tại Thông tư liên tịch số 26/2015/TTLT-BYT-BNV ngày 07/10/2015.","Toàn thời gian",null,"07h00 - 11h00; 13h00 - 17h00","ĐDTC/ ĐDCĐ"]
["14","Nguyễn Thị Dịu Hương","632/CCHN-D-SYT-CT","Bán lẻ thuốc (người chịu trách nhiệm chuyên môn về Dược của quầy thuốc )","Toàn thời gian",null,"07h00 - 11h00; 13h00 - 17h00","DSTH"]
["15","Nguyễn Thị Thúy Nhiệm","003068/CT-CCHN","Thực hiện các kỹ thuật điều dưỡng cơ bản","Toàn thời gian",null,"07h00 - 11h00; 13h00 - 17h00","CNĐD"]
["16","Nguyễn Thị Ngọc Bích","006513/CT-CCHN","Thực hiện theo chức năng nhiệm vụ của Điều dưỡng quy định tại Thông tư liên tịch số 26/2015/TTLT-BYT-BNV ngày 07/10/2015.","Toàn thời gian",null,"07h00 - 11h00; 13h00 - 17h00","CNĐD"]
["17","Lâm Hữu Đức","002891/CT-CCHN",{"$f":"VLOOKUP(B32,'[1]ĐÃ có CCHN'!$B$3:$I$889,4,FALSE)","v":"Thực hiện các kỹ thuật điều dưỡng cơ bản và các kỹ thuật điều dưỡng chuyên khoa"},"Toàn thời gian",null,"07h00 - 11h00; 13h00 - 17h00","ĐDCKI","Trưởng phòng"]
["18","Nguyễn Thị Thanh Xuân","002994/CT-CCHN",{"$f":"VLOOKUP(B33,'[1]ĐÃ có CCHN'!$B$3:$I$889,4,FALSE)","v":"Thực hiện các kỹ thuật điều dưỡng cơ bản và các kỹ thuật điều dưỡng chuyên khoa"},"Toàn thời gian",null,"07h00 - 11h00; 13h00 - 17h00","ĐDCKI"," Phó\nTrưởng phòng"]
["19","Nguyễn Văn Thắng","003131/CT-CCHN","Thực hiện các kỹ thuật điều dưỡng cơ bản","Toàn thời gian",null,"07h00 - 11h00; 13h00 - 17h00","ĐDCKI"]
["20","Lê Diệu Hiền","601/CT-CCHND","Sản xuất, xuất khẩu, nhập khẩu, bán buôn, bán lẻ, dịch vụ bảo quản, dịch vụ kiểm nghiệm thuốc","Toàn thời gian",null,"07h00 - 11h00; 13h00 - 17h00","DSCKII"]
["21","Trần Thanh Trí","003002/CT-CCHN",{"$f":"VLOOKUP(B36,'[1]ĐÃ có CCHN'!$B$3:$I$889,4,FALSE)","v":"Thực hiện các kỹ thuật điều dưỡng cơ bản và các kỹ thuật điều dưỡng chuyên khoa"},"Toàn thời gian",null,"07h00 - 11h00; 13h00 - 17h00","ĐDCKI"," Phó\nTrưởng phòng"]
["22","Nguyễn Trung Hiếu","004048/CT-CCHN",{"$f":"VLOOKUP(B37,'[1]ĐÃ có CCHN'!$B$3:$I$889,4,FALSE)","v":"- Khám bệnh, chữa bệnh chuyên khoa ngoại, bỏng\n- Khám bệnh, chữa bệnh chuyên khoa phẫu thuật tạo hình"},"Toàn thời gian",null,"07h00 - 11h00; 13h00 - 17h00","Thạc sĩ Bác sĩ"]
["23","Huỳnh Văn Huấn","000558/CT-CCHN","Khám, chữa bệnh chuyên khoa Ngoại - Chấn thương chỉnh hình","Toàn thời gian",null,"07h00 - 11h00; 13h00 - 17h00","BSCKII","Trưởng phòng"]
["24","Nguyễn Thị Thúy An","003224/CT-CCHN","Thực hiện các kỹ thuật điều dưỡng cơ bản","Toàn thời gian",null,"07h00 - 11h00; 13h00 - 17h00","CNĐD"]
["25","Huỳnh Huyền Trân","005829/CT-CCHN","Thực hiện theo chúc năng nhiệm vụ của điều dưỡng quy định theo Thông tư liên tịch số 26/2015/TTLT-BYT ngày 07/10/2015","Toàn thời gian",null,"07h00 - 11h00; 13h00 - 17h00","CNĐD"]
["26","Trần Thị Chiêu Anh","002964/CT-CCHN","Thực hiện các kỹ thuật điều dưỡng cơ bản","Toàn thời gian",null,"07h00 - 11h00; 13h00 - 17h00","ĐDTC/ ĐDCĐ"]
["27","Nguyễn Gia Hoàng Diễm","006430/CT-CCHN","Thực hiện theo chúc năng nhiệm vụ của điều dưỡng quy định theo Thông tư liên tịch số 26/2015/TTLT-BYT ngày 07/10/2015","Toàn thời gian",null,"07h00 - 11h00; 13h00 - 17h00","ĐDCĐ"]
["28","Huỳnh Thanh Trúc","000723/CT-CCHN","Khám bệnh, chữa bệnh chuyên khoa Nội","Toàn thời gian",null,"07h00 - 11h00; 13h00 - 17h00","BSCKII","Trưởng khoa"]
["29","Dương Hiền Thảo Lan","000798/CT-CCHN","Khám bệnh, chữa bệnh chuyên khoa Nội","Toàn thời gian",null,"07h00 - 11h00; 13h00 - 17h00","BSCKII","Phó\nTrưởng khoa"]
["30","Nguyễn Thị Cẩm Tú","000441/CT-CCHN","Khám bệnh, chữa bệnh đa khoa","Toàn thời gian",null,"07h00 - 11h00; 13h00 - 17h00","BSCKI"]
["31","Đỗ Thị Trúc Thanh","000463/CT-CCHN","Khám bệnh, chữa bệnh đa khoa","Toàn thời gian",null,"07h00 - 11h00; 13h00 - 17h00","BSCKI"]
["32","Huỳnh Út Hậu","001122/CT-CCHN","Khám bệnh, chữa bệnh Nội khoa","Toàn thời gian",null,"07h00 - 11h00; 13h00 - 17h00","BSCKI"]
["33","Nguyễn Hoa Phượng","003494/CM-CCHN","Khám bệnh, chữa bệnh sản phụ khoa","Toàn thời gian",null,"07h00 - 11h00; 13h00 - 17h00","Bác sĩ"]
["34","Huỳnh Thị Phượng","002088/BL-CCHN","Khám bệnh, chữa bệnh đa khoa","Toàn thời gian",null,"07h00 - 11h00; 13h00 - 17h00","Bác sĩ"]
["35","Thạch Thị Anh Thư","007434/CT-CCHN","Khám bệnh, chữa bệnh nội khoa","Toàn thời gian",null,"07h00 - 11h00; 13h00 - 17h00","Bác sĩ"]
["36","Trần Thị Kim Hằng","003226/CT-CCHN",{"$f":"VLOOKUP(B51,'[1]ĐÃ có CCHN'!$B$3:$I$889,4,FALSE)","v":"Thực hiện các kỹ thuật điều dưỡng cơ bản và các kỹ thuật điều dưỡng chuyên khoa"},"Toàn thời gian",null,"07h00 - 11h00; 13h00 - 17h00","CNĐD","ĐDTK"]
["37","Lê Thị Thúy Oanh","005182/CT-CCHN",{"$f":"VLOOKUP(B52,'[1]ĐÃ có CCHN'!$B$3:$I$889,4,FALSE)","v":"Thực hiện theo chức năng nhiệm vụ của Điều dưỡng quy định tại Thông tư liên tịch số 26/2015/TTLT-BYT-BNV ngày 07/10/2015."},"Toàn thời gian",null,"07h00 - 11h00; 13h00 - 17h00","CNĐD"]
["38","Nguyễn Thị Cẩm Tú","001197/CT-CCHN","Thực hiện các kỹ thuật điều dưỡng cơ bản ","Toàn thời gian",null,"07h00 - 11h00; 13h00 - 17h00","CNĐD"]
["39","Lê Trần Trúc Mai","002947/CT-CCHN","Thực hiện các kỹ thuật điều dưỡng cơ bản ","Toàn thời gian",null,"07h00 - 11h00; 13h00 - 17h00","CNĐD"]
["40","Trần Thị Nhã Trúc","003057/CT-CCHN","Thực hiện các kỹ thuật điều dưỡng cơ bản và một số kỹ thuật điều dưỡng chuyên khoa","Toàn thời gian",null,"07h00 - 11h00; 13h00 - 17h00","ĐDCĐ"]
["41","Huỳnh Kiều Phương Tân","003056/CT-CCHN","Thực hiện các kỹ thuật điều dưỡng cơ bản và một số kỹ thuật điều dưỡng chuyên khoa","Toàn thời gian",null,"07h00 - 11h00; 13h00 - 17h00","CNĐD"]
["42","Huỳnh Thị Cẩm Quỳnh","006427/CT-CCHN","Thực hiện theo chức năng nhiệm vụ của Điều dưỡng quy định tại Thông tư liên tịch số 26/2015/TTLT-BYT-BNV ngày 07/10/2015.","Toàn thời gian",null,"07h00 - 11h00; 13h00 - 17h00","ĐDCĐ"]
["43","Huỳnh Thanh Thế","003062/CT-CCHN","Thực hiện các kỹ thuật điều dưỡng cơ bản ","Toàn thời gian",null,"07h00 - 11h00; 13h00 - 17h00","ĐDTC/ ĐDCĐ"]
["44","Nguyễn Cẩm Tú","003194/CT-CCHN","Thực hiện các kỹ thuật điều dưỡng cơ bản ","Toàn thời gian",null,"07h00 - 11h00; 13h00 - 17h00","ĐDTC/ ĐDCĐ"]
["45","Huỳnh Lê Lan Hải Huyền Trân","004585/CT-CCHN",{"$f":"VLOOKUP(B60,'[1]ĐÃ có CCHN'!$B$3:$I$889,4,FALSE)","v":"Thực hiện theo chức năng nhiệm vụ của Điều dưỡng quy định tại Thông tư liên tịch số 26/2015/TTLT-BYT-BNV ngày 07/10/2015."},"Toàn thời gian",null,"07h00 - 11h00; 13h00 - 17h00","CNĐD"]
["46","Lê Thị Kim Tuyến","003201/CT-CCHN","Thực hiện các kỹ thuật điều dưỡng cơ bản ","Toàn thời gian",null,"07h00 - 11h00; 13h00 - 17h00","ĐDTC/ ĐDCĐ"]
["47","Quách Văn Hoàng","003063/CT-CCHN","Thực hiện các kỹ thuật điều dưỡng cơ bản ","Toàn thời gian",null,"07h00 - 11h00; 13h00 - 17h00","ĐDTC"]
["48","Phạm Kim Chiều","003058/CT-CCHN","Thực hiện các kỹ thuật điều dưỡng cơ bản ","Toàn thời gian",null,"07h00 - 11h00; 13h00 - 17h00","ĐDTC/ ĐDCĐ"]
["49","Trương Thị Bích Trâm","003064/CT-CCHN","Thực hiện các kỹ thuật điều dưỡng cơ bản ","Toàn thời gian",null,"07h00 - 11h00; 13h00 - 17h00","ĐDTC"]
["50","Mai Thị Bé Nhi","001580/CT-CCHN","Thực hiện các kỹ thuật điều dưỡng cơ bản ","Toàn thời gian",null,"07h00 - 11h00; 13h00 - 17h00","ĐDTC"]
["51","Đỗ Thanh Tuyền","004623/CT-CCHN","Thực hiện theo chức năng nhiệm vụ của Điều dưỡng quy định tại Thông tư liên tịch số 26/2015/TTLT-BYT-BNV ngày 07/10/2015.","Toàn thời gian",null,"07h00 - 11h00; 13h00 - 17h00","ĐDTC/ ĐDCĐ"]
["52","Bùi Thị Hồng Gấm","005599/CT-CCHN",{"$f":"VLOOKUP(B67,'[1]ĐÃ có CCHN'!$B$3:$I$889,4,FALSE)","v":"Thực hiện theo chức năng nhiệm vụ của Điều dưỡng quy định tại Thông tư liên tịch số 26/2015/TTLT-BYT-BNV ngày 07/10/2015."},"Toàn thời gian",null,"07h00 - 11h00; 13h00 - 17h00","ĐDCĐ"]
["53","Lê Thị Kim Khánh","006204/CT-CCHN",{"$f":"VLOOKUP(B68,'[1]ĐÃ có CCHN'!$B$3:$I$889,4,FALSE)","v":"Thực hiện theo chức năng nhiệm vụ của Điều dưỡng quy định tại Thông tư liên tịch số 26/2015/TTLT-BYT-BNV ngày 07/10/2015."},"Toàn thời gian",null,"07h00 - 11h00; 13h00 - 17h00","ĐDCĐ/\nCNĐD"]
["54","Lê Thị Trúc Ly","006444/CT-CCHN",{"$f":"VLOOKUP(B69,'[1]ĐÃ có CCHN'!$B$3:$I$889,4,FALSE)","v":"Thực hiện theo chức năng nhiệm vụ của Điều dưỡng quy định tại Thông tư liên tịch số 26/2015/TTLT-BYT-BNV ngày 07/10/2015."},"Toàn thời gian",null,"07h00 - 11h00; 13h00 - 17h00","ĐDTC/ ĐDCĐ"]
["55","Lê Thị Nhiên","007067/CT-CCHN","Thực hiện phạm vị hoạt động chuyên môn theo chức năng nhiệm vụ của hộ sinh quy định tại thông tư liên tịch số 26/2015/TTLT-BYT ngày 07/01/2015","Toàn thời gian",null,"07h00 - 11h00; 13h00 - 17h00","HSCĐ"]
["56","Huỳnh Thị Ngọc Tuyết","004802/CT-CCHN","Thực hiện theo chức năng nhiệm vụ của hộ sinh qui định theo Thông tư liên tịch số 26/2015/TTLT-BYT ngày 07/10/2015","Toàn thời gian",null,"07h00 - 11h00; 13h00 - 17h00","HSTH/ HSCĐ"]
["57","Lê Thị Yến Nhi","006428/CT-CCHN","Thực hiện theo chức năng nhiệm vụ của Điều dưỡng quy định tại Thông tư liên tịch số 26/2015/TTLT-BYT-BNV ngày 07/10/2015.","Toàn thời gian",null,"07h00 - 11h00; 13h00 - 17h00","Y sĩ"]
["58","Phạm Huỳnh Bình Văn","007632/CT-CCHN","Thực hiện chức năng nhiệm vụ của định theo Thông tư liên tịch số 26/2015/TTLT-BYT ngày 07/10/2018","Toàn thời gian",null,"07h00 - 11h00; 13h00 - 17h00","CĐĐD"]
["59","Huỳnh Thị Kim Ngân","120280/CCHN-BQP","Thực hiện chức năng nhiệm vụ của điều dưỡng quy định theo Thông tư liên tịch số 26/2015/TTLT-BYT ngày 07/10/2015","Toàn thời gian",null,"07h00 - 11h00; 13h00 - 17h00","CĐĐD"]
["60","Đặng Văn Hải","000405/CT-CCHN","- Khám, chữa bệnh chuyên khoa Nội\n- Khám bệnh, chữa bệnh chuyên khoa hồi sức cấp cứu","Toàn thời gian",null,"07h00 - 11h00; 13h00 - 17h00","BSCKII","Trưởng khoa"]
["61","Phùng Kim Cương","000022/CT-CCHN","Khám, chữa bệnh chuyên khoa Ngoại -Thần kinh","Toàn thời gian",null,"07h00 - 11h00; 13h00 - 17h00","BSCKI","Phó\nTrưởng khoa"]
["62","Lê Thị Cẩm Hồng","002940/CT-CCHN","Khám, chữa bệnh đa khoa","Toàn thời gian",null,"07h00 - 11h00; 13h00 - 17h00","Thạc sĩ Bác sĩ","Phó\nTrưởng khoa"]
["63","Thái Thanh Sắt","000744/CT-CCHN","Khám bệnh, chữa bệnh chuyên khoa Ngoại","Toàn thời gian",null,"07h00 - 11h00; 13h00 - 17h00","BSCKI"]
["64","Trầm Thanh Thủy","000774/CT-CCHN","Khám bệnh, chữa bệnh chuyên khoa Nội","Toàn thời gian",null,"07h00 - 11h00; 13h00 - 17h00","BSCKI"]
["65","Trần Thị Dáng Kiều","004186/CT-CCHN","Khám bệnh, chữa bệnh chuyên khoa Nội","Toàn thời gian",null,"07h00 - 11h00; 13h00 - 17h00","Bác sĩ"]
["66","Huỳnh Tấn Tới","005799/CT-CCHN","Khám bệnh, chữa bệnh chuyên khoa Nội","Toàn thời gian",null,"07h00 - 11h00; 13h00 - 17h00","Bác sĩ"]
["67","Ong Văn Tài","004916/KG-CCHN","Khám bệnh, chữa bệnh chuyên khoa Nội","Toàn thời gian",null,"07h00 - 11h00; 13h00 - 17h00","Bác sĩ"]
["68","Bùi Thanh Bửu","006347/CT-CCHN","Khám bệnh, chữa bệnh chuyên khoa Nội","Toàn thời gian",null,"07h00 - 11h00; 13h00 - 17h00","Bác sĩ"]
["69","Nguyễn Nguyên Vinh","006533/CT-CCHN","Khám bệnh, chữa bệnh Nội khoa","Toàn thời gian",null,"07h00 - 11h00; 13h00 - 17h00","Bác sĩ"]
["70","Lê Thị Ngọc Oanh","006740/CT-CCHN","Khám bệnh, chữa bệnh Nội khoa","Toàn thời gian",null,"07h00 - 11h00; 13h00 - 17h00","Bác sĩ"]
["71","Nguyễn Ngọc Hảo","006711/CT-CCHN","Khám bệnh, chữa bệnh Nội khoa","Toàn thời gian",null,"07h00 - 11h00; 13h00 - 17h00","Bác sĩ"]
["72","Nguyễn Công Tạo","006959/CT-CCHN","Khám bệnh, chữa bệnh nội khoa","Toàn thời gian",null,"07h00 - 11h00; 13h00 - 17h00","Bác sĩ"]
["73","Nguyễn Minh Thành","007293/CT-CCHN","Khám bệnh, chữa bệnh nội khoa","Toàn thời gian",null,"07h00 - 11h00; 13h00 - 17h00","Bác sĩ"]
["74","Trần Tuấn An","007466/CT-CCHN","Khám bệnh, chữa bệnh nội khoa","Toàn thời gian",null,"07h00 - 11h00; 13h00 - 17h00","Bác sĩ"]
["75","Trương Lê Vĩnh Hoàng","007531/CT-CCHN","Khám bệnh, chữa bệnh nội khoa","Toàn thời gian",null,"07h00 - 11h00; 13h00 - 17h00","Bác sĩ"]
["76","Trần Thị Ý Nhi","007450/CT-CCHN","Khám bệnh, chữa bệnh nội khoa","Toàn thời gian",null,"07h00 - 11h00; 13h00 - 17h00","Bác sĩ"]
["77","Lâm Mỹ Khanh","007526/CT-CCHN","Khám bệnh, chữa bệnh nội khoa","Toàn thời gian",null,"07h00 - 11h00; 13h00 - 17h00","Bác sĩ"]
["78","Nguyễn Thị Yến Nhi","007777/CT-CCHN","Khám bệnh, chữa bệnh nội khoa","Toàn thời gian",null,"07h00 - 11h00; 13h00 - 17h00","Bác sĩ"]
["79","Nguyễn Minh Trí","003215/CT-CCHN",{"$f":"VLOOKUP(B94,'[1]ĐÃ có CCHN'!$B$3:$I$889,4,FALSE)","v":"Thực hiện các kỹ thuật điều dưỡng cơ bản và các kỹ thuật thông thường về bó bột"},"Toàn thời gian",null,"07h00 - 11h00; 13h00 - 17h00","ĐDCKI","ĐDTK"]
["80","Nguyễn Thị Hồng Diễm","003199/CT-CCHN",{"$f":"VLOOKUP(B95,'[1]ĐÃ có CCHN'!$B$3:$I$889,4,FALSE)","v":"Thực hiện các kỹ thuật điều dưỡng cơ bản"},"Toàn thời gian",null,"07h00 - 11h00; 13h00 - 17h00","CNĐD"]
["81","Nguyễn Thị Ngọc Xuân","004531/CT-CCHN",{"$f":"VLOOKUP(B96,'[1]ĐÃ có CCHN'!$B$3:$I$889,4,FALSE)","v":"Thực hiện theo chức năng nhiệm vụ của Điều dưỡng quy định tại Thông tư liên tịch số 26/2015/TTLT-BYT-BNV ngày 07/10/2015."},"Toàn thời gian",null,"07h00 - 11h00; 13h00 - 17h00","CNĐD"]
["82","Nguyễn Thị Ngọc Hạnh","005171/CT-CCHN",{"$f":"VLOOKUP(B97,'[1]ĐÃ có CCHN'!$B$3:$I$889,4,FALSE)","v":"Thực hiện theo chức năng nhiệm vụ của Điều dưỡng quy định tại Thông tư liên tịch số 26/2015/TTLT-BYT-BNV ngày 07/10/2015."},"Toàn thời gian",null,"07h00 - 11h00; 13h00 - 17h00","CNĐD"]
["83","Nguyễn Trần Kim Phụng","006267/CT-CCHN",{"$f":"VLOOKUP(B98,'[1]ĐÃ có CCHN'!$B$3:$I$889,4,FALSE)","v":"Thực hiện theo chức năng nhiệm vụ của Điều dưỡng quy định tại Thông tư liên tịch số 26/2015/TTLT-BYT-BNV ngày 07/10/2015."},"Toàn thời gian",null,"07h00 - 11h00; 13h00 - 17h00","CNĐD"]
["84","Nguyễn Thị Sương Em","005053/CT-CCHN",{"$f":"VLOOKUP(B99,'[1]ĐÃ có CCHN'!$B$3:$I$889,4,FALSE)","v":"Thực hiện theo chức năng nhiệm vụ của Điều dưỡng quy định tại Thông tư liên tịch số 26/2015/TTLT-BYT-BNV ngày 07/10/2015."},"Toàn thời gian",null,"07h00 - 11h00; 13h00 - 17h00","CNĐD"]
["85","Trần Thị Ngọc Huyền","004697/CT-CCHN",{"$f":"VLOOKUP(B100,'[1]ĐÃ có CCHN'!$B$3:$I$889,4,FALSE)","v":"Thực hiện theo chức năng nhiệm vụ của Điều dưỡng quy định tại Thông tư liên tịch số 26/2015/TTLT-BYT-BNV ngày 07/10/2015."},"Toàn thời gian",null,"07h00 - 11h00; 13h00 - 17h00","CNĐD"]
["86","Lê Thị Cẩm Phương","006324/CT-CCHN",{"$f":"VLOOKUP(B101,'[1]ĐÃ có CCHN'!$B$3:$I$889,4,FALSE)","v":"Thực hiện theo chức năng nhiệm vụ của Điều dưỡng quy định tại Thông tư liên tịch số 26/2015/TTLT-BYT-BNV ngày 07/10/2015."},"Toàn thời gian",null,"07h00 - 11h00; 13h00 - 17h00","CNĐD"]
["87","Đỗ Văn Tính","003102/CT-CCHN",{"$f":"VLOOKUP(B102,'[1]ĐÃ có CCHN'!$B$3:$I$889,4,FALSE)","v":"Thực hiện các kỹ thuật điều dưỡng cơ bản"},"Toàn thời gian",null,"07h00 - 11h00; 13h00 - 17h00","CNĐD"]
["88","Nguyễn Thanh Nam","004235/CT-CCHN",{"$f":"VLOOKUP(B103,'[1]ĐÃ có CCHN'!$B$3:$I$889,4,FALSE)","v":"Thực hiện theo chức năng nhiệm vụ của Điều dưỡng quy định tại Thông tư liên tịch số 26/2015/TTLT-BYT-BNV ngày 07/10/2015."},"Toàn thời gian",null,"07h00 - 11h00; 13h00 - 17h00","CNĐD"]
["89","Huỳnh Thị Diễm","005860/CT-CCHN",{"$f":"VLOOKUP(B104,'[1]ĐÃ có CCHN'!$B$3:$I$889,4,FALSE)","v":"Thực hiện theo chức năng nhiệm vụ của Điều dưỡng quy định tại Thông tư liên tịch số 26/2015/TTLT-BYT-BNV ngày 07/10/2015."},"Toàn thời gian",null,"07h00 - 11h00; 13h00 - 17h00","ĐDCĐ"]
["90","Lê Thị Kim Thi","003192/CT-CCHN",{"$f":"VLOOKUP(B105,'[1]ĐÃ có CCHN'!$B$3:$I$889,4,FALSE)","v":"Thực hiện các kỹ thuật điều dưỡng cơ bản"},"Toàn thời gian",null,"07h00 - 11h00; 13h00 - 17h00","ĐDTC"]
["91","Trần Lê Ánh Nhạc","003186/CT-CCHN",{"$f":"VLOOKUP(B106,'[1]ĐÃ có CCHN'!$B$3:$I$889,4,FALSE)","v":"Thực hiện các kỹ thuật điều dưỡng cơ bản"},"Toàn thời gian",null,"07h00 - 11h00; 13h00 - 17h00","ĐDTC/CNĐD"]
["92","Trần Thị Bích Liểu","004864/CT-CCHN","Thực hiện theo chức năng nhiệm vụ của Điều dưỡng quy định tại Thông tư liên tịch số 26/2015/TTLT-BYT-BNV ngày 07/10/2015.","Toàn thời gian",null,"07h00 - 11h00; 13h00 - 17h00","ĐDTC"]
["93","Tô Nguyễn Thanh Thanh","006251/CT-CCHN",{"$f":"VLOOKUP(B108,'[1]ĐÃ có CCHN'!$B$3:$I$889,4,FALSE)","v":"Thực hiện theo chức năng nhiệm vụ của Điều dưỡng quy định tại Thông tư liên tịch số 26/2015/TTLT-BYT-BNV ngày 07/10/2015."},"Toàn thời gian",null,"07h00 - 11h00; 13h00 - 17h00","ĐDTC"]
["94","Huỳnh Tấn Sang","004910/CT-CCHN",{"$f":"VLOOKUP(B109,'[1]ĐÃ có CCHN'!$B$3:$I$889,4,FALSE)","v":"Thực hiện theo chức năng nhiệm vụ của Điều dưỡng quy định tại Thông tư liên tịch số 26/2015/TTLT-BYT-BNV ngày 07/10/2015."},"Toàn thời gian",null,"07h00 - 11h00; 13h00 - 17h00","CNĐD"]
["95","Nguyễn Thị Tâm","002913/HAUG-CCHN","Thực hiện theo chức năng nhiệm vụ của Điều dưỡng quy định tại Thông tư liên tịch số 26/2015/TTLT-BYT-BNV ngày 07/10/2015.","Toàn thời gian",null,"07h00 - 11h00; 13h00 - 17h00","CNĐD"]
["96","Trương Hải Đăng","004572/CT-CCHN",{"$f":"VLOOKUP(B111,'[1]ĐÃ có CCHN'!$B$3:$I$889,4,FALSE)","v":"Thực hiện theo chức năng nhiệm vụ của Điều dưỡng quy định tại Thông tư liên tịch số 26/2015/TTLT-BYT-BNV ngày 07/10/2015."},"Toàn thời gian",null,"07h00 - 11h00; 13h00 - 17h00","ĐDCĐ"]
["97","Ngô Khải Hoàn","006454/CT-CCHN",{"$f":"VLOOKUP(B112,'[1]ĐÃ có CCHN'!$B$3:$I$889,4,FALSE)","v":"Thực hiện theo chức năng nhiệm vụ của Điều dưỡng quy định tại Thông tư liên tịch số 26/2015/TTLT-BYT-BNV ngày 07/10/2015."},"Toàn thời gian",null,"07h00 - 11h00; 13h00 - 17h00","ĐDCĐ "]
["98","Lê Quí Hiển","006474/CT-CCHN",{"$f":"VLOOKUP(B113,'[1]ĐÃ có CCHN'!$B$3:$I$889,4,FALSE)","v":"Thực hiện theo chức năng nhiệm vụ của Điều dưỡng quy định tại Thông tư liên tịch số 26/2015/TTLT-BYT-BNV ngày 07/10/2015."},"Toàn thời gian",null,"07h00 - 11h00; 13h00 - 17h00","ĐDCĐ "]
["99","Nguyễn Quý Ngọc","006379/CT-CCHN",{"$f":"VLOOKUP(B114,'[1]ĐÃ có CCHN'!$B$3:$I$889,4,FALSE)","v":"Thực hiện theo chức năng nhiệm vụ của Điều dưỡng quy định tại Thông tư liên tịch số 26/2015/TTLT-BYT-BNV ngày 07/10/2015."},"Toàn thời gian",null,"07h00 - 11h00; 13h00 - 17h00","ĐDCĐ "]
["100","Phan Thanh Nam","005469/CT-CCHN",{"$f":"VLOOKUP(B115,'[1]ĐÃ có CCHN'!$B$3:$I$889,4,FALSE)","v":"Thực hiện theo chức năng nhiệm vụ của Điều dưỡng quy định tại Thông tư liên tịch số 26/2015/TTLT-BYT-BNV ngày 07/10/2015."},"Toàn thời gian",null,"07h00 - 11h00; 13h00 - 17h00","ĐDCĐ "]
["101","Trần Thị Thanh Uyên","6684/ĐT-CCHN","Thực hiện theo chức năng nhiệm vụ của Điều dưỡng quy định tại Thông tư liên tịch số 26/2015/TTLT-BYT-BNV ngày 07/10/2015.","Toàn thời gian",null,"07h00 - 11h00; 13h00 - 17h00","ĐDCĐ "]
["102","Huỳnh Minh Thư","007673/CT-CCHN","Thực hiện chức năng nhiệm vụ của định theo Thông tư liên tịch số 26/2015/TTLT-BYT ngày 07/10/2018","Toàn thời gian",null,"07h00 - 11h00; 13h00 - 17h00","ĐDCĐ/\nCNĐD "]
["103","Cao Thanh Sang","006702/CT-CCHN","Thực hiện theo chức năng nhiệm vụ của Điều dưỡng quy định tại Thông tư liên tịch số 26/2015/TTLT-BYT-BNV ngày 07/10/2015.","Toàn thời gian",null,"07h00 - 11h00; 13h00 - 17h00","ĐDCĐ "]
["104","Huỳnh Trung Bửu","007276/CT-CCHN","Thực hiện theo chức năng nhiệm vụ của Điều dưỡng quy định tại Thông tư liên tịch số 26/2015/TTLT-BYT-BNV ngày 07/10/2015.","Toàn thời gian",null,"07h00 - 11h00; 13h00 - 17h00","ĐDCĐ "]
["105","Nguyễn Thị Thu Thảo","003908/CT-CCHN",{"$f":"VLOOKUP(B120,'[1]ĐÃ có CCHN'!$B$3:$I$889,4,FALSE)","v":"Thực hiện các kỹ thuật điều dưỡng cơ bản"},"Toàn thời gian",null,"07h00 - 11h00; 13h00 - 17h00","ĐDTC/ ĐDCĐ"]
["106","Lê Thị Như Thắm","007520/CT-CCHN","Thực hiện theo chức năng nhiệm vụ của Điều dưỡng quy định tại Thông tư liên tịch số 26/2015/TTLT-BYT-BNV ngày 07/10/2015.","Toàn thời gian",null,"07h00 - 11h00; 13h00 - 17h00","ĐDCĐ "]
["107","Đoàn Hồng Tuấn","005002/CT-CCHN","Thực hiện theo chức năng nhiệm vụ của Điều dưỡng quy định tại Thông tư liên tịch số 26/2015/TTLT-BYT-BNV ngày 07/10/2015.","Toàn thời gian",null,"07h00 - 11h00; 13h00 - 17h00","ĐDTC/ ĐDCĐ"]
["108","Trương Hồng Ân","004594/CT-CCHN","Thực hiện theo chức năng nhiệm vụ của Điều dưỡng quy định tại Thông tư liên tịch số 26/2015/TTLT-BYT-BNV ngày 07/10/2015.","Toàn thời gian",null,"07h00 - 11h00; 13h00 - 17h00","ĐDTC"]
["109","Nguyễn Thành Lộc","007722/CT-CCHN","Thực hiện theo chức năng nhiệm vụ của Điều dưỡng quy định tại Thông tư liên tịch số 26/2015/TTLT-BYT-BNV ngày 07/10/2015.","Toàn thời gian",null,"07h00 - 11h00; 13h00 - 17h00","CĐĐD"]
["110","Nguyễn Thành Bích Thảo","001084/CT-CCHN","Khám bệnh, chữa bệnh chuyên khoa Nội, Hồi sức cấp cứu","Toàn thời gian",null,"07h00 - 11h00; 13h00 - 17h00","BSCKII","Trưởng khoa"]
["111","Lâm Phương Thúy","000670/CT-CCHN","Khám, chữa bệnh đa khoa","Toàn thời gian",null,"07h00 - 11h00; 13h00 - 17h00","BSCKII","Phó\nTrưởng khoa"]
["112","Nguyễn Thị Thanh Nhàn","002961/CT-CCHN","Khám, chữa bệnh đa khoa","Toàn thời gian",null,"07h00 - 11h00; 13h00 - 17h00","BSCKI","Phó\nTrưởng khoa"]
["113","Phan Văn Lympic","002936/CT-CCHN","Khám, chữa bệnh đa khoa","Toàn thời gian",null,"07h00 - 11h00; 13h00 - 17h00","BSCKI"]
["114","Nguyễn Hữu Bút","003826/CT-CCHN","Khám, chữa bệnh đa khoa","Toàn thời gian",null,"07h00 - 11h00; 13h00 - 17h00","Bác sĩ"]
["115","Đoàn Văn Thiện","004270/CT-CCHN","Khám bệnh, chữa bệnh nội khoa","Toàn thời gian",null,"07h00 - 11h00; 13h00 - 17h00","BSCKI"]
["116","Nguyễn Thị Ngọc Hân","004280/CT-CCHN","Khám bệnh, chữa bệnh nội khoa","Toàn thời gian",null,"07h00 - 11h00; 13h00 - 17h00","Bác sĩ"]
["117","Phạm Thị Thanh Trúc","006418/CT-CCHN","Khám bệnh, chữa bệnh nội khoa","Toàn thời gian",null,"07h00 - 11h00; 13h00 - 17h00","Bác sĩ"]
["118","Võ Thị Gấm","006465/CT-CCHN","Khám bệnh, chữa bệnh nội khoa","Toàn thời gian",null,"07h00 - 11h00; 13h00 - 17h00","Bác sĩ"]
["119","Huỳnh Huệ Hân","006592/CT-CCHN","Khám bệnh, chữa bệnh nội khoa","Toàn thời gian",null,"07h00 - 11h00; 13h00 - 17h00","Bác sĩ"]
["120","Thạch Thị Sa Thia","006441/CT-CCHN","Khám bệnh, chữa bệnh nội khoa","Toàn thời gian",null,"07h00 - 11h00; 13h00 - 17h00","Bác sĩ"]
["121","Trần Xuân Sơn","007274/CT-CCHN","Khám bệnh, chữa bệnh chuyên khoa Nội","Toàn thời gian",null,"07h00 - 11h00; 13h00 - 17h00","BSCKI"]
["122","Bùi Huy Kiên","006957/CT-CCHN","Khám bệnh, chữa bệnh nội khoa","Toàn thời gian",null,"07h00 - 11h00; 13h00 - 17h00","Bác sĩ"]
["123","Lương Túc Vinh","007153/CT-CCHN","Khám bệnh, chữa bệnh nội khoa","Toàn thời gian",null,"07h00 - 11h00; 13h00 - 17h00","Bác sĩ "]
["124","Trịnh Chiêu Hùng","007475/CT-CCHN","Khám bệnh, chữa bệnh nội khoa","Toàn thời gian",null,"07h00 - 11h00; 13h00 - 17h00","Bác sĩ"]
["125","Đào Đức Huy","007487/CT-CCHN","Khám bệnh, chữa bệnh nội khoa","Toàn thời gian",null,"07h00 - 11h00; 13h00 - 17h00","Bác sĩ"]
["126","Nguyễn Thị Bích Liên","007458/CT-CCHN","Khám bệnh, chữa bệnh nội khoa","Toàn thời gian",null,"07h00 - 11h00; 13h00 - 17h00","Bác sĩ"]
["127","Lương Thị Thanh Hoài","002893/CT-CCHN",{"$f":"VLOOKUP(B142,'[1]ĐÃ có CCHN'!$B$3:$I$889,4,FALSE)","v":"Thực hiện các kỹ thuật điều dưỡng cơ bản và các kỹ thuật điều dưỡng chuyên khoa"},"Toàn thời gian",null,"07h00 - 11h00; 13h00 - 17h00","ĐDCKI","ĐDTK"]
["128","Nguyễn Thị Hồng Cúc","004686/CT-CCHN",{"$f":"VLOOKUP(B143,'[1]ĐÃ có CCHN'!$B$3:$I$889,4,FALSE)","v":"Thực hiện theo chức năng nhiệm vụ của Điều dưỡng quy định tại Thông tư liên tịch số 26/2015/TTLT-BYT-BNV ngày 07/10/2015."},"Toàn thời gian",null,"07h00 - 11h00; 13h00 - 17h00","CNĐD"]
["129","Nguyễn Thị Thanh Tâm","005982/CT-CCHN",{"$f":"VLOOKUP(B144,'[1]ĐÃ có CCHN'!$B$3:$I$889,4,FALSE)","v":"Thực hiện theo chức năng nhiệm vụ của Điều dưỡng quy định tại Thông tư liên tịch số 26/2015/TTLT-BYT-BNV ngày 07/10/2015."},"Toàn thời gian",null,"07h00 - 11h00; 13h00 - 17h00","CNĐD"]
["130","Diệp Thị Thanh Cẩm","003976/CT-CCHN",{"$f":"VLOOKUP(B145,'[1]ĐÃ có CCHN'!$B$3:$I$889,4,FALSE)","v":"Thực hiện các kỹ thuật điều dưỡng cơ bản và các kỹ thuật điều dưỡng chuyên khoa"},"Toàn thời gian",null,"07h00 - 11h00; 13h00 - 17h00","CNĐD"]
["131","Đặng Anh Khoa","004779/CT-CCHN",{"$f":"VLOOKUP(B146,'[1]ĐÃ có CCHN'!$B$3:$I$889,4,FALSE)","v":"Thực hiện theo chức năng nhiệm vụ của Điều dưỡng quy định tại Thông tư liên tịch số 26/2015/TTLT-BYT-BNV ngày 07/10/2015."},"Toàn thời gian",null,"07h00 - 11h00; 13h00 - 17h00","CNĐD"]
["132","Nguyễn Quốc Huy","004761/CT-CCHN",{"$f":"VLOOKUP(B147,'[1]ĐÃ có CCHN'!$B$3:$I$889,4,FALSE)","v":"Thực hiện theo chức năng nhiệm vụ của Điều dưỡng quy định tại Thông tư liên tịch số 26/2015/TTLT-BYT-BNV ngày 07/10/2015."},"Toàn thời gian",null,"07h00 - 11h00; 13h00 - 17h00","ĐDCĐ/CNĐD"]
["133","Phạm Phi Long","003941/CT-CCHN",{"$f":"VLOOKUP(B148,'[1]ĐÃ có CCHN'!$B$3:$I$889,4,FALSE)","v":"Thực hiện các kỹ thuật điều dưỡng cơ bản và các kỹ thuật điều dưỡng chuyên khoa"},"Toàn thời gian",null,"07h00 - 11h00; 13h00 - 17h00","ĐDCĐ"]
["134","Trần Nguyễn Kim Minh Châu","004626/CT-CCHN",{"$f":"VLOOKUP(B149,'[1]ĐÃ có CCHN'!$B$3:$I$889,4,FALSE)","v":"Thực hiện theo chức năng nhiệm vụ của Điều dưỡng quy định tại Thông tư liên tịch số 26/2015/TTLT-BYT-BNV ngày 07/10/2015."},"Toàn thời gian",null,"07h00 - 11h00; 13h00 - 17h00","ĐDCĐ"]
["135","Lê Thu Hiệp","002968/CT-CCHN",{"$f":"VLOOKUP(B150,'[1]ĐÃ có CCHN'!$B$3:$I$889,4,FALSE)","v":"Thực hiện các kỹ thuật điều dưỡng cơ bản"},"Toàn thời gian",null,"07h00 - 11h00; 13h00 - 17h00","ĐDCĐ"]
["136","Cao Hồng Kha","004562/CT-CCHN",{"$f":"VLOOKUP(B151,'[1]ĐÃ có CCHN'!$B$3:$I$889,4,FALSE)","v":"Thực hiện theo chức năng nhiệm vụ của Điều dưỡng quy định tại Thông tư liên tịch số 26/2015/TTLT-BYT-BNV ngày 07/10/2015."},"Toàn thời gian",null,"07h00 - 11h00; 13h00 - 17h00","ĐDCĐ"]
["137","Võ Công Hiếu","004421/CT-CCHN",{"$f":"VLOOKUP(B152,'[1]ĐÃ có CCHN'!$B$3:$I$889,4,FALSE)","v":"Thực hiện các kỹ thuật điều dưỡng cơ bản chuyên nghành Đa khoa"},"Toàn thời gian",null,"07h00 - 11h00; 13h00 - 17h00","ĐDCĐ"]
["138","Nguyễn Anh Thư","005484/CT-CCHN","Thực hiện theo chức năng nhiệm vụ của Điều dưỡng quy định tại Thông tư liên tịch số 26/2015/TTLT-BYT-BNV ngày 07/10/2015.","Toàn thời gian",null,"07h00 - 11h00; 13h00 - 17h00","ĐDCĐ"]
["139","Nguyễn Thị Ngọc Hân","005195/CT-CCHN","Thực hiện theo chức năng nhiệm vụ của Điều dưỡng quy định tại Thông tư liên tịch số 26/2015/TTLT-BYT-BNV ngày 07/10/2015.","Toàn thời gian",null,"07h00 - 11h00; 13h00 - 17h00","ĐDCĐ"]
["140","Hồ Thị Hiền","002965/CT-CCHN",{"$f":"VLOOKUP(B155,'[1]ĐÃ có CCHN'!$B$3:$I$889,4,FALSE)","v":"Thực hiện các kỹ thuật điều dưỡng cơ bản"},"Toàn thời gian",null,"07h00 - 11h00; 13h00 - 17h00","ĐDTC"]
["141","Nguyễn Thị Mỹ Uyên","002957/CT-CCHN",{"$f":"VLOOKUP(B156,'[1]ĐÃ có CCHN'!$B$3:$I$889,4,FALSE)","v":"Thực hiện các kỹ thuật điều dưỡng cơ bản"},"Toàn thời gian",null,"07h00 - 11h00; 13h00 - 17h00","ĐDTC"]
["142","Trần Thị Lý","002956/CT-CCHN",{"$f":"VLOOKUP(B157,'[1]ĐÃ có CCHN'!$B$3:$I$889,4,FALSE)","v":"Thực hiện các kỹ thuật điều dưỡng cơ bản"},"Toàn thời gian",null,"07h00 - 11h00; 13h00 - 17h00","ĐDTC/ ĐDCĐ"]
["143","Huỳnh Thị Diễm Hương","004625/CT-CCHN",{"$f":"VLOOKUP(B158,'[1]ĐÃ có CCHN'!$B$3:$I$889,4,FALSE)","v":"Thực hiện theo chức năng nhiệm vụ của Điều dưỡng quy định tại Thông tư liên tịch số 26/2015/TTLT-BYT-BNV ngày 07/10/2015."},"Toàn thời gian",null,"07h00 - 11h00; 13h00 - 17h00","ĐDTC/ ĐDCĐ"]
["144","Diệp Thị Kiều Trâm","004918/CT-CCHN",{"$f":"VLOOKUP(B159,'[1]ĐÃ có CCHN'!$B$3:$I$889,4,FALSE)","v":"Thực hiện theo chức năng nhiệm vụ của Điều dưỡng quy định tại Thông tư liên tịch số 26/2015/TTLT-BYT-BNV ngày 07/10/2015."},"Toàn thời gian",null,"07h00 - 11h00; 13h00 - 17h00","ĐDTC/ ĐDCĐ"]
["145","Lê Thị Hải Yến","006075/CT-CCHN",{"$f":"VLOOKUP(B160,'[1]ĐÃ có CCHN'!$B$3:$I$889,4,FALSE)","v":"Thực hiện các kỹ thuật điều dưỡng cơ bản chuyên nghành Đa khoa"},"Toàn thời gian",null,"07h00 - 11h00; 13h00 - 17h00","CNĐD"]
["146","Lê Ngọc Hương","006449/CT-CCHN",{"$f":"VLOOKUP(B161,'[1]ĐÃ có CCHN'!$B$3:$I$889,4,FALSE)","v":"Thực hiện các kỹ thuật điều dưỡng cơ bản chuyên nghành Đa khoa"},"Toàn thời gian",null,"07h00 - 11h00; 13h00 - 17h00","CNĐD"]
["147","Huỳnh Nhựt Thắng","004682/CT-CCHN",{"$f":"VLOOKUP(B162,'[1]ĐÃ có CCHN'!$B$3:$I$889,4,FALSE)","v":"Thực hiện theo chức năng nhiệm vụ của Điều dưỡng quy định tại Thông tư liên tịch số 26/2015/TTLT-BYT-BNV ngày 07/10/2015."},"Toàn thời gian",null,"07h00 - 11h00; 13h00 - 17h00","ĐDCĐ"]
["148","Lương Minh Nhựt","005215/CT-CCHN",{"$f":"VLOOKUP(B163,'[1]ĐÃ có CCHN'!$B$3:$I$889,4,FALSE)","v":"Thực hiện theo chức năng nhiệm vụ của Điều dưỡng quy định tại Thông tư liên tịch số 26/2015/TTLT-BYT-BNV ngày 07/10/2015."},"Toàn thời gian",null,"07h00 - 11h00; 13h00 - 17h00","ĐDCĐ"]
["149","Trần Thị Ngọc Hân","005473/CT-CCHN",{"$f":"VLOOKUP(B164,'[1]ĐÃ có CCHN'!$B$3:$I$889,4,FALSE)","v":"Thực hiện theo chức năng nhiệm vụ của Điều dưỡng quy định tại Thông tư liên tịch số 26/2015/TTLT-BYT-BNV ngày 07/10/2015."},"Toàn thời gian",null,"07h00 - 11h00; 13h00 - 17h00","ĐDCĐ"]
["150","Ngô Thị Thúy Hằng","005440/CT-CCHN","Thực hiện các kỹ thuật điều dưỡng cơ bản ","Toàn thời gian",null,"07h00 - 11h00; 13h00 - 17h00","ĐDCĐ"]
["151","Lâm Thành Trung","005563/CT-CCHN",{"$f":"VLOOKUP(B166,'[1]ĐÃ có CCHN'!$B$3:$I$889,4,FALSE)","v":"Thực hiện theo chức năng nhiệm vụ của Điều dưỡng quy định tại Thông tư liên tịch số 26/2015/TTLT-BYT-BNV ngày 07/10/2015."},"Toàn thời gian",null,"07h00 - 11h00; 13h00 - 17h00","ĐDCĐ"]
["152","Trần Nguyên Giáp","005917/CT-CCHN",{"$f":"VLOOKUP(B167,'[1]ĐÃ có CCHN'!$B$3:$I$889,4,FALSE)","v":"Thực hiện theo chức năng nhiệm vụ của Điều dưỡng quy định tại Thông tư liên tịch số 26/2015/TTLT-BYT-BNV ngày 07/10/2015."},"Toàn thời gian",null,"07h00 - 11h00; 13h00 - 17h00","ĐDCĐ"]
["153","Phan Thị Trúc Linh","006055/CT-CCHN",{"$f":"VLOOKUP(B168,'[1]ĐÃ có CCHN'!$B$3:$I$889,4,FALSE)","v":"Thực hiện theo chức năng nhiệm vụ của Điều dưỡng quy định tại Thông tư liên tịch số 26/2015/TTLT-BYT-BNV ngày 07/10/2015."},"Toàn thời gian",null,"07h00 - 11h00; 13h00 - 17h00","ĐDCĐ"]
["154","Trần Hữu Luân","0005136/BTR-CCHN",{"$f":"VLOOKUP(B169,'[1]ĐÃ có CCHN'!$B$3:$I$889,4,FALSE)","v":"Thực hiện các kỹ thuật điều dưỡng cơ bản chuyên nghành Đa khoa"},"Toàn thời gian",null,"07h00 - 11h00; 13h00 - 17h00","ĐDCĐ"]
["155","Nguyễn Thị Huyền Trân","007363/CT-CCHN",{"$f":"VLOOKUP(B170,'[1]ĐÃ có CCHN'!$B$3:$I$889,4,FALSE)","v":"thực hiện theo chức năng nhiệm vụ của điều dưỡng gây mê hồi sức quy định tại Thông tư liên tịch số 26/2015/TTLT-BYT-BNV ngay 07/10/2015"},"Toàn thời gian",null,"07h00 - 11h00; 13h00 - 17h00","ĐDCĐ"]
["156","Lê Thị Tâm","004687/CT-CCHN",{"$f":"VLOOKUP(B171,'[1]ĐÃ có CCHN'!$B$3:$I$889,4,FALSE)","v":"Thực hiện theo chức năng nhiệm vụ của Điều dưỡng quy định tại Thông tư liên tịch số 26/2015/TTLT-BYT-BNV ngày 07/10/2015."},"Toàn thời gian",null,"07h00 - 11h00; 13h00 - 17h00","ĐDTC/ ĐDCĐ"]
["157","Đỗ Thị Hằng","005955/CT-CCHN",{"$f":"VLOOKUP(B172,'[1]ĐÃ có CCHN'!$B$3:$I$889,4,FALSE)","v":"Thực hiện theo chức năng nhiệm vụ của Điều dưỡng quy định tại Thông tư liên tịch số 26/2015/TTLT-BYT-BNV ngày 07/10/2015."},"Toàn thời gian",null,"07h00 - 11h00; 13h00 - 17h00","ĐDTC/ ĐDCĐ"]
["158","Lê Văn Cảnh","006805/CT-CCHN",{"$f":"VLOOKUP(B173,'[1]ĐÃ có CCHN'!$B$3:$I$889,4,FALSE)","v":"Thực hiện các kỹ thuật điều dưỡng cơ bản chuyên nghành Đa khoa"},"Toàn thời gian",null,"07h00 - 11h00; 13h00 - 17h00","ĐDCĐ "]
["159","Bào Tú Trinh","006136/CT-CCHN",{"$f":"VLOOKUP(B174,'[1]ĐÃ có CCHN'!$B$3:$I$889,4,FALSE)","v":"Thực hiện các kỹ thuật điều dưỡng cơ bản chuyên nghành Đa khoa"},"Toàn thời gian",null,"07h00 - 11h00; 13h00 - 17h00","ĐDTC"]
["160","Trần Thị Trân Châu","005726/CT-CCHN",{"$f":"VLOOKUP(B175,'[1]ĐÃ có CCHN'!$B$3:$I$889,4,FALSE)","v":"Thực hiện theo chức năng nhiệm vụ của Điều dưỡng quy định tại Thông tư liên tịch số 26/2015/TTLT-BYT-BNV ngày 07/10/2015."},"Toàn thời gian",null,"07h00 - 11h00; 13h00 - 17h00","Y sĩ"]
["161","Triệu Anh Đệ","000407/VL-CCHN","Khám bệnh, chữa bệnh chuyên khoa Nội","Toàn thời gian",null,"07h00 - 11h00; 13h00 - 17h00","BSCKII"," Trưởng khoa"]
["162","Tống Vấn Thùy","001275/CT-CCHN","Khám bệnh, chữa bệnh đa khoa","Toàn thời gian",null,"07h00 - 11h00; 13h00 - 17h00","Thạc sĩ Bác sĩ","Phó\nTrưởng khoa"]
["163","Phạm Lê Huyền Trân","006255/CT-CCHN","Khám bệnh, chữa bệnh chuyên khoa Nội","Toàn thời gian",null,"07h00 - 11h00; 13h00 - 17h00","BSNT/ Thạc sĩ /BSCKI"]
["164","Trần Ngọc Lợi","001355/CT-CCHN","Khám bệnh, chữa bệnh đa khoa","Toàn thời gian",null,"07h00 - 11h00; 13h00 - 17h00","BSCKI"]
["165","Lê Thị Thúy Nhàn","005012/CT-CCHN","Khám bệnh, chữa bệnh Nội khoa","Toàn thời gian",null,"07h00 - 11h00; 13h00 - 17h00","Bác sĩ"]
["166","Diệp Thị Lê","005366/CT-CCHN","Khám bệnh, chữa bệnh Nội khoa","Toàn thời gian",null,"07h00 - 11h00; 13h00 - 17h00","Bác sĩ"]
["167","Nguyễn Thị Thu Vân","002918/TV-CCHN","Khám bệnh, chữa bệnh Nội khoa","Toàn thời gian",null,"07h00 - 11h00; 13h00 - 17h00","Bác sĩ"]
["168","Phan Thanh Thông","006561/CT-CCHN","Khám bệnh, chữa bệnh Nội khoa","Toàn thời gian",null,"07h00 - 11h00; 13h00 - 17h00","Bác sĩ"]
["169","Lê Văn Dũ","006941/CT-CCHN","Khám bệnh, chữa bệnh nội khoa","Toàn thời gian",null,"07h00 - 11h00; 13h00 - 17h00","Bác sĩ"]
["170","Đinh Chí Thiện ","047113/BYT-CCHN","Khám bệnh, chữa bệnh Nội khoa","Bán thời gian","2,3,4,5,6,7,CN","0700 - 1100, 1300 - 1700","Bác sĩ","BS GV ĐHYDCT"]
["171","Lữ Văn Trầm","005335/CM-CCHN","Khám bệnh, chữa bệnh nội khoa","Bán thời gian","2,3,4,5,6,7,CN","0700 - 1100, 1300 - 1700","Bác sĩ","BS GV ĐH VTT"]
["172","Từ Thị Ngọc Huệ","002910/CT-CCHN",{"$f":"VLOOKUP(B187,'[1]ĐÃ có CCHN'!$B$3:$I$889,4,FALSE)","v":"Thực hiện các kỹ thuật điều dưỡng cơ bản và các kỹ thuật điều dưỡng chuyên khoa"},"Toàn thời gian",null,"07h00 - 11h00; 13h00 - 17h00","CNĐD","ĐDTK"]
["173","Trần Thị Thanh Long","002913/CT-CCHN",{"$f":"VLOOKUP(B188,'[1]ĐÃ có CCHN'!$B$3:$I$889,4,FALSE)","v":"Thực hiện các kỹ thuật điều dưỡng cơ bản"},"Toàn thời gian",null,"07h00 - 11h00; 13h00 - 17h00","CNĐD"]
["174","Nguyễn Trần Thu Trinh","002916/CT-CCHN",{"$f":"VLOOKUP(B189,'[1]ĐÃ có CCHN'!$B$3:$I$889,4,FALSE)","v":"Thực hiện các kỹ thuật điều dưỡng cơ bản"},"Toàn thời gian",null,"07h00 - 11h00; 13h00 - 17h00","CNĐD"]
["175","Trần Ngọc Hân","004834/CT-CCHN",{"$f":"VLOOKUP(B190,'[1]ĐÃ có CCHN'!$B$3:$I$889,4,FALSE)","v":"Thực hiện theo chức năng nhiệm vụ của Điều dưỡng quy định tại Thông tư liên tịch số 26/2015/TTLT-BYT-BNV ngày 07/10/2015."},"Toàn thời gian",null,"07h00 - 11h00; 13h00 - 17h00","CNĐD"]
["176","Nguyễn Thị Thanh Thảo","004872/CT-CCHN",{"$f":"VLOOKUP(B191,'[1]ĐÃ có CCHN'!$B$3:$I$889,4,FALSE)","v":"Bán lẻ thuốc (người chịu trách nhiệm chuyên môn về Dược của quầy thuốc )"},"Toàn thời gian",null,"07h00 - 11h00; 13h00 - 17h00","CNĐD"]
["177","Huỳnh Thùy Như","005075/CT-CCHN",{"$f":"VLOOKUP(B192,'[1]ĐÃ có CCHN'!$B$3:$I$889,4,FALSE)","v":"Thực hiện theo chức năng nhiệm vụ của Điều dưỡng quy định tại Thông tư liên tịch số 26/2015/TTLT-BYT-BNV ngày 07/10/2015."},"Toàn thời gian",null,"07h00 - 11h00; 13h00 - 17h00","CNĐD"]
["178","Trần Sơn Ca","006526/CT-CCHN",{"$f":"VLOOKUP(B193,'[1]ĐÃ có CCHN'!$B$3:$I$889,4,FALSE)","v":"Thực hiện theo chức năng nhiệm vụ của Điều dưỡng quy định tại Thông tư liên tịch số 26/2015/TTLT-BYT-BNV ngày 07/10/2015."},"Toàn thời gian",null,"07h00 - 11h00; 13h00 - 17h00","ĐDCĐ"]
["179","Lữ Thị Huyền Anh","004984/CT-CCHN",{"$f":"VLOOKUP(B194,'[1]ĐÃ có CCHN'!$B$3:$I$889,4,FALSE)","v":"Thực hiện theo chức năng nhiệm vụ của Điều dưỡng quy định tại Thông tư liên tịch số 26/2015/TTLT-BYT-BNV ngày 07/10/2015."},"Toàn thời gian",null,"07h00 - 11h00; 13h00 - 17h00","ĐDCĐ"]
["180","Nguyễn Thị Nhã Ca","002917/CT-CCHN",{"$f":"VLOOKUP(B195,'[1]ĐÃ có CCHN'!$B$3:$I$889,4,FALSE)","v":"Thực hiện các kỹ thuật điều dưỡng cơ bản"},"Toàn thời gian",null,"07h00 - 11h00; 13h00 - 17h00","ĐDTC/CNĐD"]
["181","Lê Thị Trang","002914/CT-CCHN",{"$f":"VLOOKUP(B196,'[1]ĐÃ có CCHN'!$B$3:$I$889,4,FALSE)","v":"Thực hiện các kỹ thuật điều dưỡng cơ bản"},"Toàn thời gian",null,"07h00 - 11h00; 13h00 - 17h00","ĐDTC/CNĐD"]
["182","Phạm Huỳnh Anh Đào","005570/CT-CCHN",{"$f":"VLOOKUP(B197,'[1]ĐÃ có CCHN'!$B$3:$I$889,4,FALSE)","v":"Thực hiện theo chức năng nhiệm vụ của Điều dưỡng quy định tại Thông tư liên tịch số 26/2015/TTLT-BYT-BNV ngày 07/10/2015."},"Toàn thời gian",null,"07h00 - 11h00; 13h00 - 17h00","ĐDCĐ"]
["183","Nguyễn Diệp Thành","006625/CT-CCHN",{"$f":"VLOOKUP(B198,'[1]ĐÃ có CCHN'!$B$3:$I$889,4,FALSE)","v":"Thực hiện theo chức năng nhiệm vụ của Điều dưỡng quy định tại Thông tư liên tịch số 26/2015/TTLT-BYT-BNV ngày 07/10/2015."},"Toàn thời gian",null,"07h00 - 11h00; 13h00 - 17h00","ĐDCĐ"]
["184","Nguyễn Hoàng Thanh","007072/CT-CCHN","Thực hiện chức năng nhiệm vụ của định theo Thông tư liên tịch số 26/2015/TTLT-BYT ngày 07/10/2015","Toàn thời gian",null,"07h00 - 11h00; 13h00 - 17h00","ĐDCĐ "]
["185","Nguyễn Thanh Lâm","0003284/BTR-CCHN",{"$f":"VLOOKUP(B200,'[1]ĐÃ có CCHN'!$B$3:$I$889,4,FALSE)","v":"Quy định tại Quyết định số 41/2005/QĐ – BNV ngày 22/4/2005 của Bộ trưởng Bộ Nội vụ về việc ban hành tiêu chuẩn nghiệp vụ các ngạch viên chức y tế điều dưỡng."},"Toàn thời gian",null,"07h00 - 11h00; 13h00 - 17h00","ĐDTC"]
["186","Võ Việt Thắng","001091/CT-CCHN","Khám, chữa bệnh chuyên khoa Nội Tim mạch","Toàn thời gian",null,"07h00 - 11h00; 13h00 - 17h00","BSCKII","Trưởng khoa"]
["187","Lê Văn Cường","001186/CT-CCHN","Khám, chữa bệnh đa khoa","Toàn thời gian",null,"07h00 - 11h00; 13h00 - 17h00","BSCKII","Phó\nTrưởng khoa"]
["188","Đoàn Thanh Tuấn","000815/CT-CCHN","Khám, chữa bệnh Nội Tim mạch","Toàn thời gian",null,"07h00 - 11h00; 13h00 - 17h00","BSCKII","Phó\nTrưởng khoa"]
["189","Trần Quốc Huy","000299/CT-CCHN","Khám, chữa bệnh đa khoa","Toàn thời gian",null,"07h00 - 11h00; 13h00 - 17h00","BSCKI"]
["190","Lữ Nhật Trường","004282/CT-CCHN","Khám bệnh, chữa bệnh Nội khoa","Toàn thời gian",null,"07h00 - 11h00; 13h00 - 17h00","BSCKI"]
["191","Đặng Hoài An","005902/CT-CCHN","Khám bệnh, chữa bệnh Nội khoa","Toàn thời gian",null,"07h00 - 11h00; 13h00 - 17h00","Bác sĩ"]
["192","Đỗ Thế Kiệt","005890/CT-CCHN","Khám bệnh, chữa bệnh Nội khoa","Toàn thời gian",null,"07h00 - 11h00; 13h00 - 17h00","Bác sĩ"]
["193","Võ Thị Thúy Diễm","005892/CT-CCHN","Khám, chữa bệnh Nội Tim mạch","Toàn thời gian",null,"07h00 - 11h00; 13h00 - 17h00","Bác sĩ"]
["194","Lê Hoàng Ca","006361/CT-CCHN","Khám bệnh, chữa bệnh Nội khoa","Toàn thời gian",null,"07h00 - 11h00; 13h00 - 17h00","Bác sĩ"]
["195","Nguyễn Thanh Tùng","006425/CT-CCHN","Khám bệnh, chữa bệnh Nội khoa","Toàn thời gian",null,"07h00 - 11h00; 13h00 - 17h00","Bác sĩ"]
["196","Nguyễn Tấn Khanh","007070/CT-CCHN","Khám bệnh, chữa bệnh nội khoa","Toàn thời gian",null,"07h00 - 11h00; 13h00 - 17h00","Bác sĩ"]
["197","Hà Thị Bích Vân","007041/CT-CCHN","Khám bệnh, chữa bệnh nội khoa","Toàn thời gian",null,"07h00 - 11h00; 13h00 - 17h00","Bác sĩ"]
["198","Trương Lê Bích Trân","006987/CT-CCHN","Khám bệnh, chữa bệnh nội khoa","Toàn thời gian",null,"07h00 - 11h00; 13h00 - 17h00","Bác sĩ"]
["199","Phạm Thị Thảo Trinh","007087/CT-CCHN","Khám bệnh, chữa bệnh nội khoa","Toàn thời gian",null,"07h00 - 11h00; 13h00 - 17h00","Bác sĩ"]
["200","Phạm Đặng Hoài Thương","006989/CT-CCHN","Khám bệnh, chữa bệnh nội khoa","Toàn thời gian",null,"07h00 - 11h00; 13h00 - 17h00","Bác sĩ"]
["201","Nguyễn Phúc Nguyên","006988/CT-CCHN","Khám bệnh, chữa bệnh nội khoa","Toàn thời gian",null,"07h00 - 11h00; 13h00 - 17h00","Bác sĩ"]
["202","Trần Hoàng Lâm Duy","007449/CT-CCHN","Khám bệnh, chữa bệnh Nội khoa","Toàn thời gian",null,"07h00 - 11h00; 13h00 - 17h00","Bác sĩ"]
["203","Lê Chí Cường","007455/CT-CCHN","Khám bệnh, chữa bệnh nội khoa","Toàn thời gian",null,"07h00 - 11h00; 13h00 - 17h00","Bác sĩ"]
["204","Phạm Công Định","007789/CT-CCHN","Khám bệnh, chữa bệnh nội khoa","Toàn thời gian",null,"07h00 - 11h00; 13h00 - 17h00","Bác sĩ"]
["205","Nguyễn Thị Diễm","003436/BYT-CCHN","Khám bệnh, chữa bệnh chuyên khoa nội tổng hợp","Bán thời gian","2,3,4,5,6,7,CN","0700 - 1100, 1300 - 1700","TS.BS","BS GV ĐHDYCT"]
["206","Nguyễn Thị Ngọc Hài","001623/ST-CCHN","Thực hiện phạm vi hoạt động chuyên môn theo quy định tại Quyết định số 41/2005/QĐ-BNV ngày 22/4/2005 của Bộ trửơng Bộ Nội vụ về việc ban hành tiêu chuẩn nghiệp vụ các ngạch viên chức y tế điều dưỡng","Toàn thời gian",null,"07h00 - 11h00; 13h00 - 17h00","ĐDCKI","ĐDTK"]
["207","Lê Công Thoại","004806/CT-CCHN",{"$f":"VLOOKUP(B222,'[1]ĐÃ có CCHN'!$B$3:$I$889,4,FALSE)","v":"Thực hiện theo chức năng nhiệm vụ của Điều dưỡng quy định tại Thông tư liên tịch số 26/2015/TTLT-BYT-BNV ngày 07/10/2015."},"Toàn thời gian",null,"07h00 - 11h00; 13h00 - 17h00","CNĐD"]
["208","Hạ Thị Hồng Ngân","004759/CT-CCHN",{"$f":"VLOOKUP(B223,'[1]ĐÃ có CCHN'!$B$3:$I$889,4,FALSE)","v":"Thực hiện theo chức năng nhiệm vụ của Điều dưỡng quy định tại Thông tư liên tịch số 26/2015/TTLT-BYT-BNV ngày 07/10/2015."},"Toàn thời gian",null,"07h00 - 11h00; 13h00 - 17h00","CNĐD"]
["209","Ngụy Thị Kiều Trang","005124/CT-CCHN",{"$f":"VLOOKUP(B224,'[1]ĐÃ có CCHN'!$B$3:$I$889,4,FALSE)","v":"Thực hiện theo chức năng nhiệm vụ của Điều dưỡng quy định tại Thông tư liên tịch số 26/2015/TTLT-BYT-BNV ngày 07/10/2015."},"Toàn thời gian",null,"07h00 - 11h00; 13h00 - 17h00","CNĐD"]
["210","Lâm Thị Thùy Vân","003143/CT-CCHN",{"$f":"VLOOKUP(B225,'[1]ĐÃ có CCHN'!$B$3:$I$889,4,FALSE)","v":"Thực hiện các kỹ thuật điều dưỡng cơ bản"},"Toàn thời gian",null,"07h00 - 11h00; 13h00 - 17h00","CNĐD"]
["211","Nguyễn Thị Bé Tư","002931/CT-CCHN",{"$f":"VLOOKUP(B226,'[1]ĐÃ có CCHN'!$B$3:$I$889,4,FALSE)","v":"Thực hiện các kỹ thuật điều dưỡng cơ bản"},"Toàn thời gian",null,"07h00 - 11h00; 13h00 - 17h00","CNĐD"]
["212","Nguyễn Thị Thúy Diễm","003227/CT-CCHN",{"$f":"VLOOKUP(B227,'[1]ĐÃ có CCHN'!$B$3:$I$889,4,FALSE)","v":"Thực hiện các kỹ thuật điều dưỡng cơ bản"},"Toàn thời gian",null,"07h00 - 11h00; 13h00 - 17h00","CNĐD"]
["213","Phùng Thị Ngọc","004892/CT-CCHN",{"$f":"VLOOKUP(B228,'[1]ĐÃ có CCHN'!$B$3:$I$889,4,FALSE)","v":"Thực hiện theo chức năng nhiệm vụ của Điều dưỡng quy định tại Thông tư liên tịch số 26/2015/TTLT-BYT-BNV ngày 07/10/2015."},"Toàn thời gian",null,"07h00 - 11h00; 13h00 - 17h00","ĐDCĐ/CNĐD"]
["214","Nguyễn Thị Kim Chi","005196/CT-CCHN",{"$f":"VLOOKUP(B229,'[1]ĐÃ có CCHN'!$B$3:$I$889,4,FALSE)","v":"Thực hiện theo chức năng nhiệm vụ của Điều dưỡng quy định tại Thông tư liên tịch số 26/2015/TTLT-BYT-BNV ngày 07/10/2015."},"Toàn thời gian",null,"07h00 - 11h00; 13h00 - 17h00","CNĐD"]
["215","Tiên Thị Diệu Ngọc","005117/CT-CCHN",{"$f":"VLOOKUP(B230,'[1]ĐÃ có CCHN'!$B$3:$I$889,4,FALSE)","v":"Thực hiện theo chức năng nhiệm vụ của Điều dưỡng quy định tại Thông tư liên tịch số 26/2015/TTLT-BYT-BNV ngày 07/10/2015."},"Toàn thời gian",null,"07h00 - 11h00; 13h00 - 17h00","ĐDCĐ"]
["216","Nguyễn Trọng Khanh","002951/CT-CCHN",{"$f":"VLOOKUP(B231,'[1]ĐÃ có CCHN'!$B$3:$I$889,4,FALSE)","v":"Thực hiện các kỹ thuật điều dưỡng cơ bản chuyên nghành Đa khoa"},"Toàn thời gian",null,"07h00 - 11h00; 13h00 - 17h00","ĐDCĐ"]
["217","Lê Hoàng Thanh","002928/CT-CCHN",{"$f":"VLOOKUP(B232,'[1]ĐÃ có CCHN'!$B$3:$I$889,4,FALSE)","v":"Thực hiện các kỹ thuật điều dưỡng cơ bản"},"Toàn thời gian",null,"07h00 - 11h00; 13h00 - 17h00","ĐDTC"]
["218","Nguyễn Hải Yến","001353/CT-CCHN",{"$f":"VLOOKUP(B233,'[1]ĐÃ có CCHN'!$B$3:$I$889,4,FALSE)","v":"Thực hiện các kỹ thuật điều dưỡng cơ bản"},"Toàn thời gian",null,"07h00 - 11h00; 13h00 - 17h00","CNĐD"]
["219","Nguyễn Thị Thanh Tú","007700/CT-CCHN","Thực hiện theo chức năng nhiệm vụ của Điều dưỡng quy định tại Thông tư liên tịch số 26/2015/TTLT-BYT-BNV ngày 07/10/2015.","Toàn thời gian",null,"07h00 - 11h00; 13h00 - 17h00","CNĐD"]
["220","Phan Công Danh","007477/CT-CCHN","Thực hiện theo chức năng nhiệm vụ của Điều dưỡng quy định tại Thông tư liên tịch số 26/2015/TTLT-BYT-BNV ngày 07/10/2015.","Toàn thời gian",null,"07h00 - 11h00; 13h00 - 17h00","CNĐD"]
["221","Nguyễn Ngô Minh Tuấn","006721/CT-CCHN",{"$f":"VLOOKUP(B236,'[1]ĐÃ có CCHN'!$B$3:$I$889,4,FALSE)","v":"Thực hiện theo chức năng nhiệm vụ của Điều dưỡng quy định tại Thông tư liên tịch số 26/2015/TTLT-BYT-BNV ngày 07/10/2015."},"Toàn thời gian",null,"07h00 - 11h00; 13h00 - 17h00","ĐDCĐ"]
["222","Huỳnh Minh Thái","005119/CT-CCHN",{"$f":"VLOOKUP(B237,'[1]ĐÃ có CCHN'!$B$3:$I$889,4,FALSE)","v":"Thực hiện theo chức năng nhiệm vụ của Điều dưỡng quy định tại Thông tư liên tịch số 26/2015/TTLT-BYT-BNV ngày 07/10/2015."},"Toàn thời gian",null,"07h00 - 11h00; 13h00 - 17h00","ĐDCĐ"]
["223","Nguyễn Thị Thanh Hà","006093/CT-CCHN",{"$f":"VLOOKUP(B238,'[1]ĐÃ có CCHN'!$B$3:$I$889,4,FALSE)","v":"Thực hiện theo chức năng nhiệm vụ của Điều dưỡng quy định tại Thông tư liên tịch số 26/2015/TTLT-BYT-BNV ngày 07/10/2015."},"Toàn thời gian",null,"07h00 - 11h00; 13h00 - 17h00","ĐDCĐ"]
["224","Nguyễn Văn Duy","005118/CT-CCHN",{"$f":"VLOOKUP(B239,'[1]ĐÃ có CCHN'!$B$3:$I$889,4,FALSE)","v":"Thực hiện theo chức năng nhiệm vụ của Điều dưỡng quy định tại Thông tư liên tịch số 26/2015/TTLT-BYT-BNV ngày 07/10/2015."},"Toàn thời gian",null,"07h00 - 11h00; 13h00 - 17h00","ĐDCĐ"]
["225","Lương Hòa Hưng","007693/CT-CCHN","Thực hiện theo chức năng nhiệm vụ của Điều dưỡng quy định tại Thông tư liên tịch số 26/2015/TTLT-BYT-BNV ngày 07/10/2015.","Toàn thời gian",null,"07h00 - 11h00; 13h00 - 17h00","CĐĐD"]
["226","Nguyễn Hoàng Thêm","004498/CT-CCHN","Thực hiện theo chức năng nhiệm vụ của Điều dưỡng quy định tại Thông tư liên tịch số 26/2015/TTLT-BYT-BNV ngày 07/10/2015.","Toàn thời gian",null,"07h00 - 11h00; 13h00 - 17h00","CĐĐD"]
["227","Lưu Ngọc Trân","002922/CT-CCHN","Khám bệnh, chữa bệnh đa khoa - Nội tiết","Toàn thời gian",null,"07h00 - 11h00; 13h00 - 17h00","BSCKII","Trưởng khoa"]
["228","Nguyễn Thị Cẩm Nhung","005899/CT-CCHN","Khám bệnh, chữa bệnh Nội khoa","Toàn thời gian",null,"07h00 - 11h00; 13h00 - 17h00","Bác sĩ"]
["229","Nguyễn Hoàng Thủy Tiên","007598/CT-CCHN","Khám bệnh, chữa bệnh nội khoa","Toàn thời gian",null,"07h00 - 11h00; 13h00 - 17h00","Bác sĩ"]
["230","Nguyễn Thị Kiều Oanh","006407/CT-CCHN","Khám bệnh, chữa bệnh Nội khoa","Toàn thời gian",null,"07h00 - 11h00; 13h00 - 17h00","Bác sĩ"]
["231","Nguyễn Tường Vi","006547/CT-CCHN","Khám bệnh, chữa bệnh Nội khoa","Toàn thời gian",null,"07h00 - 11h00; 13h00 - 17h00","Bác sĩ"]
["232","Võ Thị Phương Đài","002926/CT-CCHN",{"$f":"VLOOKUP(B247,'[1]ĐÃ có CCHN'!$B$3:$I$889,4,FALSE)","v":"Thực hiện các kỹ thuật điều dưỡng cơ bản"},"Toàn thời gian",null,"07h00 - 17h00","ĐDCKI","ĐDTK"]
["233","Nguyễn Thị Thương","004712/CT-CCHN","Thực hiện theo chức năng nhiệm vụ của Điều dưỡng quy định tại Thông tư liên tịch số 26/2015/TTLT-BYT-BNV ngày 07/10/2015.","Toàn thời gian",null,"07h00 - 11h00; 13h00 - 17h00","CNĐD"]
["234","Nguyễn Thị Thanh Hằng","005190/CT-CCHN",{"$f":"VLOOKUP(B249,'[1]ĐÃ có CCHN'!$B$3:$I$889,4,FALSE)","v":"Thực hiện theo chức năng nhiệm vụ của Điều dưỡng quy định tại Thông tư liên tịch số 26/2015/TTLT-BYT-BNV ngày 07/10/2015."},"Toàn thời gian",null,"07h00 - 11h00; 13h00 - 17h00","CNĐD"]
["235","Sơn Mộng Thắm","005183/CT-CCHN",{"$f":"VLOOKUP(B250,'[1]ĐÃ có CCHN'!$B$3:$I$889,4,FALSE)","v":"Thực hiện theo chức năng nhiệm vụ của Điều dưỡng quy định tại Thông tư liên tịch số 26/2015/TTLT-BYT-BNV ngày 07/10/2015."},"Toàn thời gian",null,"07h00 - 11h00; 13h00 - 17h00","ĐDCĐ"]
["236","Phạm Thị Hải Yến","003251/CT-CCHN",{"$f":"VLOOKUP(B251,'[1]ĐÃ có CCHN'!$B$3:$I$889,4,FALSE)","v":"Thực hiện các kỹ thuật điều dưỡng cơ bản"},"Toàn thời gian",null,"07h00 - 11h00; 13h00 - 17h00","CNĐD"]
["237","Nguyễn Thị Bình Hà","002935/CT-CCHN",{"$f":"VLOOKUP(B252,'[1]ĐÃ có CCHN'!$B$3:$I$889,4,FALSE)","v":"Thực hiện các kỹ thuật điều dưỡng cơ bản"},"Toàn thời gian",null,"07h00 - 11h00; 13h00 - 17h00","ĐDTC/ ĐDCĐ"]
["238","Châu Thị Lệ Ninh","002925/CT-CCHN",{"$f":"VLOOKUP(B253,'[1]ĐÃ có CCHN'!$B$3:$I$889,4,FALSE)","v":"Thực hiện các kỹ thuật điều dưỡng cơ bản"},"Toàn thời gian",null,"07h00 - 11h00; 13h00 - 17h00","ĐDTC"]
["239","Trần Thị Mai","002924/CT-CCHN",{"$f":"VLOOKUP(B254,'[1]ĐÃ có CCHN'!$B$3:$I$889,4,FALSE)","v":"Thực hiện các kỹ thuật điều dưỡng cơ bản"},"Toàn thời gian",null,"07h00 - 11h00; 13h00 - 17h00","ĐDTC"]
["240","Nguyễn Kim Hân","004469/CT-CCHN",{"$f":"VLOOKUP(B255,'[1]ĐÃ có CCHN'!$B$3:$I$889,4,FALSE)","v":"Thực hiện theo chức năng nhiệm vụ của Điều dưỡng quy định tại Thông tư liên tịch số 26/2015/TTLT-BYT-BNV ngày 07/10/2015."},"Toàn thời gian",null,"07h00 - 11h00; 13h00 - 17h00","ĐDTC/ ĐDCĐ"]
["241","Đồng Ngọc Thuận","004871/CT-CCHN",{"$f":"VLOOKUP(B256,'[1]ĐÃ có CCHN'!$B$3:$I$889,4,FALSE)","v":"Thực hiện theo chức năng nhiệm vụ của Điều dưỡng quy định tại Thông tư liên tịch số 26/2015/TTLT-BYT-BNV ngày 07/10/2015."},"Toàn thời gian",null,"07h00 - 11h00; 13h00 - 17h00","ĐDTC"]
["242","Trần Thị Thanh Hoa","003228/CT-CCHN","Khám bệnh, chữa bệnh Nội khoa; Tiêu hoá","Toàn thời gian",null,"07h00 - 11h00; 13h00 - 17h00","Thạc sĩ Bác sĩ","Trưởng khoa"]
["243","Lê Thoại Dung","000641/CT-CCHN","Khám bệnh, chữa bệnh chuyên khoa Nội","Toàn thời gian",null,"07h00 - 11h00; 13h00 - 17h00","BSCKII","Phó\nTrưởng khoa"]
["244","Nguyễn Kim Phụng","003235/CT-CCHN","khám bệnh, chữa bệnh đa khoa","Toàn thời gian",null,"07h00 - 11h00; 13h00 - 17h00","BSCKI"]
["245","Nguyễn Hoàng Nam","003940/CT-CCHN","Khám bệnh, chữa bệnh Nội khoa; Nội soi tiêu hoá","Toàn thời gian",null,"07h00 - 11h00; 13h00 - 17h00","Thạc sĩ Bác sĩ"]
["246","Trần Thị Mỹ Hạnh","005578/CT-CCHN","khám bệnh, chữa bệnh đa khoa","Toàn thời gian",null,"07h00 - 11h00; 13h00 - 17h00","Bác sĩ"]
["247","Đặng Lê Trang Nguyên","006495/CT-CCHN","Khám bệnh, chữa bệnh Nội khoa","Toàn thời gian",null,"07h00 - 11h00; 13h00 - 17h00","Bác sĩ"]
["248","Tiêu Trọng Nhân","007007/CT-CCHN","Khám bệnh, chữa bệnh nội khoa","Toàn thời gian",null,"07h00 - 11h00; 13h00 - 17h00","Bác sĩ"]
["249","Lê Thị Mộng Thi","003108/CT-CCHN",{"$f":"VLOOKUP(B264,'[1]ĐÃ có CCHN'!$B$3:$I$889,4,FALSE)","v":"Thực hiện các kỹ thuật điều dưỡng cơ bản"},"Toàn thời gian",null,"07h00 - 11h00; 13h00 - 17h00","ĐDTC/ ĐDCĐ/\nCNĐD","Điều dưỡng trưởng khoa"]
["250","Nguyễn Thị Thúy Hằng","003105/CT-CCHN",{"$f":"VLOOKUP(B265,'[1]ĐÃ có CCHN'!$B$3:$I$889,4,FALSE)","v":"Thực hiện các kỹ thuật điều dưỡng cơ bản và các kỹ thuật điều dưỡng chuyên khoa"},"Toàn thời gian",null,"07h00 - 11h00; 13h00 - 17h00","CNĐD"]
["251","Phạm Thị Ngọc Hân","006285/CT-CCHN",{"$f":"VLOOKUP(B266,'[1]ĐÃ có CCHN'!$B$3:$I$889,4,FALSE)","v":"Thực hiện theo chức năng nhiệm vụ của Điều dưỡng quy định tại Thông tư liên tịch số 26/2015/TTLT-BYT-BNV ngày 07/10/2015."},"Toàn thời gian",null,"07h00 - 11h00; 13h00 - 17h00","ĐDCĐ"]
["252","Lê Thị Tiểu Phiên","006487/CT-CCHN",{"$f":"VLOOKUP(B267,'[1]ĐÃ có CCHN'!$B$3:$I$889,4,FALSE)","v":"Thực hiện theo chức năng nhiệm vụ của Điều dưỡng quy định tại Thông tư liên tịch số 26/2015/TTLT-BYT-BNV ngày 07/10/2015."},"Toàn thời gian",null,"07h00 - 11h00; 13h00 - 17h00","ĐDCĐ"]
["253","Phùng Thị Mỹ Viện","004607/CT-CCHN",{"$f":"VLOOKUP(B268,'[1]ĐÃ có CCHN'!$B$3:$I$889,4,FALSE)","v":"Thực hiện theo chức năng nhiệm vụ của Điều dưỡng quy định tại Thông tư liên tịch số 26/2015/TTLT-BYT-BNV ngày 07/10/2015."},"Toàn thời gian",null,"07h00 - 11h00; 13h00 - 17h00","ĐDTC"]
["254","Lê Thị Tuyết","003110/CT-CCHN",{"$f":"VLOOKUP(B269,'[1]ĐÃ có CCHN'!$B$3:$I$889,4,FALSE)","v":"Thực hiện các kỹ thuật điều dưỡng cơ bản"},"Toàn thời gian",null,"07h00 - 11h00; 13h00 - 17h00","ĐDTC/ ĐDCĐ"]
["255","Nguyễn Thị Thúy Hằng","004033/CT-CCHN",{"$f":"VLOOKUP(B270,'[1]ĐÃ có CCHN'!$B$3:$I$889,4,FALSE)","v":"Thực hiện các kỹ thuật điều dưỡng cơ bản và các kỹ thuật điều dưỡng chuyên khoa"},"Toàn thời gian",null,"07h00 - 11h00; 13h00 - 17h00","ĐDTC/ ĐDCĐ/\nCNĐD"]
["256","Trần Văn Sang","004935/CT-CCHN",{"$f":"VLOOKUP(B271,'[1]ĐÃ có CCHN'!$B$3:$I$889,4,FALSE)","v":"Thực hiện theo chức năng nhiệm vụ của Điều dưỡng quy định tại Thông tư liên tịch số 26/2015/TTLT-BYT-BNV ngày 07/10/2015."},"Toàn thời gian",null,"07h00 - 11h00; 13h00 - 17h00","ĐDCĐ"]
["257","Lê Minh Khánh","005929/CT-CCHN",{"$f":"VLOOKUP(B272,'[1]ĐÃ có CCHN'!$B$3:$I$889,4,FALSE)","v":"Thực hiện theo chức năng nhiệm vụ của Điều dưỡng quy định tại Thông tư liên tịch số 26/2015/TTLT-BYT-BNV ngày 07/10/2015."},"Toàn thời gian",null,"07h00 - 11h00; 13h00 - 17h00","ĐDTC/ ĐDCĐ"]
["258","Kha Lâm Ngọc Tỹ","005577/CT-CCHN",{"$f":"VLOOKUP(B273,'[1]ĐÃ có CCHN'!$B$3:$I$889,4,FALSE)","v":"Thực hiện theo chức năng nhiệm vụ của Điều dưỡng quy định tại Thông tư liên tịch số 26/2015/TTLT-BYT-BNV ngày 07/10/2015."},"Toàn thời gian",null,"07h00 - 11h00; 13h00 - 17h00","ĐDTC"]
["259","Nguyễn Lập Phụng Uyên","006399/CT-CCHN",{"$f":"VLOOKUP(B274,'[1]ĐÃ có CCHN'!$B$3:$I$889,4,FALSE)","v":"Thực hiện theo chức năng nhiệm vụ của Điều dưỡng quy định tại Thông tư liên tịch số 26/2015/TTLT-BYT-BNV ngày 07/10/2015."},"Toàn thời gian",null,"07h00 - 11h00; 13h00 - 17h00","ĐDCĐ"]
["260","Nguyễn Hoàng Bảo Ngọc","000016/CT-CCHN","Khám, chữa bệnh đa khoa","Toàn thời gian",null,"07h00 - 11h00; 13h00 - 17h00","BSCKII","Trưởng khoa"]
["261","Lê Quốc Việt","002962/CT-CCHN","Khám bệnh, chữa bệnh đa khoa","Toàn thời gian",null,"07h00 - 11h00; 13h00 - 17h00","BSCKII","Phó\nTrưởng khoa"]
["262","Nguyễn Thị Tiền","004188/CT-CCHN","Khám bệnh, chữa bệnh Nội khoa","Toàn thời gian",null,"07h00 - 11h00; 13h00 - 17h00","BSCKI"]
["263","Đặng Hoài Thu","004424/CT-CCHN","khám bệnh, chữa bệnh đa khoa","Toàn thời gian",null,"07h00 - 11h00; 13h00 - 17h00","Bác sĩ"]
["264","Lê Thị Hà Giang","002790/HAUG-CCHN","khám bệnh, chữa bệnh đa khoa","Toàn thời gian",null,"07h00 - 11h00; 13h00 - 17h00","Bác sĩ"]
["265","Nguyễn Văn Phát","006940/CT-CCHN","Khám bệnh, chữa bệnh đa khoa","Toàn thời gian",null,"07h00 - 11h00; 13h00 - 17h00","Bác sĩ"]
["266","Trần Hoài Ân","007119/CT-CCHN","Khám bệnh, chữa bệnh nội khoa","Toàn thời gian",null,"07h00 - 11h00; 13h00 - 17h00","Bác sĩ "]
["267","Mai Huỳnh Ngọc Tân","038791/BYT-CCHN","Khám bệnh, chữa bệnh chuyên khoa nội khoa","Bán thời gian","2,3,4,5,6,7,CN","0700 - 1100, 1300 - 1700","Bác sĩ"]
["268","Nguyễn Kim Sơn","002948/CT-CCHN",{"$f":"VLOOKUP(B283,'[1]ĐÃ có CCHN'!$B$3:$I$889,4,FALSE)","v":"Thực hiện các kỹ thuật điều dưỡng cơ bản"},"Toàn thời gian",null,"07h00 - 11h00; 13h00 - 17h00","CNĐD","ĐDTK"]
["269","Võ Thị Hoa Lý","004611/CT-CCHN",{"$f":"VLOOKUP(B284,'[1]ĐÃ có CCHN'!$B$3:$I$889,4,FALSE)","v":"Thực hiện theo chức năng nhiệm vụ của Điều dưỡng quy định tại Thông tư liên tịch số 26/2015/TTLT-BYT-BNV ngày 07/10/2015."},"Toàn thời gian",null,"07h00 - 11h00; 13h00 - 17h00","CNĐD"]
["270","Võ Minh Thiện","0003139/VL-CCHN",{"$f":"VLOOKUP(B285,'[1]ĐÃ có CCHN'!$B$3:$I$889,4,FALSE)","v":"Thực hiện phạm vị hoạt dộng chuyên môn theo quy định tại Thông tư số 26/2015/TTLT-BYT-BNV ngày 07 tháng 10 năm 2015 quy định mã số, tiêu chuẩn chức danh nghề nghiệp điều dưỡng"},"Toàn thời gian",null,"07h00 - 11h00; 13h00 - 17h00","CNĐD"]
["271","Trần Tâm Nhỏ","002953/CT-CCHN",{"$f":"VLOOKUP(B286,'[1]ĐÃ có CCHN'!$B$3:$I$889,4,FALSE)","v":"Thực hiện các kỹ thuật điều dưỡng cơ bản"},"Toàn thời gian",null,"07h00 - 11h00; 13h00 - 17h00","CNĐD"]
["272","Huỳnh Phúc Lập","003984/CT-CCHN",{"$f":"VLOOKUP(B287,'[1]ĐÃ có CCHN'!$B$3:$I$889,4,FALSE)","v":"Thực hiện các kỹ thuật điều dưỡng cơ bản"},"Toàn thời gian",null,"07h00 - 11h00; 13h00 - 17h00","CNĐD"]
["273","Huỳnh Thị Diễm Trang","002954/CT-CCHN",{"$f":"VLOOKUP(B288,'[1]ĐÃ có CCHN'!$B$3:$I$889,4,FALSE)","v":"Thực hiện các kỹ thuật điều dưỡng cơ bản"},"Toàn thời gian",null,"07h00 - 11h00; 13h00 - 17h00","CNĐD"]
["274","Nguyễn Thị Hồng An","002967/CT-CCHN",{"$f":"VLOOKUP(B289,'[1]ĐÃ có CCHN'!$B$3:$I$889,4,FALSE)","v":"Thực hiện các kỹ thuật điều dưỡng cơ bản"},"Toàn thời gian",null,"07h00 - 11h00; 13h00 - 17h00","CNĐD"]
["275","Trần Văn Thư","003971/CT-CCHN",{"$f":"VLOOKUP(B290,'[1]ĐÃ có CCHN'!$B$3:$I$889,4,FALSE)","v":"thực hiện các kỹ thuật điều dưỡng cơ bản và một số kỹ thuật điều dưỡng chuyên khoa"},"Toàn thời gian",null,"07h00 - 11h00; 13h00 - 17h00","ĐDCĐ"]
["276","Trần Hửu Toản","004801/CT-CCHN",{"$f":"VLOOKUP(B291,'[1]ĐÃ có CCHN'!$B$3:$I$889,4,FALSE)","v":"Thực hiện theo chức năng nhiệm vụ của Điều dưỡng quy định tại Thông tư liên tịch số 26/2015/TTLT-BYT-BNV ngày 07/10/2015."},"Toàn thời gian",null,"07h00 - 11h00; 13h00 - 17h00","ĐDCĐ"]
["277","Đặng Thị Ngọc","004490/CT-CCHN",{"$f":"VLOOKUP(B292,'[1]ĐÃ có CCHN'!$B$3:$I$889,4,FALSE)","v":"Thực hiện theo chức năng nhiệm vụ của Điều dưỡng quy định tại Thông tư liên tịch số 26/2015/TTLT-BYT-BNV ngày 07/10/2015."},"Toàn thời gian",null,"07h00 - 11h00; 13h00 - 17h00","ĐDCĐ"]
["278","Đặng Thị Khánh","004535/CT-CCHN",{"$f":"VLOOKUP(B293,'[1]ĐÃ có CCHN'!$B$3:$I$889,4,FALSE)","v":"Thực hiện theo chức năng nhiệm vụ của Điều dưỡng quy định tại Thông tư liên tịch số 26/2015/TTLT-BYT-BNV ngày 07/10/2015."},"Toàn thời gian",null,"07h00 - 11h00; 13h00 - 17h00","ĐDCĐ"]
["279","Nguyễn Việt Thống","005593/CT-CCHN",{"$f":"VLOOKUP(B294,'[1]ĐÃ có CCHN'!$B$3:$I$889,4,FALSE)","v":"Thực hiện theo chức năng nhiệm vụ của Điều dưỡng quy định tại Thông tư liên tịch số 26/2015/TTLT-BYT-BNV ngày 07/10/2015."},"Toàn thời gian",null,"07h00 - 11h00; 13h00 - 17h00","ĐDCĐ"]
["280","Đoàn Thị Diễm Trinh","005769/CT-CCHN",{"$f":"VLOOKUP(B295,'[1]ĐÃ có CCHN'!$B$3:$I$889,4,FALSE)","v":"Thực hiện theo chức năng nhiệm vụ của Điều dưỡng quy định tại Thông tư liên tịch số 26/2015/TTLT-BYT-BNV ngày 07/10/2015."},"Toàn thời gian",null,"07h00 - 11h00; 13h00 - 17h00","ĐDCĐ"]
["281","Trần Văn Út","003970/CT-CCHN",{"$f":"VLOOKUP(B296,'[1]ĐÃ có CCHN'!$B$3:$I$889,4,FALSE)","v":"Thực hiện các kỹ thuật điều dưỡng cơ bản"},"Toàn thời gian",null,"07h00 - 11h00; 13h00 - 17h00","CNĐD"]
["282","Nguyễn Thị Mộng Tuyền","002958/CT-CCHN",{"$f":"VLOOKUP(B297,'[1]ĐÃ có CCHN'!$B$3:$I$889,4,FALSE)","v":"Thực hiện các kỹ thuật điều dưỡng cơ bản"},"Toàn thời gian",null,"07h00 - 11h00; 13h00 - 17h00","ĐDTC"]
["283","Trần Quốc Việt","002946/CT-CCHN",{"$f":"VLOOKUP(B298,'[1]ĐÃ có CCHN'!$B$3:$I$889,4,FALSE)","v":"Thực hiện các kỹ thuật điều dưỡng cơ bản"},"Toàn thời gian",null,"07h00 - 11h00; 13h00 - 17h00","CNĐD"]
["284","Ngô Thị Thu Hà","002950/CT-CCHN",{"$f":"VLOOKUP(B299,'[1]ĐÃ có CCHN'!$B$3:$I$889,4,FALSE)","v":"Thực hiện các kỹ thuật điều dưỡng cơ bản"},"Toàn thời gian",null,"07h00 - 11h00; 13h00 - 17h00","ĐDTC"]
["285","Lê Thị Cẩm Loan","002966/CT-CCHN",{"$f":"VLOOKUP(B300,'[1]ĐÃ có CCHN'!$B$3:$I$889,4,FALSE)","v":"Thực hiện các kỹ thuật điều dưỡng cơ bản"},"Toàn thời gian",null,"07h00 - 11h00; 13h00 - 17h00","ĐDTC/ ĐDCĐ/\nCNĐD"]
["286","Nguyễn Thị Huyền","002963/CT-CCHN",{"$f":"VLOOKUP(B301,'[1]ĐÃ có CCHN'!$B$3:$I$889,4,FALSE)","v":"Thực hiện các kỹ thuật điều dưỡng cơ bản"},"Toàn thời gian",null,"07h00 - 11h00; 13h00 - 17h00","ĐDTC"]
["287","Lê Ánh Kiều","002943/CT-CCHN",{"$f":"VLOOKUP(B302,'[1]ĐÃ có CCHN'!$B$3:$I$889,4,FALSE)","v":"Thực hiện các kỹ thuật điều dưỡng cơ bản"},"Toàn thời gian",null,"07h00 - 11h00; 13h00 - 17h00","ĐDTC/\nCNĐD"]
["288","Thạch Thị Thanh Trúc","004989/CT-CCHN",{"$f":"VLOOKUP(B303,'[1]ĐÃ có CCHN'!$B$3:$I$889,4,FALSE)","v":"Thực hiện theo chức năng nhiệm vụ của Điều dưỡng quy định tại Thông tư liên tịch số 26/2015/TTLT-BYT-BNV ngày 07/10/2015."},"Toàn thời gian",null,"07h00 - 11h00; 13h00 - 17h00","ĐDTC/ ĐDCĐ"]
["289","Võ Thị Như Quỳnh","004727/CT-CCHN",{"$f":"VLOOKUP(B304,'[1]ĐÃ có CCHN'!$B$3:$I$889,4,FALSE)","v":"thực hiện theo chức năng nhiệm vụ của điều dưỡng quy định theo Thông tư liên tịch số 26/2015/TTLT-BYT ngày 07/10/2015"},"Toàn thời gian",null,"07h00 - 11h00; 13h00 - 17h00","CNĐD"]
["290","Trần Ngọc Hồ","005592/CT-CCHN",{"$f":"VLOOKUP(B305,'[1]ĐÃ có CCHN'!$B$3:$I$889,4,FALSE)","v":"Thực hiện theo chức năng nhiệm vụ của Điều dưỡng quy định tại Thông tư liên tịch số 26/2015/TTLT-BYT-BNV ngày 07/10/2015."},"Toàn thời gian",null,"07h00 - 11h00; 13h00 - 17h00","CNĐD"]
["291","Lê Thị Ngọc Hân","006314/CT-CCHN","thực hiện chức năng nhiệm vụ của điều dưỡng quy định theo Thông tư liên tịch số 26/2015/TTLT-BYT ngày 07/10/2015","Toàn thời gian",null,"07h00 - 11h00; 13h00 - 17h00","CNĐD"]
["292","Nguyễn Lê Thành","004670/CT-CCHN",{"$f":"VLOOKUP(B307,'[1]ĐÃ có CCHN'!$B$3:$I$889,4,FALSE)","v":"Thực hiện theo chức năng nhiệm vụ của Điều dưỡng quy định tại Thông tư liên tịch số 26/2015/TTLT-BYT-BNV ngày 07/10/2015."},"Toàn thời gian",null,"07h00 - 11h00; 13h00 - 17h00","ĐDCĐ"]
["293","Nguyễn Ngọc Băng Tâm","006039/CT-CCHN",{"$f":"VLOOKUP(B308,'[1]ĐÃ có CCHN'!$B$3:$I$889,4,FALSE)","v":"Thực hiện theo chức năng nhiệm vụ của Điều dưỡng quy định tại Thông tư liên tịch số 26/2015/TTLT-BYT-BNV ngày 07/10/2015."},"Toàn thời gian",null,"07h00 - 11h00; 13h00 - 17h00","ĐDCĐ"]
["294","Nguyễn Hữu Lợi","006383/CT-CCHN",{"$f":"VLOOKUP(B309,'[1]ĐÃ có CCHN'!$B$3:$I$889,4,FALSE)","v":"Thực hiện theo chức năng nhiệm vụ của Điều dưỡng quy định tại Thông tư liên tịch số 26/2015/TTLT-BYT-BNV ngày 07/10/2015."},"Toàn thời gian",null,"07h00 - 11h00; 13h00 - 17h00","ĐDCĐ"]
["295","Thái Ngọc Hưng","000994/AG-CCHN",{"$f":"VLOOKUP(B310,'[1]ĐÃ có CCHN'!$B$3:$I$889,4,FALSE)","v":"thực hiện theo Quyết định số 41/2005/QĐ-BNV ngày 22/4/2005 của Bộ Nội vụ"},"Toàn thời gian",null,"07h00 - 11h00; 13h00 - 17h00","ĐDTC/ ĐDCĐ"]
["296","Lê Thị Hoàng Mai","002944/CT-CCHN","Thực hiện một số kỹ thuật điều dưỡng cơ bản và điều dưỡng chuyên khoa","Toàn thời gian",null,"07h00 - 11h00; 13h00 - 17h00","ĐDCĐ"]
["297","Nguyễn Huỳnh Tú Quyên","002929/CT-CCHN","Thực hiện các kỹ thuật điều dưỡng cơ bản ","Toàn thời gian",null,"07h00 - 11h00; 13h00 - 17h00","ĐDTC/ ĐDCĐ"]
["298","Nguyễn Quốc Tuấn","007721/CT-CCHN","Thực hiện theo chức năng nhiệm vụ của Điều dưỡng quy định tại Thông tư liên tịch số 26/2015/TTLT-BYT-BNV ngày 07/10/2015.","Toàn thời gian",null,"07h00 - 11h00; 13h00 - 17h00","CĐĐD"]
["299","Phạm Huỳnh Mạnh Khương","007763/CT-CCHN","Thực hiện theo chức năng nhiệm vụ của Điều dưỡng quy định tại Thông tư liên tịch số 26/2015/TTLT-BYT-BNV ngày 07/10/2015.","Toàn thời gian",null,"07h00 - 11h00; 13h00 - 17h00","CĐĐD"]
["300","Nguyễn Văn Phong","002909/CT-CCHN","Khám bệnh, chữa bệnh đa khoa","Toàn thời gian",null,"07h00 - 11h00; 13h00 - 17h00","Thạc sĩ Bác sĩ","Phó Trưởng khoa\nPhụ trách, điều hành khoa"]
["301","Nguyễn Thanh Tân","003957/CT-CCHN","Khám bệnh, chữa bệnh chuyên khoa Nội, thần kinh và tâm thần","Toàn thời gian",null,"07h00 - 11h00; 13h00 - 17h00","Thạc sĩ Bác sĩ","Phó\nTrưởng khoa"]
["302","Thạch Thị Vui","006445/CT-CCHN","Khám bệnh, chữa bệnh Nội khoa","Toàn thời gian",null,"07h00 - 11h00; 13h00 - 17h00","Bác sĩ"]
["303","Nguyễn Đăng Khoa","005396/CT-CCHN","Khám bệnh, chữa bệnh Nội khoa","Toàn thời gian",null,"07h00 - 11h00; 13h00 - 17h00","Bác sĩ"]
["304","Lê Quan Trường","006929/CT-CCHN","Khám bệnh, chữa bệnh nội khoa","Toàn thời gian",null,"07h00 - 11h00; 13h00 - 17h00","Bác sĩ"]
["305","Trương Yến Trân","007065/CT-CCHN","Khám bệnh, chữa bệnh nội khoa","Toàn thời gian",null,"07h00 - 11h00; 13h00 - 17h00","Bác sĩ"]
["306","Lê Văn Trọng Hửu","007184/CT-CCHN","Khám bệnh, chữa bệnh nội khoa","Toàn thời gian",null,"07h00 - 11h00; 13h00 - 17h00","Bác sĩ"]
["307","Huỳnh Thanh Hiền","003438/BYT-CCHN","Khám bệnh, chữa bệnh chuyên khoa nội tổng hợp","Bán thời gian","2,3,4,5,6,7,CN","0700 - 1100, 1300 - 1700","BSCKII","BS GV ĐHYDCT"]
["308","Ngô Hoàng Toàn","003343/HAUG-CCHN","Khám bệnh, chữa bệnh nội khoa","Bán thời gian","2,3,4,5,6,7,CN","0700 - 1100, 1300 - 1700","Thạc sĩ Bác sĩ","BS GV ĐHYDCT"]
["309","Nguyễn Thế Vinh","120946/CCHN-BQP","Khám bệnh, chữa bệnh nội khoa","Bán thời gian","2,3,4,5,6,7,CN","0700 - 1100, 1300 - 1700","Bác sĩ","BS GV VTT"]
["310","Nguyễn Thị Ánh Hừng","002937/CT-CCHN",{"$f":"VLOOKUP(B325,'[1]ĐÃ có CCHN'!$B$3:$I$889,4,FALSE)","v":"Thực hiện các kỹ thuật điều dưỡng cơ bản"},"Toàn thời gian",null,"07h00 - 11h00; 13h00 - 17h00","ĐDCKI","ĐDTK"]
["311","Phù Thị Mai Chiều","004396/CT-CCHN",{"$f":"VLOOKUP(B326,'[1]ĐÃ có CCHN'!$B$3:$I$889,4,FALSE)","v":"Thực hiện theo chức năng nhiệm vụ của Điều dưỡng quy định tại Thông tư liên tịch số 26/2015/TTLT-BYT-BNV ngày 07/10/2015."},"Toàn thời gian",null,"07h00 - 11h00; 13h00 - 17h00","CNĐD"]
["312","Phạm Trần Ngọc Huệ","004846/CT-CCHN",{"$f":"VLOOKUP(B327,'[1]ĐÃ có CCHN'!$B$3:$I$889,4,FALSE)","v":"Thực hiện theo chức năng nhiệm vụ của Điều dưỡng quy định tại Thông tư liên tịch số 26/2015/TTLT-BYT-BNV ngày 07/10/2015."},"Toàn thời gian",null,"07h00 - 11h00; 13h00 - 17h00","CNĐD"]
["313","Nguyễn Thị Hồng Nga","002920/CT-CCHN","Thực hiện các kỹ thuật điều dưỡng cơ bản cà một số kỹ thuật điều dưỡng chuyên khoa","Toàn thời gian",null,"07h00 - 11h00; 13h00 - 17h00","CNĐD"]
["314","Huỳnh Thị Ngọc Trân","004080/CT-CCHN","Thực hiện các kỹ thuật điều dưỡng cơ bản cà một số kỹ thuật điều dưỡng chuyên khoa","Toàn thời gian",null,"07h00 - 11h00; 13h00 - 17h00","ĐDCĐ"]
["315","Lý Thụy Phương Anh","003142/CT-CCHN","Thực hiện các kỹ thuật điều dưỡng cơ bản cà một số kỹ thuật điều dưỡng chuyên khoa","Toàn thời gian",null,"07h00 - 11h00; 13h00 - 17h00","ĐDTC/ ĐDCĐ"]
["316","Lê Thành Nghĩa","007552/CT-CCHN","Thực hiện chức năng nhiệm vụ của định theo Thông tư liên tịch số 26/2015/TTLT-BYT ngày 07/10/2018","Toàn thời gian",null,"07h00 - 11h00; 13h00 - 17h00","CNĐD"]
["317","Nguyễn Thị Ánh Phụng","004390/CT-CCHN",{"$f":"VLOOKUP(B332,'[1]ĐÃ có CCHN'!$B$3:$I$889,4,FALSE)","v":"Thực hiện theo chức năng nhiệm vụ của Điều dưỡng quy định tại Thông tư liên tịch số 26/2015/TTLT-BYT-BNV ngày 07/10/2015."},"Toàn thời gian",null,"07h00 - 11h00; 13h00 - 17h00","CNĐD"]
["318","Trịnh Huỳnh Kim Ngân","006503/CT-CCHN",{"$f":"VLOOKUP(B333,'[1]ĐÃ có CCHN'!$B$3:$I$889,4,FALSE)","v":"Thực hiện theo chức năng nhiệm vụ của Điều dưỡng quy định tại Thông tư liên tịch số 26/2015/TTLT-BYT-BNV ngày 07/10/2015."},"Toàn thời gian",null,"07h00 - 11h00; 13h00 - 17h00","CNĐD"]
["319","Nguyễn Thị Kim Thoa","004455/CT-CCHN",{"$f":"VLOOKUP(B334,'[1]ĐÃ có CCHN'!$B$3:$I$889,4,FALSE)","v":"Thực hiện theo chức năng nhiệm vụ của Điều dưỡng quy định tại Thông tư liên tịch số 26/2015/TTLT-BYT-BNV ngày 07/10/2015."},"Toàn thời gian",null,"07h00 - 11h00; 13h00 - 17h00","ĐDTC/ ĐDCĐ"]
["320","Võ Minh Sư","0005935/AG-CCHN",{"$f":"VLOOKUP(B335,'[1]ĐÃ có CCHN'!$B$3:$I$889,4,FALSE)","v":"Thực hiện theo chức năng nhiệm vụ của Điều dưỡng quy định tại Thông tư liên tịch số 26/2015/TTLT-BYT-BNV ngày 07/10/2015."},"Toàn thời gian",null,"07h00 - 11h00; 13h00 - 17h00","ĐDCĐ"]
["321","Dương Minh Quân","007727/CT-CCHN","Thực hiện theo chức năng nhiệm vụ của Điều dưỡng quy định tại Thông tư liên tịch số 26/2015/TTLT-BYT-BNV ngày 07/10/2015.","Toàn thời gian",null,"07h00 - 11h00; 13h00 - 17h00","CĐĐD"]
["322","Nguyễn Thị Nho","001971/HAUG-CCHN","Thực hiện theo chức năng nhiệm vụ của Điều dưỡng quy định tại Thông tư liên tịch số 26/2015/TTLT-BYT-BNV ngày 07/10/2015.","Toàn thời gian",null,"07h00 - 11h00; 13h00 - 17h00","CĐĐD"]
["323","Trần Thị Diễm My","007800/CT-CCHN","Thực hiện theo chức năng nhiệm vụ của Điều dưỡng quy định tại Thông tư liên tịch số 26/2015/TTLT-BYT-BNV ngày 07/10/2015.","Toàn thời gian",null,"07h00 - 11h00; 13h00 - 17h00","CĐĐD"]
["324","La Văn Phú","000444/CT-CCHN","Khám bệnh, chữa bệnh chuyên khoa Ngoại","Toàn thời gian",null,"07h00 - 11h00; 13h00 - 17h00","TS.BSCKII","Trưởng khoa"]
["325","Nguyễn Ngọc Diệp","001052/CT-CCHN","Khám, chữa bệnh chuyên khoa Ngoại","Toàn thời gian",null,"07h00 - 11h00; 13h00 - 17h00","BSCKII","Phó\nTrưởng khoa"]
["326","Tống Hải Dương","002998/CT-CCHN","Khám bệnh, chữa bệnh chuyên khoa Ngoại","Toàn thời gian",null,"07h00 - 11h00; 13h00 - 17h00","BSCKII","Phó\nTrưởng khoa"]
["327","Bùi Trọng Tiến","001005/HAUG-CCHN","Khám bệnh, chữa bệnh đa khoa","Toàn thời gian",null,"07h00 - 11h00; 13h00 - 17h00","BSCKI"]
["328","Trương Nhật Nguyên","005595/CT-CCHN","Khám bệnh, chữa bệnh Ngoại khoa","Toàn thời gian",null,"07h00 - 11h00; 13h00 - 17h00","Bác sĩ"]
["329","Dương Tuấn Tú","006456/CT-CCHN","Khám bệnh, chữa bệnh Ngoại khoa","Toàn thời gian",null,"07h00 - 11h00; 13h00 - 17h00","Bác sĩ"]
["330","Trần Minh Điền","002369/HAUG-CCHN","Khám bệnh, chữa bệnh đa khoa","Toàn thời gian",null,"07h00 - 11h00; 13h00 - 17h00","BSCKI"]
["331","Huỳnh Trọng Tính","006771/CT-CCHN","Khám bệnh, chữa bệnh Ngoại khoa","Toàn thời gian",null,"07h00 - 11h00; 13h00 - 17h00","Bác sĩ"]
["332","Trần Minh Quân","007037/CT-CCHN","Khám bệnh, chữa bệnh ngoại","Toàn thời gian",null,"07h00 - 11h00; 13h00 - 17h00","Bác sĩ"]
["333","Lê Thanh Hùng","003461/BYT-CCHN","Khám bệnh, chữa bệnh chuyên khoa Ngoại","Bán thời gian","2,3,4,5,6,7,CN","0700 - 1100, 1300 - 1700","BSCKII","BS GV ĐHYDCT"]
["334","ThS.BS. Đoàn Anh Vũ","026565/BYT-CCHN","Khám bệnh, chữa bệnh chuyên khoa Ngoại","Bán thời gian","2,3,4,5,6,7,CN","0700 - 1100, 1300 - 1700","Thạc sĩ Bác sĩ","BS GV ĐHYDCT"]
["335","ThBS. La Vĩnh Phúc","026479/BYT-CCHN","Khám bệnh, chữa bệnh chuyên khoa Ngoại","Bán thời gian","2,3,4,5,6,7,CN","0700 - 1100, 1300 - 1700","Thạc sĩ Bác sĩ","BS GV ĐHYDCT"]
["336","Lê Thanh Nhật Minh","006015/CT-CCHN","Khám bệnh, chữa bệnh chuyên khoa Ngoại","Bán thời gian","2,3,4,5,6,7,CN","0700 - 1100, 1300 - 1700","BSCKI","BS GV ĐHYDCT"]
["337","Hồ Văn Bình ","001042/HAUG-CCHN","Khám bệnh, chữa bệnh chuyên khoa Ngoại","Bán thời gian","2,3,4,5,6,7,CN","0700 - 1100, 1300 - 1700",null,"BS GV ĐH VTT"]
["338","Nguyễn Thị Bạch Mai","003000/CT-CCHN",{"$f":"VLOOKUP(B353,'[1]ĐÃ có CCHN'!$B$3:$I$889,4,FALSE)","v":"Thực hiện các kỹ thuật điều dưỡng cơ bản"},"Toàn thời gian",null,"07h00 - 11h00; 13h00 - 17h00","CNĐD","ĐD phụ trách"]
["339","Trần Minh Thiện","004518/CT-CCHN","Thực hiện theo chúc năng nhiệm vụ của điều dưỡng quy định theo Thông tư liên tịch số 26/2015/TTLT-BYT ngày 07/10/2015","Toàn thời gian",null,"07h00 - 11h00; 13h00 - 17h00","CNĐD"]
["340","Nguyễn Thị Nga","005096/CT-CCHN","Thực hiện theo chúc năng nhiệm vụ của điều dưỡng quy định theo Thông tư liên tịch số 26/2015/TTLT-BYT ngày 07/10/2015","Toàn thời gian",null,"07h00 - 11h00; 13h00 - 17h00","CNĐD"]
["341","Nguyễn Thị Bảo Châu","003219/CT-CCHN",{"$f":"VLOOKUP(B356,'[1]ĐÃ có CCHN'!$B$3:$I$889,4,FALSE)","v":"Thực hiện các kỹ thuật điều dưỡng cơ bản"},"Toàn thời gian",null,"07h00 - 11h00; 13h00 - 17h00","CNĐD"]
["342","Trần Thanh Liêm","002938/CT-CCHN",{"$f":"VLOOKUP(B357,'[1]ĐÃ có CCHN'!$B$3:$I$889,4,FALSE)","v":"Thực hiện các kỹ thuật điều dưỡng cơ bản"},"Toàn thời gian",null,"07h00 - 11h00; 13h00 - 17h00","CNĐD"]
["343","Nguyễn Thị Bích Phượng","003950/CT-CCHN","Thực hiện các kỹ thuật điều dưỡng cơ bản và một số kỹ thuật điều dưỡng chuyên khoa","Toàn thời gian",null,"07h00 - 11h00; 13h00 - 17h00","ĐDCĐ"]
["344","Cao Thị Minh Trang","003982/CT-CCHN","Thực hiện các kỹ thuật điều dưỡng cơ bản và một số kỹ thuật điều dưỡng chuyên khoa","Toàn thời gian",null,"07h00 - 11h00; 13h00 - 17h00","ĐDCĐ"]
["345","Nguyễn Thị Ngọc Linh","004765/CT-CCHN","Thực hiện theo chức năng nhiệm vụ của điều dưỡng quy định theo Thông tư liên tịch số 26/2015/TTLT-BYT ngày 07/10/2015","Toàn thời gian",null,"07h00 - 11h00; 13h00 - 17h00","ĐDCĐ"]
["346","Trần Thị Thảo","005532/CT-CCHN",{"$f":"VLOOKUP(B361,'[1]ĐÃ có CCHN'!$B$3:$I$889,4,FALSE)","v":"Thực hiện theo chức năng nhiệm vụ của Điều dưỡng quy định tại Thông tư liên tịch số 26/2015/TTLT-BYT-BNV ngày 07/10/2015."},"Toàn thời gian",null,"07h00 - 11h00; 13h00 - 17h00","ĐDCĐ"]
["347","Hồ Thị Thủy","005198/CT-CCHN",{"$f":"VLOOKUP(B362,'[1]ĐÃ có CCHN'!$B$3:$I$889,4,FALSE)","v":"Thực hiện theo chức năng nhiệm vụ của Điều dưỡng quy định tại Thông tư liên tịch số 26/2015/TTLT-BYT-BNV ngày 07/10/2015."},"Toàn thời gian",null,"07h00 - 11h00; 13h00 - 17h00","ĐDCĐ"]
["348","Vũ Thị Tú Nữ","002995/CT-CCHN",{"$f":"VLOOKUP(B363,'[1]ĐÃ có CCHN'!$B$3:$I$889,4,FALSE)","v":"Thực hiện các kỹ thuật điều dưỡng cơ bản"},"Toàn thời gian",null,"07h00 - 11h00; 13h00 - 17h00","CNĐD"]
["349","Huỳnh Kim Tuyến","003003/CT-CCHN",{"$f":"VLOOKUP(B364,'[1]ĐÃ có CCHN'!$B$3:$I$889,4,FALSE)","v":"Thực hiện các kỹ thuật điều dưỡng cơ bản"},"Toàn thời gian",null,"07h00 - 11h00; 13h00 - 17h00","ĐDTC/ ĐDCĐ"]
["350","Đặng Thành Tấn Phát","006290/CT-CCHN",{"$f":"VLOOKUP(B365,'[1]ĐÃ có CCHN'!$B$3:$I$889,4,FALSE)","v":"Thực hiện theo chức năng nhiệm vụ của Điều dưỡng quy định tại Thông tư liên tịch số 26/2015/TTLT-BYT-BNV ngày 07/10/2015."},"Toàn thời gian",null,"07h00 - 11h00; 13h00 - 17h00","ĐDCĐ"]
["351","Trương Thị Minh Thư","006970/CT-CCHN","Thực hiện theo chúc năng nhiệm vụ của điều dưỡng quy định theo Thông tư liên tịch số 26/2015/TTLT-BYT ngày 07/10/2015","Toàn thời gian",null,"07h00 - 11h00; 13h00 - 17h00","ĐDCĐ "]
["352","Đặng Thảo Linh","004652/CT-CCHN","Thực hiện theo chúc năng nhiệm vụ của điều dưỡng quy định theo Thông tư liên tịch số 26/2015/TTLT-BYT ngày 07/10/2015","Toàn thời gian",null,"07h00 - 11h00; 13h00 - 17h00","ĐDTC/CNĐD"]
["353","Lê Thị Hạnh Duyên","005754/CT-CCHN","Thực hiện theo chúc năng nhiệm vụ của điều dưỡng quy định theo Thông tư liên tịch số 26/2015/TTLT-BYT ngày 07/10/2015","Toàn thời gian",null,"07h00 - 11h00; 13h00 - 17h00","ĐDTC/ ĐDCĐ"]
["354","Trần Hồ Quốc","003009/CT-CCHN","Khám bệnh, chữa bệnh đa khoa - Ngoại thần kinh","Toàn thời gian",null,"07h00 - 11h00; 13h00 - 17h00","BSCKII","Phó Trưởng khoa\n(Phụ trách khoa)"]
["355","Nguyễn Tấn Luông","003229/CT-CCHN","Khám bệnh, chữa bệnh đa khoa","Toàn thời gian",null,"07h00 - 11h00; 13h00 - 17h00","Thạc sĩ Bác sĩ","Phó\nTrưởng khoa"]
["356","Huỳnh Ngọc Long","005390/CT-CCHN","Khám bệnh, chữa bệnh Ngoại khoa","Toàn thời gian",null,"07h00 - 11h00; 13h00 - 17h00","Bác sĩ"]
["357","Cao Huỳnh Nhân","006643/CT-CCHN","Khám bệnh, chữa bệnh Ngoại khoa","Toàn thời gian",null,"07h00 - 11h00; 13h00 - 17h00","Bác sĩ"]
["358","Chau Sóc Chanh","007505/CT-CCHN","Khám bệnh, chữa bệnh Ngoại khoa","Toàn thời gian",null,"07h00 - 11h00; 13h00 - 17h00","Bác sĩ"]
["359","Phạm Thị Bích Hòa","005879/CT-CCHN","Thực hiện theo chúc năng nhiệm vụ của điều dưỡng quy định theo Thông tư liên tịch số 26/2015/TTLT-BYT ngày 07/10/2015","Toàn thời gian",null,"07h00 - 11h00; 13h00 - 17h00","CNĐD"]
["360","Võ Thị Đóa","003144/CT-CCHN","Thực hiện các kỹ thuật điều dưỡng cơ bản cà một số kỹ thuật điều dưỡng chuyên khoa","Toàn thời gian",null,"07h00 - 11h00; 13h00 - 17h00","CNĐD"]
["361","Nguyễn Thị Bích Quyên","002997/CT-CCHN",{"$f":"VLOOKUP(B376,'[1]ĐÃ có CCHN'!$B$3:$I$889,4,FALSE)","v":"Thực hiện các kỹ thuật điều dưỡng cơ bản"},"Toàn thời gian",null,"07h00 - 11h00; 13h00 - 17h00","ĐDCĐ"]
["362","Nguyễn Thị Trúc","005071/CT-CCHN",{"$f":"VLOOKUP(B377,'[1]ĐÃ có CCHN'!$B$3:$I$889,4,FALSE)","v":"Thực hiện theo chức năng nhiệm vụ của Điều dưỡng quy định tại Thông tư liên tịch số 26/2015/TTLT-BYT-BNV ngày 07/10/2015."},"Toàn thời gian",null,"07h00 - 11h00; 13h00 - 17h00","ĐDCĐ"]
["363","Nguyễn Ngọc Thắm","002999/CT-CCHN",{"$f":"VLOOKUP(B378,'[1]ĐÃ có CCHN'!$B$3:$I$889,4,FALSE)","v":"Thực hiện các kỹ thuật điều dưỡng cơ bản"},"Toàn thời gian",null,"07h00 - 11h00; 13h00 - 17h00","ĐDTC/ ĐDCĐ"]
["364","Hồ Trung Nhân","002974/CT-CCHN",{"$f":"VLOOKUP(B379,'[1]ĐÃ có CCHN'!$B$3:$I$889,4,FALSE)","v":"Thực hiện các kỹ thuật điều dưỡng cơ bản"},"Toàn thời gian",null,"07h00 - 11h00; 13h00 - 17h00","ĐDTC"]
["365","Võ Thị Thu Hằng","006330/CT-CCHN","Thực hiện theo chức năng nhiệm vụ của Điều dưỡng quy định tại Thông tư liên tịch số 26/2015/TTLT-BYT-BNV ngày 07/10/2015.","Toàn thời gian",null,"07h00 - 11h00; 13h00 - 17h00","ĐDCĐ"]
["366","Lê Nguyễn Triều Vỹ","005213/CT-CCHN",{"$f":"VLOOKUP(B381,'[1]ĐÃ có CCHN'!$B$3:$I$889,4,FALSE)","v":"Thực hiện theo chức năng nhiệm vụ của Điều dưỡng quy định tại Thông tư liên tịch số 26/2015/TTLT-BYT-BNV ngày 07/10/2015."},"Toàn thời gian",null,"07h00 - 11h00; 13h00 - 17h00","ĐDCĐ "]
["367","Nguyễn Hữu Toàn","002969/CT-CCHN","Khám bệnh, chữa bệnh đa khoa, ngoại niệu","Toàn thời gian",null,"07h00 - 11h00; 13h00 - 17h00","BSCKII"," Trưởng khoa "]
["368","Nguyễn Minh Tiếu","000442/CT-CCHN","Khám bệnh, chữa bệnh chuyên khoa ngoại niệu","Toàn thời gian",null,"07h00 - 11h00; 13h00 - 17h00","Thạc sĩ Bác sĩ","Phó\nTrưởng khoa"]
["369","Võ Sơn Thùy","002970/CT-CCHN","Khám bệnh, chữa bệnh đa khoa\nChuyên khoa ngoại","Toàn thời gian",null,"07h00 - 11h00; 13h00 - 17h00","Thạc sĩ Bác sĩ"]
["370","Võ Xuân Huy","001713/CT-CCHN","Khám bệnh, chữa bệnh Ngoại Tiết niệu","Toàn thời gian",null,"07h00 - 11h00; 13h00 - 17h00","Thạc sĩ Bác sĩ"]
["371","Lý Việt Khoa","005441/CT-CCHN","Khám bệnh, chữa bệnh Ngoại khoa","Toàn thời gian",null,"07h00 - 11h00; 13h00 - 17h00","Bác sĩ"]
["372","Nguyễn Công Hậu","006467/CT-CCHN","Khám bệnh, chữa bệnh Ngoại khoa","Toàn thời gian",null,"07h00 - 11h00; 13h00 - 17h00","Bác sĩ"]
["373","Võ Chí Cường","007244/CT-CCHN","Khám bệnh, chữa bệnh ngoại khoa","Toàn thời gian",null,"07h00 - 11h00; 13h00 - 17h00","Bác sĩ"]
["374","Lê Thanh Bình","0004825/VL-CCHN","Khám bệnh, chữa bệnh chuyên khoa ngoại","Bán thời gian","2,3,4,5,6,7,CN","0700 - 1100, 1300 - 1700","Thạc sĩ Bác sĩ","BS GV ĐHYDCT"]
["375","Trà Mỹ Linh","002973/CT-CCHN",{"$f":"VLOOKUP(B390,'[1]ĐÃ có CCHN'!$B$3:$I$889,4,FALSE)","v":"Thực hiện các kỹ thuật điều dưỡng cơ bản và các kỹ thuật điều dưỡng chuyên khoa"},"Toàn thời gian",null,"07h00 - 11h00; 13h00 - 17h00","CNĐD","ĐDTK"]
["376","Trần Thị Ngọc Mai","004354/CT-CCHN","Thực hiện theo chức năng nhiệm vụ của Điều dưỡng quy định tại Thông tư liên tịch số 26/2015/TTLT-BYT-BNV ngày 07/10/2015.","Toàn thời gian",null,"07h00 - 11h00; 13h00 - 17h00","CNĐD"]
["377","Bùi Đức Thẩm","004963/CT-CCHN","Thực hiện theo chức năng nhiệm vụ của Điều dưỡng quy định tại Thông tư liên tịch số 26/2015/TTLT-BYT-BNV ngày 07/10/2015.","Toàn thời gian",null,"07h00 - 11h00; 13h00 - 17h00","CNĐD"]
["378","Huỳnh Thị Ngọc Yến","005127/CT-CCHN",{"$f":"VLOOKUP(B393,'[1]ĐÃ có CCHN'!$B$3:$I$889,4,FALSE)","v":"Thực hiện theo chức năng nhiệm vụ của Điều dưỡng quy định tại Thông tư liên tịch số 26/2015/TTLT-BYT-BNV ngày 07/10/2015."},"Toàn thời gian",null,"07h00 - 11h00; 13h00 - 17h00","CNĐD"]
["379","Lê Thị Ngọc Huyền","002977/CT-CCHN","Thực hiện các kỹ thuật điều dưỡng cơ bản và một số kỹ thuật điều dưỡng chuyên khoa","Toàn thời gian",null,"07h00 - 11h00; 13h00 - 17h00","ĐDCĐ"]
["380","Phạm Tùng Lâm","004830/CT-CCHN","Thực hiện theo chức năng nhiệm vụ của Điều dưỡng quy định tại Thông tư liên tịch số 26/2015/TTLT-BYT-BNV ngày 07/10/2015.","Toàn thời gian",null,"07h00 - 11h00; 13h00 - 17h00","ĐDCĐ"]
["381","Bùi Lưu Ngọc Hiền","004353/CT-CCHN",{"$f":"VLOOKUP(B396,'[1]ĐÃ có CCHN'!$B$3:$I$889,4,FALSE)","v":"Thực hiện theo chức năng nhiệm vụ của Điều dưỡng quy định tại Thông tư liên tịch số 26/2015/TTLT-BYT-BNV ngày 07/10/2015."},"Toàn thời gian",null,"07h00 - 11h00; 13h00 - 17h00","ĐDTC/CNĐD"]
["382","Lê Hoàng Tố Quyên","004858/CT-CCHN",{"$f":"VLOOKUP(B397,'[1]ĐÃ có CCHN'!$B$3:$I$889,4,FALSE)","v":"Thực hiện theo chức năng nhiệm vụ của Điều dưỡng quy định tại Thông tư liên tịch số 26/2015/TTLT-BYT-BNV ngày 07/10/2015."},"Toàn thời gian",null,"07h00 - 11h00; 13h00 - 17h00","ĐDTC"]
["383","Đỗ Chí Tâm","005265/CT-CCHN",{"$f":"VLOOKUP(B398,'[1]ĐÃ có CCHN'!$B$3:$I$889,4,FALSE)","v":"Thực hiện theo chức năng nhiệm vụ của Điều dưỡng quy định tại Thông tư liên tịch số 26/2015/TTLT-BYT-BNV ngày 07/10/2015."},"Toàn thời gian",null,"07h00 - 11h00; 13h00 - 17h00","ĐDCĐ "]
["384","Huỳnh Thị Thanh Tiền","006304/CT-CCHN","Thực hiện theo chức năng nhiệm vụ của Điều dưỡng quy định tại Thông tư liên tịch số 26/2015/TTLT-BYT-BNV ngày 07/10/2015.","Toàn thời gian",null,"07h00 - 11h00; 13h00 - 17h00","ĐDCĐ"]
["385","Phan Thị Cẩm Nhung","006807/CT-CCHN",{"$f":"VLOOKUP(B400,'[1]ĐÃ có CCHN'!$B$3:$I$889,4,FALSE)","v":"Thực hiện theo chức năng nhiệm vụ của Điều dưỡng quy định tại Thông tư liên tịch số 26/2015/TTLT-BYT-BNV ngày 07/10/2015."},"Toàn thời gian",null,"07h00 - 11h00; 13h00 - 17h00","ĐDCĐ "]
["386","Phan Đoàn Yến Phượng","007351/CT-CCHN",{"$f":"VLOOKUP(B401,'[1]ĐÃ có CCHN'!$B$3:$I$889,4,FALSE)","v":"Thực hiện theo chức năng nhiệm vụ của Điều dưỡng quy định tại Thông tư liên tịch số 26/2015/TTLT-BYT-BNV ngày 07/10/2015."},"Toàn thời gian",null,"07h00 - 11h00; 13h00 - 17h00","ĐDCĐ "]
["387","Trần Anh Dũng","001166/CT-CCHN","Khám, chữa bệnhh chuyên khoa Ngoại - chấn thương chỉnh hình","Toàn thời gian",null,"07h00 - 11h00; 13h00 - 17h00","BSCKII","Trưởng khoa"]
["388","Võ Văn Dành","000733/CT-CCHN","Khám, chữa bệnhh chuyên khoa Ngoại - chấn thương chỉnh hình","Toàn thời gian",null,"07h00 - 11h00; 13h00 - 17h00","BSCKII","Phó\nTrưởng khoa"]
["389","Danh Chanh Đa","003222/CT-CCHN","Khám bệnh, chữa bệnh đa khoa","Toàn thời gian",null,"07h00 - 11h00; 13h00 - 17h00","BSCKI"]
["390","Phan Thế Nhựt","003223/CT-CCHN","Khám bệnh, chữa bệnh đa khoa - chuyên khoa ngoại","Toàn thời gian",null,"07h00 - 11h00; 13h00 - 17h00","Thạc sĩ Bác sĩ"]
["391","Sơn Ngọc Thuần","005856/CT-CCHN","Khám bệnh, chữa bệnh Ngoại khoa","Toàn thời gian",null,"07h00 - 11h00; 13h00 - 17h00","Bác sĩ"]
["392","Huỳnh Vĩnh Tiến","006693/CT-CCHN","Khám bệnh, chữa bệnh Ngoại khoa","Toàn thời gian",null,"07h00 - 11h00; 13h00 - 17h00","Bác sĩ"]
["393","Phạm Thanh Hậu","006768/CT-CCHN","Khám bệnh, chữa bệnh Ngoại khoa","Toàn thời gian",null,"07h00 - 11h00; 13h00 - 17h00","Bác sĩ"]
["394","Nguyễn Khánh","007360/CT-CCHN","Khám bệnh, chữa bệnh Ngoại khoa","Toàn thời gian",null,"07h00 - 11h00; 13h00 - 17h00","Bác sĩ"]
["395","Phạm Tiến Quyết","003220/CT-CCHN",{"$f":"VLOOKUP(B410,'[1]ĐÃ có CCHN'!$B$3:$I$889,4,FALSE)","v":"Thực hiện các kỹ thuật điều dưỡng cơ bản và các kỹ thuật điều dưỡng chuyên khoa"},"Toàn thời gian",null,"07h00 - 11h00; 13h00 - 17h00","ĐDCKI","ĐDTK"]
["396","Phan Trần Trọng Đức","002942/CT-CCHN",{"$f":"VLOOKUP(B411,'[1]ĐÃ có CCHN'!$B$3:$I$889,4,FALSE)","v":"Thực hiện các kỹ thuật điều dưỡng cơ bản"},"Toàn thời gian",null,"07h00 - 11h00; 13h00 - 17h00","ĐDTC"]
["397","Ngô Văn Chúa","003213/CT-CCHN","Thực hiện các kỹ thuật điều dưỡng cơ bản và các kỹ thuật thông thường về bó bột","Toàn thời gian",null,"07h00 - 11h00; 13h00 - 17h00","CNĐD\n/ThS QLBV"]
["398","Huỳnh Trúc Lam","003214/CT-CCHN","Thực hiện các kỹ thuật điều dưỡng cơ bản và các kỹ thuật thông thường về bó bột","Toàn thời gian",null,"07h00 - 11h00; 13h00 - 17h00","ĐDTC/ ĐDCĐ"]
["399","Đặng Hoài Thu","003212/CT-CCHN",{"$f":"VLOOKUP(B414,'[1]ĐÃ có CCHN'!$B$3:$I$889,4,FALSE)","v":"Thực hiện các kỹ thuật điều dưỡng cơ bản"},"Toàn thời gian",null,"07h00 - 11h00; 13h00 - 17h00","CNĐD"]
["400","Nguyễn Hồng Mỹ","003860/CT-CCHN",{"$f":"VLOOKUP(B415,'[1]ĐÃ có CCHN'!$B$3:$I$889,4,FALSE)","v":"Thực hiện các kỹ thuật điều dưỡng cơ bản"},"Toàn thời gian",null,"07h00 - 11h00; 13h00 - 17h00","ĐDTC"]
["401","Danh Thành","006524/CT-CCHN",{"$f":"VLOOKUP(B416,'[1]ĐÃ có CCHN'!$B$3:$I$889,4,FALSE)","v":"Thực hiện theo chức năng nhiệm vụ của Điều dưỡng quy định tại Thông tư liên tịch số 26/2015/TTLT-BYT-BNV ngày 07/10/2015."},"Toàn thời gian",null,"07h00 - 11h00; 13h00 - 17h00","CNĐD"]
["402","La Thị Mỹ Huyền","006801/CT-CCHN",{"$f":"VLOOKUP(B417,'[1]ĐÃ có CCHN'!$B$3:$I$889,4,FALSE)","v":"Thực hiện theo chức năng nhiệm vụ của Điều dưỡng quy định tại Thông tư liên tịch số 26/2015/TTLT-BYT-BNV ngày 07/10/2015."},"Toàn thời gian",null,"07h00 - 11h00; 13h00 - 17h00","ĐDCĐ "]
["403","Nguyễn Thành Trung","003999/CT-CCHN",{"$f":"VLOOKUP(B418,'[1]ĐÃ có CCHN'!$B$3:$I$889,4,FALSE)","v":"Thực hiện các kỹ thuật điều dưỡng cơ bản và các kỹ thuật điều dưỡng chuyên khoa"},"Toàn thời gian",null,"07h00 - 11h00; 13h00 - 17h00","ĐDCĐ/\nCNĐD"]
["404","Phan Huỳnh Nhu","006463/CT-CCHN",{"$f":"VLOOKUP(B419,'[1]ĐÃ có CCHN'!$B$3:$I$889,4,FALSE)","v":"thực hiện theo chức năng nhiệm vụ của điều dưỡng quy định theo Thông tư liên tịch số 26/2015/TTLT-BYT ngày 07/10/2015"},"Toàn thời gian",null,"07h00 - 11h00; 13h00 - 17h00","ĐDTC"]
["405","Nguyễn Thị Như Ý","004694/CT-CCHN",{"$f":"VLOOKUP(B420,'[1]ĐÃ có CCHN'!$B$3:$I$889,4,FALSE)","v":"Thực hiện theo chức năng nhiệm vụ của Điều dưỡng quy định tại Thông tư liên tịch số 26/2015/TTLT-BYT-BNV ngày 07/10/2015."},"Toàn thời gian",null,"07h00 - 11h00; 13h00 - 17h00","ĐDTC"]
["406","Nguyễn Văn Trang","002996/CT-CCHN","Khám bệnh, chữa bệnh chuyên khoa Ngoại lồng ngực","Toàn thời gian",null,"07h00 - 11h00; 13h00 - 17h00","Thạc sĩ Bác sĩ"," Trưởng khoa "]
["407","Quách Quốc Dương","004342/CT-CCHN","Khám bệnh, chữa bệnh Ngoại khoa","Toàn thời gian",null,"07h00 - 11h00; 13h00 - 17h00","BSCKI","Phó\nTrưởng khoa"]
["408","Nguyễn Hoàng Minh","003006/CT-CCHN","Khám bệnh, chữa bệnh đa khoa","Toàn thời gian",null,"07h00 - 11h00; 13h00 - 17h00","BSCKI"]
["409","Trương Đình Hưng","004839/CT-CCHN","Khám bệnh, chữa bệnh Ngoại khoa","Toàn thời gian",null,"07h00 - 11h00; 13h00 - 17h00","BSCKI"]
["410","Đặng Hải Đăng","005800/CT-CCHN","Khám bệnh, chữa bệnh Ngoại khoa","Toàn thời gian",null,"07h00 - 11h00; 13h00 - 17h00","Bác sĩ"]
["411","Huỳnh Anh Tiến","006485/CT-CCHN","Khám bệnh, chữa bệnh Ngoại khoa","Toàn thời gian",null,"07h00 - 11h00; 13h00 - 17h00","Bác sĩ"]
["412","Nguyễn Thanh Nghĩa","007559/CT-CCHN","Khám bệnh, chữa bệnh ngoại khoa","Toàn thời gian",null,"07h00 - 11h00; 13h00 - 17h00","Bác sĩ"]
["413","Nguyễn Thị Thúy Trâm","004137/CT-CCHN",{"$f":"VLOOKUP(B428,'[1]ĐÃ có CCHN'!$B$3:$I$889,4,FALSE)","v":"Thực hiện các kỹ thuật điều dưỡng cơ bản và các kỹ thuật điều dưỡng chuyên khoa"},"Toàn thời gian",null,"07h00 - 11h00; 13h00 - 17h00","CNĐD","ĐDTK"]
["414","Nguyễn Thị Thùy Linh","001661/CT-CCHN",{"$f":"VLOOKUP(B429,'[1]ĐÃ có CCHN'!$B$3:$I$889,4,FALSE)","v":"Thực hiện các kỹ thuật điều dưỡng cơ bản và các kỹ thuật điều dưỡng chuyên khoa"},"Toàn thời gian",null,"07h00 - 11h00; 13h00 - 17h00","CNĐD"]
["415","Lý Thị Minh Tâm","001639/CT-CCHN",{"$f":"VLOOKUP(B430,'[1]ĐÃ có CCHN'!$B$3:$I$889,4,FALSE)","v":"Thực hiện các kỹ thuật điều dưỡng cơ bản"},"Toàn thời gian",null,"07h00 - 11h00; 13h00 - 17h00","CNĐD"]
["416","Phan Thành Thái","004096/CT-CCHN",{"$f":"VLOOKUP(B431,'[1]ĐÃ có CCHN'!$B$3:$I$889,4,FALSE)","v":"Thực hiện các kỹ thuật điều dưỡng cơ bản và các kỹ thuật điều dưỡng chuyên khoa"},"Toàn thời gian",null,"07h00 - 11h00; 13h00 - 17h00","ĐDCĐ/CNĐD"]
["417","Nguyễn Thị Bích Vân","003903/CT-CCHN","Thực hiện các kỹ thuật điều dưỡng cơ bản và một số kỹ thuật diều dưỡng chuyên khoa","Toàn thời gian",null,"07h00 - 11h00; 13h00 - 17h00","ĐDCĐ"]
["418","Võ Thị Nhã Khanh","020984/BYT-CCHN",{"$f":"VLOOKUP(B433,'[1]ĐÃ có CCHN'!$B$3:$I$889,4,FALSE)","v":"thực hiện theo Quyết định số 41/2005/QĐ-BNV ngày 22/4/2005"},"Toàn thời gian",null,"07h00 - 11h00; 13h00 - 17h00","ĐDTC/ ĐDCĐ"]
["419","Phan Thị Ánh Thơ","003197/CT-CCHN",{"$f":"VLOOKUP(B434,'[1]ĐÃ có CCHN'!$B$3:$I$889,4,FALSE)","v":"Thực hiện các kỹ thuật điều dưỡng cơ bản"},"Toàn thời gian",null,"07h00 - 11h00; 13h00 - 17h00","ĐDTC/ ĐDCĐ"]
["420","Ngô Gia Hân","007737/CT-CCHN","thực hiện theo chức năng nhiệm vụ của điều dưỡng quy định theo Thông tư liên tịch số 26/2015/TTLT-BYT ngày 07/10/2015","Toàn thời gian",null,"07h00 - 11h00; 13h00 - 17h00","CNĐD"]
["421","Lê Thị Bích","005136/CT-CCHN",{"$f":"VLOOKUP(B436,'[1]ĐÃ có CCHN'!$B$3:$I$889,4,FALSE)","v":"thực hiện theo chức năng nhiệm vụ của điều dưỡng quy định theo Thông tư liên tịch số 26/2015/TTLT-BYT ngày 07/10/2015"},"Toàn thời gian",null,"07h00 - 11h00; 13h00 - 17h00","ĐDCĐ/\nCNĐD"]
["422","Thái Thị Mỹ Linh","007671/CT-CCHN","thực hiện chức năng nhiệm vụ của định theo Thông tư liên tịch số 26/2015/TTLT-BYT ngày 07/10/2018","Toàn thời gian",null,"07h00 - 11h00; 13h00 - 17h00","CĐĐD"]
["423","Trần Thị Kim Trang","007733/CT-CCHN","thực hiện theo chức năng nhiệm vụ của điều dưỡng quy định theo Thông tư liên tịch số 26/2015/TTLT-BYT ngày 07/10/2015","Toàn thời gian",null,"07h00 - 11h00; 13h00 - 17h00","CĐĐD"]
["424","Lưu Điền","001201/CT-CCHN","Khám bệnh, chữa bệnh chuyên khoa Ngoại","Toàn thời gian",null,"07h00 - 11h00; 13h00 - 17h00","BSCKII"," Trưởng khoa "]
["425","Nguyễn Vũ Hiền","003188/CT-CCHN","Khám bệnh, chữa bệnh đa khoa","Toàn thời gian",null,"07h00 - 11h00; 13h00 - 17h00","BSCKI","Phó\nTrưởng khoa"]
["426","Lý Quốc Ánh","003060/CT-CCHN","Khám, chữa bệnh nội khoa - Siêu âm","Toàn thời gian",null,"07h00 - 11h00; 13h00 - 17h00","BSCKI"]
["427","Võ Thị Hồng Ngân","000477/CT-CCHN","Khám bệnh, chữa bệnh đa khoa","Toàn thời gian",null,"07h00 - 11h00; 13h00 - 17h00","BSCKI"]
["428","Đặng Phương Dung","003008/CT-CCHN",{"$f":"VLOOKUP(B443,'[1]ĐÃ có CCHN'!$B$3:$I$889,4,FALSE)","v":"Quy định tại Quyết định số 41/2005/QĐ – BNV ngày 22/4/2005 của Bộ trưởng Bộ Nội vụ về việc ban hành tiêu chuẩn nghiệp vụ các ngạch viên chức y tế điều dưỡng."},"Toàn thời gian",null,"07h00 - 11h00; 13h00 - 17h00","CNĐD","ĐDTK"]
["429","Mai Thị Diễm Mi","004903/CT-CCHN",{"$f":"VLOOKUP(B444,'[1]ĐÃ có CCHN'!$B$3:$I$889,4,FALSE)","v":"Quy định tại Quyết định số 41/2005/QĐ – BNV ngày 22/4/2005 của Bộ trưởng Bộ Nội vụ về việc ban hành tiêu chuẩn nghiệp vụ các ngạch viên chức y tế điều dưỡng."},"Toàn thời gian",null,"07h00 - 11h00; 13h00 - 17h00","CNĐD"]
["430","Nguyễn Thúy Võ Thu Nguyệt","004346/CT-CCHN","Thực hiện theo chức năng nhiệm vụ của Điều dưỡng quy định tại Thông tư liên tịch số 26/2015/TTLT-BYT-BNV ngày 07/10/2015.","Toàn thời gian",null,"07h00 - 11h00; 13h00 - 17h00","ĐDCĐ\n/CNĐD"]
["431","Hà Trương Thanh Trúc","004397/CT-CCHN",{"$f":"VLOOKUP(B446,'[1]ĐÃ có CCHN'!$B$3:$I$889,4,FALSE)","v":"Thực hiện theo chức năng nhiệm vụ của Điều dưỡng quy định tại Thông tư liên tịch số 26/2015/TTLT-BYT-BNV ngày 07/10/2015."},"Toàn thời gian",null,"07h00 - 11h00; 13h00 - 17h00","ĐDCĐ"]
["432","Nguyễn Mai Thư","004787/CT-CCHN",{"$f":"VLOOKUP(B447,'[1]ĐÃ có CCHN'!$B$3:$I$889,4,FALSE)","v":"Thực hiện theo chức năng nhiệm vụ của Điều dưỡng quy định tại Thông tư liên tịch số 26/2015/TTLT-BYT-BNV ngày 07/10/2015."},"Toàn thời gian",null,"07h00 - 11h00; 13h00 - 17h00","CNĐD"]
["433","Trần Thị Kiều Chinh","003218/CT-CCHN",{"$f":"VLOOKUP(B448,'[1]ĐÃ có CCHN'!$B$3:$I$889,4,FALSE)","v":"Quy định tại Quyết định số 41/2005/QĐ – BNV ngày 22/4/2005 của Bộ trưởng Bộ Nội vụ về việc ban hành tiêu chuẩn nghiệp vụ các ngạch viên chức y tế điều dưỡng."},"Toàn thời gian",null,"07h00 - 11h00; 13h00 - 17h00","ĐDTC/\nCNĐD"]
["434","Nguyễn Thị Ngọc Cẩm","003055/CT-CCHN",{"$f":"VLOOKUP(B449,'[1]ĐÃ có CCHN'!$B$3:$I$889,4,FALSE)","v":"Quy định tại Quyết định số 41/2005/QĐ – BNV ngày 22/4/2005 của Bộ trưởng Bộ Nội vụ về việc ban hành tiêu chuẩn nghiệp vụ các ngạch viên chức y tế điều dưỡng."},"Toàn thời gian",null,"07h00 - 11h00; 13h00 - 17h00","ĐDTC/\nCNĐD"]
["435","Nguyễn Thị Thúy Liễu","003137/CT-CCHN","Thực hiện các kỹ thuật điều dưỡng cơ bản ","Toàn thời gian",null,"07h00 - 11h00; 13h00 - 17h00","ĐDTC/\nCNĐD"]
["436","Khưu Thị Chi","006733/CT-CCHN",{"$f":"VLOOKUP(B451,'[1]ĐÃ có CCHN'!$B$3:$I$889,4,FALSE)","v":"Thực hiện theo chức năng nhiệm vụ của Điều dưỡng quy định tại Thông tư liên tịch số 26/2015/TTLT-BYT-BNV ngày 07/10/2015."},"Toàn thời gian",null,"07h00 - 11h00; 13h00 - 17h00","CNĐD"]
["437","Trần Lệ Giang","006746/CT-CCHN",{"$f":"VLOOKUP(B452,'[1]ĐÃ có CCHN'!$B$3:$I$889,4,FALSE)","v":"Thực hiện theo chức năng nhiệm vụ của Điều dưỡng quy định tại Thông tư liên tịch số 26/2015/TTLT-BYT-BNV ngày 07/10/2015."},"Toàn thời gian",null,"07h00 - 11h00; 13h00 - 17h00","CNĐD"]
["438","Dương Thị Cẩm Thu","004118/CT-CCHN",{"$f":"VLOOKUP(B453,'[1]ĐÃ có CCHN'!$B$3:$I$889,4,FALSE)","v":"Thực hiện theo chức năng nhiệm vụ của Điều dưỡng quy định tại Thông tư liên tịch số 26/2015/TTLT-BYT-BNV ngày 07/10/2015."},"Toàn thời gian",null,"07h00 - 11h00; 13h00 - 17h00","CNĐD"]
["439","Nguyễn Xuân Độ","012874/ĐNAI-CCHN",{"$f":"VLOOKUP(B454,'[1]ĐÃ có CCHN'!$B$3:$I$889,4,FALSE)","v":"Thực hiện phạm vị hoạt dộng chuyên môn theo quy định tại Thông tư số 26/2015/TTLT-BYT-BNV ngày 07 tháng 10 năm 2015 quy định mã số, tiêu chuẩn chức danh nghề nghiệp điều dưỡng, hộ sinh, kỹ thuật y"},"Toàn thời gian",null,"07h00 - 11h00; 13h00 - 17h00","CNĐD"]
["440","Trần Thị Ngọc Thư","007381/CT-CCHN","thực hiện chức năng nhiệm vụ của định theo Thông tư liên tịch số 26/2015/TTLT-BYT ngày 07/10/2018","Toàn thời gian",null,"07h00 - 11h00; 13h00 - 17h00","CNĐD"]
["441","Huỳnh Kim Khánh","006729/CT-CCHN",{"$f":"VLOOKUP(B456,'[1]ĐÃ có CCHN'!$B$3:$I$889,4,FALSE)","v":"Thực hiện theo chức năng nhiệm vụ của Điều dưỡng quy định tại Thông tư liên tịch số 26/2015/TTLT-BYT-BNV ngày 07/10/2015."},"Toàn thời gian",null,"07h00 - 11h00; 13h00 - 17h00","ĐDCĐ"]
["442","Trần Ngọc Mai","001326/CT-CCHN",{"$f":"VLOOKUP(B457,'[1]ĐÃ có CCHN'!$B$3:$I$889,4,FALSE)","v":"Thực hiện theo chức năng nhiệm vụ của Điều dưỡng quy định tại Thông tư liên tịch số 26/2015/TTLT-BYT-BNV ngày 07/10/2015."},"Toàn thời gian",null,"07h00 - 11h00; 13h00 - 17h00","ĐDCĐ"]
["443","Phạm Ngọc Trân","009818/AG-CCHN","Thực hiện theo chức năng nhiệm vụ của Điều dưỡng quy định tại Thông tư liên tịch số 26/2015/TTLT-BYT-BNV ngày 07/10/2015.","Toàn thời gian",null,"07h00 - 11h00; 13h00 - 17h00","CĐĐD"]
["444","Nguyễn Thị Thùy Liễu","004577/CT-CCHN",{"$f":"VLOOKUP(B459,'[1]ĐÃ có CCHN'!$B$3:$I$889,4,FALSE)","v":"Thực hiện theo chức năng nhiệm vụ của Điều dưỡng quy định tại Thông tư liên tịch số 26/2015/TTLT-BYT-BNV ngày 07/10/2015."},"Toàn thời gian",null,"07h00 - 11h00; 13h00 - 17h00","ĐDTC/ ĐDCĐ"]
["445","Huỳnh Tuấn Hải","000795/CT-CCHN","Khám, chữa bệnh Nội - Gây mê hồi sức","Toàn thời gian",null,"07h00 - 11h00; 13h00 - 17h00","BSCKII","Trưởng khoa "]
["446","Ngô Duy Thái","003759/CT-CCHN","Khám bệnh, chữa bệnh đa khoa, gây mê hồi sức","Toàn thời gian",null,"07h00 - 11h00; 13h00 - 17h00","Bác sĩ","Phó\nTrưởng khoa"]
["447","Phan Vĩnh Phúc","006006/CT-CCHN","Khám bệnh, chữa bệnh gây mê hồi sức ","Toàn thời gian",null,"07h00 - 11h00; 13h00 - 17h00","Bác sĩ"]
["448","Thái Thị Phương Thảo","007248/CT-CCHN","Khám bệnh, chữa bệnh gây mê hồi sức","Toàn thời gian",null,"07h00 - 11h00; 13h00 - 17h00","Bác sĩ "]
["449","Lâm Thị Huế Anh","006910/CT-CCHN","Khám bệnh, chữa bệnh gây mê hồi sức","Toàn thời gian",null,"07h00 - 11h00; 13h00 - 17h00","Bác sĩ"]
["450","Võ Nguyên Hồng Phúc","003472/BYT-CCHN","Chuyên khoa Gây mê hồi sức","Bán thời gian","2,3,4,5,6,7,CN","07h00 - 11h00, 13h00 - 17h00","Thạc sỹ bác sỹ","BS GV ĐHYDCT"]
["451","Lâm Danh Trà My","003081/CT-CCHN","Thực hiện các kỹ thuật điều dưỡng cơ bản và một số kỹ thuật điều dưỡng chuyên khoa, gây mê hồi sức","Toàn thời gian",null,"07h00 - 11h00; 13h00 - 17h00","CNĐD","ĐDTK"]
["452","Phạm Thị Phương Hiếu","003084/CT-CCHN",{"$f":"VLOOKUP(B467,'[1]ĐÃ có CCHN'!$B$3:$I$889,4,FALSE)","v":"Thực hiện các kỹ thuật điều dưỡng cơ bản và các kỹ thuật điều dưỡng chuyên khoa"},"Toàn thời gian",null,"07h00 - 11h00; 13h00 - 17h00","ĐDCKI"]
["453","Bành Huệ Anh","001421/BL-CCHN",{"$f":"VLOOKUP(B468,'[1]ĐÃ có CCHN'!$B$3:$I$889,4,FALSE)","v":"thực hiện kỹ thuật chuyên môn thuộc chuyên khoa Gây mê  - Hồi sức"},"Toàn thời gian",null,"07h00 - 11h00; 13h00 - 17h00","CNĐD"]
["454","Nguyễn Thị Hà","004438/CT-CCHN","Thực hiện theo chức năng nhiệm vụ của điều dưỡng gây mê hồi sức quy định tại Thông tư liên tịch số 26/2015/TTLT-BYT-BNV ngay 07/10/2015","Toàn thời gian",null,"07h00 - 11h00; 13h00 - 17h00","ĐDCĐ"]
["455","Nguyễn Thị Ngọc Thơ","004912/CT-CCHN","Thực hiện theo chức năng nhiệm vụ của điều dưỡng gây mê hồi sức quy định tại Thông tư liên tịch số 26/2015/TTLT-BYT-BNV ngay 07/10/2015","Toàn thời gian",null,"07h00 - 11h00; 13h00 - 17h00","ĐDCĐ"]
["456","Nguyễn Hữu Hưng","003083/CT-CCHN","Thực hiện các kỹ thuật điều dưỡng thông thường về gây mê hồi sức","Toàn thời gian",null,"07h00 - 11h00; 13h00 - 17h00","CNĐD GMHS"]
["457","Bùi Hớn Lưu","004111/CT-CCHN","Thực hiện các kỹ thuật điều dưỡng cơ bản và một số kỹ thuật điều dưỡng chuyên khoa","Toàn thời gian",null,"07h00 - 11h00; 13h00 - 17h00","ĐDCĐ"]
["458","Trịnh Thanh","003947/CT-CCHN","Thực hiện các kỹ thuật điều dưỡng về gây mê hồi sức","Toàn thời gian",null,"07h00 - 11h00; 13h00 - 17h00","CNĐD"]
["459","Thái Thanh Tâm","003184/CT-CCHN","Thực hiện các kỹ thuật điều dưỡng cơ bản","Toàn thời gian",null,"07h00 - 11h00; 13h00 - 17h00","ĐDTC/CNĐD"]
["460","Huỳnh Huy Hoàng","003082/CT-CCHN",{"$f":"VLOOKUP(B475,'[1]ĐÃ có CCHN'!$B$3:$I$889,4,FALSE)","v":"Thực hiện các kỹ thuật điều dưỡng cơ bản"},"Toàn thời gian",null,"07h00 - 11h00; 13h00 - 17h00","CNĐD"]
["461","Mai Tương Lai","003471/CT-CCHN",{"$f":"VLOOKUP(B476,'[1]ĐÃ có CCHN'!$B$3:$I$889,4,FALSE)","v":"Thực hiện các kỹ thuật điều dưỡng cơ bản"},"Toàn thời gian",null,"07h00 - 11h00; 13h00 - 17h00","ĐDTC/ ĐDCĐ"]
["462","Lưu Thị Thu Ba","003098/CT-CCHN",{"$f":"VLOOKUP(B477,'[1]ĐÃ có CCHN'!$B$3:$I$889,4,FALSE)","v":"Thực hiện các kỹ thuật điều dưỡng cơ bản"},"Toàn thời gian",null,"07h00 - 11h00; 13h00 - 17h00","ĐDTC"]
["463","Lữ Minh Hiếu","003092/CT-CCHN",{"$f":"VLOOKUP(B478,'[1]ĐÃ có CCHN'!$B$3:$I$889,4,FALSE)","v":"Thực hiện các kỹ thuật điều dưỡng cơ bản và các kỹ thuật thông thường về gây mê hồi sức"},"Toàn thời gian",null,"07h00 - 11h00; 13h00 - 17h00","ĐDTC/ ĐDCĐ"]
["464","Trương Nguyệt Quang","003075/CT-CCHN",{"$f":"VLOOKUP(B479,'[1]ĐÃ có CCHN'!$B$3:$I$889,4,FALSE)","v":"Thực hiện các kỹ thuật điều dưỡng cơ bản"},"Toàn thời gian",null,"07h00 - 11h00; 13h00 - 17h00","ĐDTC/ ĐDCĐ"]
["465","Lương Hồng Minh Phương","003093/CT-CCHN",{"$f":"VLOOKUP(B480,'[1]ĐÃ có CCHN'!$B$3:$I$889,4,FALSE)","v":"Thực hiện các kỹ thuật điều dưỡng cơ bản và các kỹ thuật thông thường về gây mê hồi sức"},"Toàn thời gian",null,"07h00 - 11h00; 13h00 - 17h00","ĐDTC/ ĐDCĐ"]
["466","Đỗ Trần Luân","003079/CT-CCHN",{"$f":"VLOOKUP(B481,'[1]ĐÃ có CCHN'!$B$3:$I$889,4,FALSE)","v":"Thực hiện các kỹ thuật điều dưỡng cơ bản"},"Toàn thời gian",null,"07h00 - 11h00; 13h00 - 17h00","ĐDTC/ ĐDCĐ"]
["467","Nguyễn Thị Hoàng Lôcôta Nhi A","002959/CT-CCHN",{"$f":"VLOOKUP(B482,'[1]ĐÃ có CCHN'!$B$3:$I$889,4,FALSE)","v":"Thực hiện các kỹ thuật điều dưỡng cơ bản"},"Toàn thời gian",null,"07h00 - 11h00; 13h00 - 17h00","CNĐD"]
["468","Nguyễn Thị Kim Thơ","004624/CT-CCHN","Thực hiện theo chức năng nhiệm vụ của điều dưỡng gây mê hồi sức quy định tại Thông tư liên tịch số 26/2015/TTLT-BYT-BNV ngay 07/10/2015","Toàn thời gian",null,"07h00 - 11h00; 13h00 - 17h00","CNĐD"]
["469","Nguyễn Kim Soàn","004539/CT-CCHN","Thực hiện theo chức năng nhiệm vụ của điều dưỡng gây mê hồi sức quy định tại Thông tư liên tịch số 26/2015/TTLT-BYT-BNV ngay 07/10/2015","Toàn thời gian",null,"07h00 - 11h00; 13h00 - 17h00","CNĐD"]
["470","Phạm Hoàng Vũ","003966/CT-CCHN","Thực hiện các kỹ thuật điều dưỡng cơ bản gây mê hồi sức","Toàn thời gian",null,"07h00 - 11h00; 13h00 - 17h00","ĐDTC/ ĐDCĐ"]
["471","Phạm Mai Đình","004882/CT-CCHN","Thực hiện theo chức năng nhiệm vụ của điều dưỡng gây mê hồi sức quy định tại Thông tư liên tịch số 26/2015/TTLT-BYT-BNV ngay 07/10/2015","Toàn thời gian",null,"07h00 - 11h00; 13h00 - 17h00","ĐDTC/ ĐDCĐ"]
["472","Nguyễn Thị Phương Thảo","004639/CT-CCHN",{"$f":"VLOOKUP(B487,'[1]ĐÃ có CCHN'!$B$3:$I$889,4,FALSE)","v":"Bán lẻ thuốc (người chịu trách nhiệm chuyên môn về Dược của quầy thuốc )"},"Toàn thời gian",null,"07h00 - 11h00; 13h00 - 17h00","ĐDTC/\nCĐĐD"]
["473","Nguyễn Huỳnh Minh Thiện","004348/CT-CCHN","Thực hiện theo chức năng nhiệm vụ của điều dưỡng gây mê hồi sức quy định tại Thông tư liên tịch số 26/2015/TTLT-BYT-BNV ngay 07/10/2015","Toàn thời gian",null,"07h00 - 11h00; 13h00 - 17h00","CNĐD"]
["474","Lê Thúy Vi","006799/CT-CCHN","Thực hiện theo chức năng nhiệm vụ của điều dưỡng gây mê hồi sức quy định tại Thông tư liên tịch số 26/2015/TTLT-BYT-BNV ngay 07/10/2015","Toàn thời gian",null,"07h00 - 11h00; 13h00 - 17h00","CNĐD"]
["475","Dương Vũ Lynh Thảo","007623/CT-CCHN","Thực hiện chức năng nhiệm vụ của định theo Thông tư liên tịch số 26/2015/TTLT-BYT ngày 07/10/2018","Toàn thời gian",null,"07h00 - 11h00; 13h00 - 17h00","CNĐD"]
["476","Phạm Hoàng Tuấn","007472/CT-CCHN","Thực hiện chức năng nhiệm vụ của định theo Thông tư liên tịch số 26/2015/TTLT-BYT ngày 07/10/2018","Toàn thời gian",null,"07h00 - 11h00; 13h00 - 17h00","ĐDCĐ "]
["477","Lê Vũ Luân","007471/CT-CCHN","Thực hiện chức năng nhiệm vụ của định theo Thông tư liên tịch số 26/2015/TTLT-BYT ngày 07/10/2018","Toàn thời gian",null,"07h00 - 11h00; 13h00 - 17h00","ĐDCĐ "]
["478","Văn Đình Quang Tuyến","001380/HAUG-CCHN",{"$f":"VLOOKUP(B493,'[1]ĐÃ có CCHN'!$B$3:$I$889,4,FALSE)","v":"Điều dưỡng gây mê hồi sức"},"Toàn thời gian",null,"07h00 - 11h00; 13h00 - 17h00","CNĐD/\nĐDTC"]
["479","Trương Hoàng Kha","004285/CT-CCHN","Thực hiện theo chức năng nhiệm vụ của điều dưỡng gây mê hồi sức quy định tại Thông tư liên tịch số 26/2015/TTLT-BYT-BNV ngay 07/10/2015","Toàn thời gian",null,"07h00 - 11h00; 13h00 - 17h00","ĐDTC/ ĐDCĐ"]
["480","Lê Thị Cẩm Tú","004791/CT-CCHN","Thực hiện theo chức năng nhiệm vụ của điều dưỡng gây mê hồi sức quy định tại Thông tư liên tịch số 26/2015/TTLT-BYT-BNV ngay 07/10/2015","Toàn thời gian",null,"07h00 - 11h00; 13h00 - 17h00","ĐDTC/ ĐDCĐ"]
["481","Huỳnh Tú Loan","004901/CT-CCHN","Thực hiện theo chức năng nhiệm vụ của điều dưỡng gây mê hồi sức quy định tại Thông tư liên tịch số 26/2015/TTLT-BYT-BNV ngay 07/10/2015","Toàn thời gian",null,"07h00 - 11h00; 13h00 - 17h00","ĐDTC/ ĐDCĐ"]
["482","Trương Hoàng Anh","006429/CT-CCHN","Thực hiện theo chức năng nhiệm vụ của điều dưỡng gây mê hồi sức quy định tại Thông tư liên tịch số 26/2015/TTLT-BYT-BNV ngay 07/10/2015","Toàn thời gian",null,"07h00 - 11h00; 13h00 - 17h00","ĐDTC/\nCĐĐD"]
["483","Trần Thị Túy Duy","270/CCHN-D-SYT-CT",{"$f":"VLOOKUP(B498,'[1]ĐÃ có CCHN'!$B$3:$I$889,4,FALSE)","v":"Bán lẻ thuốc"},"Toàn thời gian",null,"07h00 - 11h00; 13h00 - 17h00","DSĐH"]
["484","Ngô Thị Uyên Phương","003100/CT-CCHN","Thực hiện các kỹ thuật điều dưỡng cơ bản và các kỹ thuật thông thường về gây mê hồi sức","Toàn thời gian",null,"07h00 - 11h00; 13h00 - 17h00","Y sĩ/ CĐĐD"]
["485","Tiêu Thị Hồng Vẹn","003087/CT-CCHN","Thực hiện các kỹ thuật điều dưỡng cơ bản và các kỹ thuật thông thường về gây mê hồi sức","Toàn thời gian",null,"07h00 - 11h00; 13h00 - 17h00","Y sĩ/ CĐĐD"]
["486","Nguyễn Thị Kiều Nương","004796/CT-CCHN","Thực hiện theo chức năng nhiệm vụ của điều dưỡng gây mê hồi sức quy định tại Thông tư liên tịch số 26/2015/TTLT-BYT-BNV ngay 07/10/2015","Toàn thời gian",null,"07h00 - 11h00; 13h00 - 17h00","Y sĩ/ CĐĐD"]
["487","Huỳnh Minh Tiên","003233/CT-CCHN","Thực hiện các kỹ thuật điều dưỡng cơ bản và các kỹ thuật thông thường về gây mê hồi sức","Toàn thời gian",null,"07h00 - 11h00; 13h00 - 17h00","Y sĩ/ CĐĐD"]
["488","Huỳnh Huy Vũ","007614/CT-CCHN","Thực hiện chức năng nhiệm vụ của định theo Thông tư liên tịch số 26/2015/TTLT-BYT ngày 07/10/2018","Toàn thời gian",null,"07h00 - 11h00; 13h00 - 17h00","CĐĐD"]
["489","Ngô Thành Tính","002544/HAUG-CCHN","Thực hiện chức năng nhiệm vụ của định theo Thông tư liên tịch số 26/2015/TTLT-BYT ngày 07/10/2015","Toàn thời gian",null,"07h00 - 11h00; 13h00 - 17h00","CĐĐD"]
["490","Nguyễn Thành Văn","000051/CT-CCHN","Khám, chữa bệnh đa khoa - Tai Mũi Họng","Toàn thời gian",null,"07h00 - 11h00; 13h00 - 17h00","BSCKII","Trưởng khoa"]
["491","Trần Hà Việt Thắng","004772/CT-CCHN","Khám bệnh chữa bệnh chuyên khoa Tai Mũi Họng","Toàn thời gian",null,"07h00 - 11h00; 13h00 - 17h00","BSNT/ BSCKI"]
["492","Nguyễn Đăng Trình","004755/CT-CCHN","Khám bệnh chữa bệnh chuyên khoa Tai Mũi Họng","Toàn thời gian",null,"07h00 - 11h00; 13h00 - 17h00","Bác sĩ"]
["493","Nguyễn Xuân Mai","003202/HAUG-CCHN","Khám bệnh, chữa bệnh chuyên khoaTai Mũi Họng","Toàn thời gian",null,"07h00 - 11h00; 13h00 - 17h00","BSCKI"]
["494","Nguyễn Triều Việt ","003530/BYT-CCHN","Khám bệnh chữa bệnh chuyên khoa Tai Mũi Họng","Bán thời gian","2,3,4,5,6,7,CN","0700 - 1100, 1300 - 1700","Tiến sĩ Bác sĩ","BS GV ĐHYDCT"]
["495","Âu Lệ Phương","002902/CT-CCHN",{"$f":"VLOOKUP(B510,'[1]ĐÃ có CCHN'!$B$3:$I$889,4,FALSE)","v":"Thực hiện các kỹ thuật điều dưỡng cơ bản và các kỹ thuật điều dưỡng chuyên khoa"},"Toàn thời gian",null,"07h00 - 11h00; 13h00 - 17h00","CNĐD","ĐDTK"]
["496","Phan Duy Trinh","002906/CT-CCHN",{"$f":"VLOOKUP(B511,'[1]ĐÃ có CCHN'!$B$3:$I$889,4,FALSE)","v":"Thực hiện các kỹ thuật điều dưỡng cơ bản và các kỹ thuật điều dưỡng chuyên khoa"},"Toàn thời gian",null,"07h00 - 11h00; 13h00 - 17h00","CNĐD"]
["497","Lý Thành Công","003203/CT-CCHN",{"$f":"VLOOKUP(B512,'[1]ĐÃ có CCHN'!$B$3:$I$889,4,FALSE)","v":"Thực hiện các kỹ thuật điều dưỡng cơ bản"},"Toàn thời gian",null,"07h00 - 11h00; 13h00 - 17h00","CNĐD"]
["498","Đặng Đức Nhân","004915/CT-CCHN","Thực hiện theo chức năng nhiệm vụ của điều dưỡng quy định theo Thông tư liên tịch số 26/2015/TTLT-BYT ngày 07/10/2016","Toàn thời gian",null,"07h00 - 11h00; 13h00 - 17h00","ĐDCĐ"]
["499","Tô Tuấn Dân","000139/CT-CCHN","Khám, chữa bệnh chuyên khoa Răng Hàm Mặt","Toàn thời gian",null,"07h00 - 11h00; 13h00 - 17h00","BSCKII","Trưởng khoa"]
["500","Trần Kiều Hoa","000276/CT-CCHN","Khám, chữa bệnh chuyên khoa Răng Hàm Mặt","Toàn thời gian",null,"07h00 - 11h00; 13h00 - 17h00","BSCKI","Phó\nTrưởng khoa"]
["501","Biện Thị Ái Nhi","000409/CT-CCHN","Khám, chữa bệnh chuyên khoa Răng Hàm Mặt","Toàn thời gian",null,"07h00 - 11h00; 13h00 - 17h00","BSCKI RHM"]
["502","Nguyễn Ngọc Sáng","004089/CT-CCHN","Khám, chữa bệnh chuyên khoa Răng Hàm Mặt","Toàn thời gian",null,"07h00 - 11h00; 13h00 - 17h00","BSCKI"]
["503","Trần Thị Ngọc Nhớ","005479/CT-CCHN","Khám bệnh, chữa bệnh Răng Hàm Mặt","Toàn thời gian",null,"07h00 - 11h00; 13h00 - 17h00","Bác sĩ RHM"]
["504","Tô Thị Lan Anh","003066/CT-CCHN",{"$f":"VLOOKUP(B519,'[1]ĐÃ có CCHN'!$B$3:$I$889,4,FALSE)","v":"Thực hiện các kỹ thuật điều dưỡng cơ bản"},"Toàn thời gian",null,"07h00 - 11h00; 13h00 - 17h00","CNĐD","ĐDTK"]
["505","Trần Thị Tươi","002903/CT-CCHN","Thực hiện các kỹ thuật điều dưỡng cơ bản và một số kỹ thuật điều dưỡng chuyên khoa","Toàn thời gian",null,"07h00 - 11h00; 13h00 - 17h00","CNĐD/ ĐDCĐ"]
["506","Đỗ Thị Diệu","004983/CT-CCHN","Thực hiện theo chức năng nhiệm vụ của điều dưỡng quy định theo Thông tư liên tịch số 26/2015/TTLT-BYT ngày 07/10/2015","Toàn thời gian",null,"07h00 - 11h00; 13h00 - 17h00","ĐDCĐ"]
["507","Thái Minh Tài","007724/CT-CCHN","Thực hiện theo chức năng nhiệm vụ của điều dưỡng quy định theo Thông tư liên tịch số 26/2015/TTLT-BYT ngày 07/10/2015","Toàn thời gian",null,"07h00 - 11h00; 13h00 - 17h00","ĐDCĐ"]
["508","Nguyễn Phước Thiện","000354/CT-CCHN","Khám, chữa bệnh Mắt","Toàn thời gian",null,"07h00 - 11h00; 13h00 - 17h00","BSCKII","Trưởng khoa"]
["509","Trần Huỳnh Việt Trinh","000944/CT-CCHN","Khám, chữa bệnh Mắt","Toàn thời gian",null,"07h00 - 11h00; 13h00 - 17h00","BSCKII","Phó\nTrưởng khoa"]
["510","Nguyễn Minh Nhựt","001195/CT-CCHN","Khám, chữa bệnh Mắt","Toàn thời gian",null,"07h00 - 11h00; 13h00 - 17h00","BSCKI","Phó\nTrưởng khoa"]
["511","Trần Thạch Thảo","0001579/CT-CCHN","Khám, chữa bệnh chuyên khoa Mắt","Toàn thời gian",null,"07h00 - 11h00; 13h00 - 17h00","BSCKI"]
["512","Dương Tuấn Anh","006382/CT-CCHN","Khám bệnh, chữa bệnh Mắt","Toàn thời gian",null,"07h00 - 11h00; 13h00 - 17h00","Thạc sĩ Y học"]
["513","Ngô Kiều Trinh","003193/CT-CCHN","Thực hiện các kỹ thuật điều dưỡng cơ bản","Toàn thời gian",null,"07h00 - 11h00; 13h00 - 17h00","CNĐD","Điều dưỡng trưởng khoa"]
["514","Hà Thị Tuyết Trinh","002898/CT-CCHN",{"$f":"VLOOKUP(B529,'[1]ĐÃ có CCHN'!$B$3:$I$889,4,FALSE)","v":"Thực hiện các kỹ thuật điều dưỡng cơ bản"},"Toàn thời gian",null,"07h00 - 11h00; 13h00 - 17h00","CNĐD"]
["515","Nguyễn Thị Hoa","005043/CT-CCHN","Thực hiện theo chúc năng nhiệm vụ của điều dưỡng quy định theo Thông tư liên tịch số 26/2015/TTLT-BYT ngày 07/10/2015","Toàn thời gian",null,"07h00 - 11h00; 13h00 - 17h00","ĐDCĐ"]
["516","Đinh Thị Đông Xuân","002900/CT-CCHN","Thực hiện các kỹ thuật điều dưỡng cơ bản và các kỹ thuật thông thường về Mắt","Toàn thời gian",null,"07h00 - 11h00; 13h00 - 17h00","Y sĩ"]
["517","Lê Ánh Nguyệt","002897/CT-CCHN",{"$f":"VLOOKUP(B532,'[1]ĐÃ có CCHN'!$B$3:$I$889,4,FALSE)","v":"Thực hiện các kỹ thuật điều dưỡng cơ bản"},"Toàn thời gian",null,"07h00 - 11h00; 13h00 - 17h00","ĐDTC"]
["518","Phạm Thu Hồng","002896/CT-CCHN",{"$f":"VLOOKUP(B533,'[1]ĐÃ có CCHN'!$B$3:$I$889,4,FALSE)","v":"Thực hiện các kỹ thuật điều dưỡng cơ bản"},"Toàn thời gian",null,"07h00 - 11h00; 13h00 - 17h00","ĐDTC/ ĐDCĐ"]
["519","Nguyễn Thị Diễm Hương","003934/CT-CCHN","Thực hiện một số kỹ thuật điều dưỡng cơ bản và điều dưỡng chuyên khoa","Toàn thời gian",null,"07h00 - 11h00; 13h00 - 17h00","Thạc sĩ Y học"]
["520","Huỳnh Thanh Vũ","000679/CT-CCHN","Khám, chữa bệnh bằng Y học cổ truyền\nKhám bệnh, chữa bệnh vật lý trị liệu và phục hồi chức năng","Toàn thời gian",null,"07h00 - 11h00; 13h00 - 17h00","BSCKII"," Trưởng khoa"]
["521","Nguyễn Thị Út Thuận","006527/CT-CCHN","Khám bệnh, chữa bệnh bằng y học cổ truyền","Toàn thời gian",null,"07h00 - 11h00; 13h00 - 17h00","Bác sĩ YHCT"]
["522","Nguyễn Thị Bích Nhung","001016/CT-CCHN","Khám bệnh, chữa bệnh bằng y học cổ truyền,  Bác sỹ YHCT, chứng chỉ chuyên khoa vật lý trị liệu và phục hồi chức năng","Toàn thời gian",null,"07h00 - 11h00; 13h00 - 17h00","Bác sĩ YHCT"]
["523","Hà Thị Xuân","006409/CT-CCHN","Khám bệnh, chữa bệnh bằng y học cổ truyền","Toàn thời gian",null,"07h00 - 11h00; 13h00 - 17h00","Bác sĩ YHCT"]
["524","Trần Tố Loan","001916/CT-CCHN","Khám bệnh, chữa bệnh bằng y học cổ truyền","Toàn thời gian",null,"07h00 - 11h00; 13h00 - 17h00","Bác sĩ YHCT"]
["525","Lê Thị Ngọc Thúy","0001595/CT-CCHN","Khám bệnh, chữa bệnh bằng y học cổ truyền","Toàn thời gian",null,"07h00 - 11h00; 13h00 - 17h00","Bác sĩ YHCT"]
["526","Nguyễn Vân Anh","006540/CT-CCHN","Khám bệnh, chữa bệnh bằng y học cổ truyền","Toàn thời gian",null,"07h00 - 11h00; 13h00 - 17h00","Bác sĩ YHCT"]
["527","Nguyễn Chí Cường","007373/CT-CCHN","Khám bệnh, chữa bệnh bằng y học cổ truyền","Toàn thời gian",null,"07h00 - 11h00; 13h00 - 17h00","Bác sĩ YHCT"]
["528","Võ Thanh Hiếu","000357/CT-CCHN",{"$f":"VLOOKUP(B543,'[1]ĐÃ có CCHN'!$B$3:$I$889,4,FALSE)","v":"Khám, chữa bệnh bằng Y học cổ truyền"},"Toàn thời gian",null,"07h00 - 11h00; 13h00 - 17h00","Y sĩ"]
["529","Huỳnh Hữu Trung","002895/CT-CCHN",{"$f":"VLOOKUP(B544,'[1]ĐÃ có CCHN'!$B$3:$I$889,4,FALSE)","v":"Khám, chữa bệnh bằng Y học cổ truyền"},"Toàn thời gian",null,"07h00 - 11h00; 13h00 - 17h00","Y sĩ"]
["530","Thái Thị Thúy Hằng","003126/CT-CCHN","Thực hiện các kỹ thuật điều dưỡng cơ bản","Toàn thời gian",null,"07h00 - 11h00; 13h00 - 17h00","CNĐD","ĐDTK"]
["531","Dương Kim Chúc","000952/CT-CCHN","Thực hiện các kỹ thuật thông thường về vật lý trị liệu - phục hồi chức năng","Toàn thời gian",null,"07h00 - 11h00; 13h00 - 17h00","KTV VLTL/\nCĐ PHCN"]
["532","Ngô Hồng Tươi","003684/CT-CCHN","Thực hiện các kỹ thuật thông thường về vật lý trị liệu - phục hồi chức năng","Toàn thời gian",null,"07h00 - 11h00; 13h00 - 17h00","KTV VLTL/\nCĐ VLTL"]
["533","Bùi Thị Trinh","001879/CT-CCHN","Thực hiện các kỹ thuật thông thường về vật lý trị liệu - phục hồi chức năng","Toàn thời gian",null,"07h00 - 11h00; 13h00 - 17h00","KTV VLTL, PHCN/\n CĐ VLTL"]
["534","Nguyễn Hoàng Mỹ","004283/CT-CCHN","Kỹ thuật viên Vật lý trị liệu - Phục hồi chức năng","Toàn thời gian",null,"07h00 - 11h00; 13h00 - 17h00","KTV VLTL, PHCN/\n CĐ VLTL"]
["535","Trương Ngọc Hoàng Long","675/CCHN-D-SYT-HAUG",{"$f":"VLOOKUP(B550,'[1]ĐÃ có CCHN'!$B$3:$I$889,4,FALSE)","v":"Bán lẻ thuốc"},"Toàn thời gian",null,"07h00 - 11h00; 13h00 - 17h00","DSTH/ CĐ Dược học"]
["536","Huỳnh Thúy Nhi","001461/HAUG-CCHN","Khám bệnh, chữa bệnh bằng Y học cổ truyền","Toàn thời gian",null,"07h00 - 11h00; 13h00 - 17h00","ĐDCĐ"]
["537","Nguyễn Thị Hồng Vân","004292/CT-CCHN","Kỹ thuật viên Vật lý trị liệu - Phục hồi chức năng","Toàn thời gian",null,"07h00 - 11h00; 13h00 - 17h00","KT VLTL, PHCN"]
["538","Trần Thế Kiệt","004833/CT-CCHN","Kỹ thuật viên Vật lý trị liệu - Phục hồi chức năng","Toàn thời gian",null,"07h00 - 11h00; 13h00 - 17h00","KTV VLTL, PHCN/CĐ VLTL"]
["539","Phạm Thị Thuần","004003/CT-CCHN","Thực hiện các kỹ thuật thông thường về vật lý trị liệu - phục hồi chức năng","Toàn thời gian",null,"07h00 - 11h00; 13h00 - 17h00","KTV VLTL, PHCN/CĐ VLTL"]
["540","Trương Thị Nhi","005070/CT-CCHN","Kỹ thuật viên Vật lý trị liệu - Phục hồi chức năng","Toàn thời gian",null,"07h00 - 11h00; 13h00 - 17h00","KTV VLTL, PHCN/CĐ VLTL"]
["541","Nguyễn Thị Loan","006176/CT-CCHN","Kỹ thuật viên Vật lý trị liệu - Phục hồi chức năng","Toàn thời gian",null,"07h00 - 11h00; 13h00 - 17h00","KTV VLTL, PHCN/CĐ VLTL"]
["542","Võ Hoàng Khang","006764/CT-CCHN","Kỹ thuật viên Vật lý trị liệu - Phục hồi chức năng","Toàn thời gian",null,"07h00 - 11h00; 13h00 - 17h00","KT VLTL/ PHCN"]
["543","Phan Minh Huấn","005747/CT-CCHN","Thực hiện các kỹ thuật chuyên môn về y học cổ truyền","Toàn thời gian",null,"07h00 - 11h00; 13h00 - 17h00","Y sĩ"]
["544","Sơn Thanh Hậu","005746/CT-CCHN","Thực hiện các kỹ thuật chuyên môn về y học cổ truyền","Toàn thời gian",null,"07h00 - 11h00; 13h00 - 17h00","Y sĩ"]
["545","Lê Thị Hai","004379/CT-CCHN","Thực hiện kỹ thuật thông thường về châm cứu, xoa bóp, day ấn huyệt","Toàn thời gian",null,"07h00 - 11h00; 13h00 - 17h00","Y sĩ"]
["546","Lê Phương Ngọc","005057/CT-CCHN","Thực hiện kỹ thuật thông thường về châm cứu, xoa bóp, day ấn huyệt","Toàn thời gian",null,"07h00 - 11h00; 13h00 - 17h00","Y sĩ/ CĐĐD"]
["547","Lý Mỹ Dương","006308/CT-CCHN","Thực hiện các kỹ thuật chuyên môn về y học cổ truyền","Toàn thời gian",null,"07h00 - 11h00; 13h00 - 17h00","Y sĩ"]
["548","Lê Tấn Cường","007773/CT-CCHN","Kỹ thuật viên Vật lý trị liệu - Phục hồi chức năng","Toàn thời gian",null,"07h00 - 11h00; 13h00 - 17h00","CĐ PHCN"]
["549","Trần Văn Phúc","001168/CT-CCHN","Khám, chữa bệnh chuyên khoa Nội nhiễm","Toàn thời gian",null,"07h00 - 11h00; 13h00 - 17h00","BSCKI","Trưởng khoa"]
["550","Huỳnh Phe Rích","000399/CT-CCHN","Khám, chữa bệnh chuyên khoa Nội nhiễm","Toàn thời gian",null,"07h00 - 11h00; 13h00 - 17h00","BSCKI","Phó\nTrưởng khoa"]
["551","Nguyễn Văn Việt","003135/CT-CCHN","khám bệnh, chữa bệnh đa khoa","Toàn thời gian",null,"07h00 - 11h00; 13h00 - 17h00","BSCKI"]
["552","Bùi Trọng Nghĩa","004208/CT-CCHN","Khám bệnh, chữa bệnh Nội khoa","Toàn thời gian",null,"07h00 - 11h00; 13h00 - 17h00","Bác sĩ"]
["553","Nguyễn Thị Thanh Điều","002941/CT-CCHN",{"$f":"VLOOKUP(B568,'[1]ĐÃ có CCHN'!$B$3:$I$889,4,FALSE)","v":"Thực hiện các kỹ thuật điều dưỡng cơ bản và các kỹ thuật điều dưỡng chuyên khoa"},"Toàn thời gian",null,"07h00 - 11h00; 13h00 - 17h00","CNĐD","ĐDTK"]
["554","Mạc Kim Mến","003200/CT-CCHN",{"$f":"VLOOKUP(B569,'[1]ĐÃ có CCHN'!$B$3:$I$889,4,FALSE)","v":"Thực hiện các kỹ thuật điều dưỡng cơ bản"},"Toàn thời gian",null,"07h00 - 11h00; 13h00 - 17h00","CNĐD"]
["555","Lê Đình Kháng","003067/CT-CCHN",{"$f":"VLOOKUP(B570,'[1]ĐÃ có CCHN'!$B$3:$I$889,4,FALSE)","v":"Thực hiện các kỹ thuật điều dưỡng cơ bản"},"Toàn thời gian",null,"07h00 - 11h00; 13h00 - 17h00","CNĐD"]
["556","Nguyễn Lê Anh Khoa","003191/CT-CCHN","Thực hiện các kỹ thuật điều dưỡng cơ bản và một số kỹ thuật điều dưỡng chuyên khoa","Toàn thời gian",null,"07h00 - 11h00; 13h00 - 17h00","CNĐD"]
["557","Nguyễn Thị Lăng","004196/CT-CCHN","Thực hiện theo chức năng nhiệm vụ của điều dưỡng quy định theo Thông tư liên tịch số 26/2015/TTLT-BYT ngày 07/10/2015","Toàn thời gian",null,"07h00 - 11h00; 13h00 - 17h00","CNĐD"]
["558","Ngô Vũ Bảo","004879/CT-CCHN","Thực hiện theo chức năng nhiệm vụ của điều dưỡng gây mê hồi sức quy định tại Thông tư liên tịch số 26/2015/TTLT-BYT-BNV ngày 07/10/2015","Toàn thời gian",null,"07h00 - 11h00; 13h00 - 17h00","CNĐD"]
["559","Dương Quốc Thanh","005088/CT-CCHN","Thực hiện theo chức năng nhiệm vụ của điều dưỡng quy định theo Thông tư liên tịch số 26/2015/TTLT-BYT ngày 07/10/2015","Toàn thời gian",null,"07h00 - 11h00; 13h00 - 17h00","ĐDCĐ"]
["560","Phan Thành Đạt","006421/CT-CCHN","Thực hiện theo chức năng nhiệm vụ của điều dưỡng gây mê hồi sức quy định tại Thông tư liên tịch số 26/2015/TTLT-BYT-BNV ngày 07/10/2015","Toàn thời gian",null,"07h00 - 11h00; 13h00 - 17h00","ĐDCĐ "]
["561","Danh Thị Tiền","03935/ST-CCHN","Thực hiện phạm vị hoạt dộng chuyên môn theo quy định tại Thông tư số 26/2015/TTLT-BYT-BNV ngày 07 tháng 10 năm 2015 của Bộ Y tế - Bộ Nội vụ","Toàn thời gian",null,"07h00 - 11h00; 13h00 - 17h00","ĐDCĐ"]
["562","Đinh Thị Ngân Hà","006489/CT-CCHN","Thực hiện theo chúc năng nhiệm vụ của điều dưỡng quy định theo Thông tư liên tịch số 26/2015/TTLT-BYT ngày 07/10/2015","Toàn thời gian",null,"07h00 - 11h00; 13h00 - 17h00","Y sĩ/ CNĐD"]
["563","Trần Phước Thanh Minh","005752/CT-CCHN","Khám bệnh, chữa bệnh chuyên khoa giải phẫu bệnh","Toàn thời gian",null,"07h00 - 11h00; 13h00 - 17h00","Thạc sĩ Bác sĩ","Trưởng khoa"]
["564","Đinh Việt Dũng","003176/CT-CCHN","Thực hiện các kỹ thuật thông thường về xét nghiệm","Toàn thời gian",null,"07h00 - 11h00; 13h00 - 17h00","BSYK"]
["565","Lê Thanh Sơn","006577/CT-CCHN","Kỹ thuật viên xét nghiệm","Toàn thời gian",null,"07h00 - 11h00; 13h00 - 17h00","CĐ XNYH/\nCN KT XNYH"]
["566","Nguyễn Văn Hiếu","006610/CT-CCHN","Thực hiện theo chúc năng nhiệm vụ của điều dưỡng quy định theo Thông tư liên tịch số 26/2015/TTLT-BYT ngày 07/10/2015","Toàn thời gian",null,"07h00 - 11h00; 13h00 - 17h00","Y sĩ"]
["567","Nguyễn Hoàng Anh","000373/CT-CCHN","Khám, chữa bệnh chuyên khoa Chẩn đoán hình ảnh","Toàn thời gian",null,"07h00 - 11h00; 13h00 - 17h00","BSCKII","Trưởng khoa "]
["568","Trần Kim Cúc","003112/CT-CCHN","Chuyên khoa chẩn đoán hình ảnh","Toàn thời gian",null,"07h00 - 11h00; 13h00 - 17h00","BSCKI","Phó\nTrưởng khoa"]
["569","Hoàng Thị Thanh Thảo","004221/CT-CCHN","Chuyên khoa siêu âm","Toàn thời gian",null,"07h00 - 11h00; 13h00 - 17h00","Bác sĩ"]
["570","Nguyễn Thị Ngọc Chân","003742/CT-CCHN","Khám bệnh, chữa bệnh Đa khoa","Toàn thời gian",null,"07h00 - 11h00; 13h00 - 17h00","Bác sĩ"]
["571","Nguyễn Trung Hậu","004665/CT-CCHN","Khám bệnh, chữa bệnh chuyên khoa chẩn đoán hình ảnh","Toàn thời gian",null,"07h00 - 11h00; 13h00 - 17h00","Bác sĩ"]
["572","Võ Hoàng Thị Đoan Trang","006761/CT-CCHN","Chuyên khoa chẩn đoán hình ảnh","Toàn thời gian",null,"07h00 - 11h00; 13h00 - 17h00","Bác sĩ"]
["573","Nguyễn Minh Hùng","001959/CT-CCHN","Khám bệnh, chữa bệnh nội khoa","Toàn thời gian",null,"07h00 - 11h00; 13h00 - 17h00","Bác sĩ"]
["574","Lê Thảo Nguyên","006790/CT-CCHN","Chuyên khoa siêu âm","Toàn thời gian",null,"07h00 - 11h00; 13h00 - 17h00","Bác sĩ"]
["575","Phạm Thị Ngọc Ngân","007621/CT-CCHN","Khám bệnh, chữa bệnh nội khoa","Toàn thời gian",null,"07h00 - 11h00; 13h00 - 17h00","Bác sĩ"]
["576","Nguyễn Ngọc Như Huỳnh","007613/CT-CCHN","Khám bệnh, chữa bệnh nội khoa","Toàn thời gian",null,"07h00 - 11h00; 13h00 - 17h00","Bác sĩ"]
["577","Bùi Ngọc Thuấn","004359/BYT-CCHN","Chuyên khoa chẩn đoán hình ảnh","Bán thời gian","2,3,4,5,6,7,CN","05h00 - 07h00; 11h00 - 13h00; 17h00 - 22h00","BSCKII"]
["578","Dương Thị Mai Phượng","002610/BYT-CCHN","Chuyên khoa chẩn đoán hình ảnh","Bán thời gian","2,3,4,5,6,7,CN","05h00 - 07h00; 11h00 - 13h00; 17h00 - 22h00","Bác sĩ"]
["579","Trần Công Khánh","004362/BYT-CCHN","Chuyên khoa chẩn đoán hình ảnh","Bán thời gian","2,3,4,5,6,7,CN","05h00 - 07h00; 11h00 - 13h00; 17h00 - 22h00","Bác sĩ"]
["580","Phan Thị Ngọc Tinl","005022/CT-CCHN",{"$f":"VLOOKUP(B595,'[1]ĐÃ có CCHN'!$B$3:$I$889,4,FALSE)","v":"Thực hiện theo chức năng nhiệm vụ của Điều dưỡng quy định tại Thông tư liên tịch số 26/2015/TTLT-BYT-BNV ngày 07/10/2015."},"Toàn thời gian",null,"07h00 - 11h00; 13h00 - 17h00","CNĐD"]
["581","Trương Thị Bé Thư","003124/CT-CCHN",{"$f":"VLOOKUP(B596,'[1]ĐÃ có CCHN'!$B$3:$I$889,4,FALSE)","v":"Thực hiện các kỹ thuật điều dưỡng cơ bản"},"Toàn thời gian",null,"07h00 - 11h00; 13h00 - 17h00","CNĐD"]
["582","Nguyễn Thị Bích Tuyền","004441/CT-CCHN","Thực hiện theo chúc năng nhiệm vụ của điều dưỡng quy định theo Thông tư liên tịch số 26/2015/TTLT-BYT ngày 07/10/2016","Toàn thời gian",null,"07h00 - 11h00; 13h00 - 17h00","CNĐD"]
["583","Phan Thanh Nghị","003195/CT-CCHN",{"$f":"VLOOKUP(B598,'[1]ĐÃ có CCHN'!$B$3:$I$889,4,FALSE)","v":"Thực hiện các kỹ thuật điều dưỡng cơ bản"},"Toàn thời gian",null,"07h00 - 11h00; 13h00 - 17h00","CNĐD"]
["584","Lê Thị Ngân Trang","004808/CT-CCHN",{"$f":"VLOOKUP(B599,'[1]ĐÃ có CCHN'!$B$3:$I$889,4,FALSE)","v":"Thực hiện theo chức năng nhiệm vụ của Điều dưỡng quy định tại Thông tư liên tịch số 26/2015/TTLT-BYT-BNV ngày 07/10/2015."},"Toàn thời gian",null,"07h00 - 11h00; 13h00 - 17h00","ĐDCĐ"]
["585","Nguyễn Ngọc Tốt","003114/CT-CCHN",{"$f":"VLOOKUP(B600,'[1]ĐÃ có CCHN'!$B$3:$I$889,4,FALSE)","v":"Thực hiện các kỹ thuật điều dưỡng cơ bản"},"Toàn thời gian",null,"07h00 - 11h00; 13h00 - 17h00","ĐDTC/ ĐDCĐ"]
["586","Trần Thị Hồng Tiến","004002/CT-CCHN",{"$f":"VLOOKUP(B601,'[1]ĐÃ có CCHN'!$B$3:$I$889,4,FALSE)","v":"Thực hiện các kỹ thuật điều dưỡng cơ bản"},"Toàn thời gian",null,"07h00 - 11h00; 13h00 - 17h00","ĐDTC/ ĐDCĐ"]
["587","Nguyễn Thị Nhung","004793/CT-CCHN","Thực hiện theo chúc năng nhiệm vụ của điều dưỡng quy định theo Thông tư liên tịch số 26/2015/TTLT-BYT ngày 07/10/2015","Toàn thời gian",null,"07h00 - 11h00; 13h00 - 17h00","CNĐD"]
["588","Nguyễn Ngọc Diễm Trinh","003122/CT-CCHN","Thực hiện các kỹ thuật thông thường về hình ảnh y học","Toàn thời gian",null,"07h00 - 11h00; 13h00 - 17h00","CN HAYH"]
["589","Châu Bá Tòng","003119/CT-CCHN","Thực hiện các kỹ thuật thông thường về hình ảnh y học","Toàn thời gian",null,"07h00 - 11h00; 13h00 - 17h00","KTV HAYH/\nCĐ KT HAYH"]
["590","Lê Thành Nhân","003123/CT-CCHN","Thực hiện các kỹ thuật thông thường về hình ảnh y học","Toàn thời gian",null,"07h00 - 11h00; 13h00 - 17h00","KTV HAYH/\nCĐ KT HAYH"]
["591","Nguyễn Huỳnh Trung Nam","004890/CT-CCHN",{"$f":"VLOOKUP(B606,'[1]ĐÃ có CCHN'!$B$3:$I$889,4,FALSE)","v":"Kỹ thuật viên hình ảnh y học"},"Toàn thời gian",null,"07h00 - 11h00; 13h00 - 17h00","KTV HAYH/\nCĐ KT HAYH"]
["592","Thái Ngọc Thạnh","005543/CT-CCHN",{"$f":"VLOOKUP(B607,'[1]ĐÃ có CCHN'!$B$3:$I$889,4,FALSE)","v":"Kỹ thuật viên hình ảnh y học"},"Toàn thời gian",null,"07h00 - 11h00; 13h00 - 17h00","KT HAYH"]
["593","Trịnh Hoàng Phi","005675/CT-CCHN",{"$f":"VLOOKUP(B608,'[1]ĐÃ có CCHN'!$B$3:$I$889,4,FALSE)","v":"Kỹ thuật viên hình ảnh y học"},"Toàn thời gian",null,"07h00 - 11h00; 13h00 - 17h00","KTV HAYH/\nCĐ KT HAYH"]
["594","Nguyễn Văn Sang","004828/CT-CCHN",{"$f":"VLOOKUP(B609,'[1]ĐÃ có CCHN'!$B$3:$I$889,4,FALSE)","v":"Kỹ thuật viên hình ảnh y học"},"Toàn thời gian",null,"07h00 - 11h00; 13h00 - 17h00","KT HAYH/ CĐ KT HAYH"]
["595","Trần Hữu Nhân","006803/CT-CCHN",{"$f":"VLOOKUP(B610,'[1]ĐÃ có CCHN'!$B$3:$I$889,4,FALSE)","v":"Kỹ thuật viên hình ảnh y học"},"Toàn thời gian",null,"07h00 - 11h00; 13h00 - 17h00","KT HAYH"]
["596","Trần Kim Phụng","004804/CT-CCHN",{"$f":"VLOOKUP(B611,'[1]ĐÃ có CCHN'!$B$3:$I$889,4,FALSE)","v":"Thực hiện theo chức năng nhiệm vụ của Điều dưỡng quy định tại Thông tư liên tịch số 26/2015/TTLT-BYT-BNV ngày 07/10/2015."},"Toàn thời gian",null,"07h00 - 11h00; 13h00 - 17h00","CNĐD"]
["597","Nguyễn Văn Non","004939/CT-CCHN",{"$f":"VLOOKUP(B612,'[1]ĐÃ có CCHN'!$B$3:$I$889,4,FALSE)","v":"Thực hiện theo chức năng nhiệm vụ của Điều dưỡng quy định tại Thông tư liên tịch số 26/2015/TTLT-BYT-BNV ngày 07/10/2015."},"Toàn thời gian",null,"07h00 - 11h00; 13h00 - 17h00","ĐDCĐ"]
["598","Lương Thị Kim Yến","006555/CT-CCHN",{"$f":"VLOOKUP(B613,'[1]ĐÃ có CCHN'!$B$3:$I$889,4,FALSE)","v":"Thực hiện theo chức năng nhiệm vụ của Điều dưỡng quy định tại Thông tư liên tịch số 26/2015/TTLT-BYT-BNV ngày 07/10/2015."},"Toàn thời gian",null,"07h00 - 11h00; 13h00 - 17h00","ĐDCĐ "]
["599","Trần Tuấn Bằng","004817/CT-CCHN",{"$f":"VLOOKUP(B614,'[1]ĐÃ có CCHN'!$B$3:$I$889,4,FALSE)","v":"Thực hiện theo chức năng nhiệm vụ của Điều dưỡng quy định tại Thông tư liên tịch số 26/2015/TTLT-BYT-BNV ngày 07/10/2015."},"Toàn thời gian",null,"07h00 - 11h00; 13h00 - 17h00","ĐDCĐ"]
["600","Nguyễn Thương Quý","006678/CT-CCHN",{"$f":"VLOOKUP(B615,'[1]ĐÃ có CCHN'!$B$3:$I$889,4,FALSE)","v":"Kỹ thuật viên hình ảnh y học"},"Toàn thời gian",null,"07h00 - 11h00; 13h00 - 17h00","KT HAYH"]
["601","Trần Viết Cường","006585/CT-CCHN",{"$f":"VLOOKUP(B616,'[1]ĐÃ có CCHN'!$B$3:$I$889,4,FALSE)","v":"Kỹ thuật viên hình ảnh y học"},"Toàn thời gian",null,"07h00 - 11h00; 13h00 - 17h00","KT HAYH/\nCĐ KT HAYH"]
["602","Nguyễn Minh Chiến","005678/CT-CCHN",{"$f":"VLOOKUP(B617,'[1]ĐÃ có CCHN'!$B$3:$I$889,4,FALSE)","v":"Kỹ thuật viên hình ảnh y học"},"Toàn thời gian",null,"07h00 - 11h00; 13h00 - 17h00","KT HAYH/\nCĐ HAYH"]
["603","Huỳnh Thanh Hiện","004889/CT-CCHN",{"$f":"VLOOKUP(B618,'[1]ĐÃ có CCHN'!$B$3:$I$889,4,FALSE)","v":"Kỹ thuật viên hình ảnh y học"},"Toàn thời gian",null,"07h00 - 11h00; 13h00 - 17h00","KT HAYH"]
["604","Nguyễn Thanh Phong","004886/CT-CCHN",{"$f":"VLOOKUP(B619,'[1]ĐÃ có CCHN'!$B$3:$I$889,4,FALSE)","v":"Kỹ thuật viên hình ảnh y học"},"Toàn thời gian",null,"07h00 - 11h00; 13h00 - 17h00","KTV HAYH/\nCĐ KT HAYH"]
["605","Lê Thị Việt Trinh","005495/CT-CCHN",{"$f":"VLOOKUP(B620,'[1]ĐÃ có CCHN'!$B$3:$I$889,4,FALSE)","v":"Kỹ thuật viên hình ảnh y học"},"Toàn thời gian",null,"07h00 - 11h00; 13h00 - 17h00","KT HAYH"]
["606","Lê Hoàng Liệt","0030632/HCM-CCHN",{"$f":"VLOOKUP(B621,'[1]ĐÃ có CCHN'!$B$3:$I$889,4,FALSE)","v":"Kỹ thuật viên hình ảnh (X-quang; CT-Scanner)"},"Toàn thời gian",null,"07h00 - 11h00; 13h00 - 17h00","KTV HAYH/\nCĐ KT HAYH"]
["607","Phạm Phát Tài","005749/CT-CCHN",{"$f":"VLOOKUP(B622,'[1]ĐÃ có CCHN'!$B$3:$I$889,4,FALSE)","v":"Kỹ thuật viên hình ảnh y học"},"Toàn thời gian",null,"07h00 - 11h00; 13h00 - 17h00","KT HAYH/\nCĐ KT HAYH"]
["608","Lâm Trọng Nhân","006677/CT-CCHN",{"$f":"VLOOKUP(B623,'[1]ĐÃ có CCHN'!$B$3:$I$889,4,FALSE)","v":"Kỹ thuật viên hình ảnh y học"},"Toàn thời gian",null,"07h00 - 11h00; 13h00 - 17h00","KTV HAYH"]
["609","Nguyễn Hồng Tâm","000533/CT-CCHN","Khám bệnh, chữa bệnh Nội khoa","Toàn thời gian",null,"07h00 - 11h00; 13h00 - 17h00","BSCKII","Trưởng khoa"]
["610","Phạm Thanh Truyền","003216/CT-CCHN",{"$f":"VLOOKUP(B625,'[1]ĐÃ có CCHN'!$B$3:$I$889,4,FALSE)","v":"Thực hiện các kỹ thuật điều dưỡng cơ bản và các kỹ thuật thông thường về ngoại chấn thương chỉnh hình.\nThực hiện các kỹ thuật điều dưỡng chuyên khoa Mắt"},"Toàn thời gian",null,"07h00 - 11h00; 13h00 - 17h00","ĐDCKI","Phó\nTrưởng khoa"]
["611","Huỳnh Ái Thảo","004092/CT-CCHN",{"$f":"VLOOKUP(B626,'[1]ĐÃ có CCHN'!$B$3:$I$889,4,FALSE)","v":"Thực hiện các kỹ thuật điều dưỡng cơ bản và các kỹ thuật điều dưỡng chuyên khoa"},"Toàn thời gian",null,"07h00 - 11h00; 13h00 - 17h00","ĐDCKI","ĐDTK"]
["612","Thị Ly Na","004051/CT-CCHN",{"$f":"VLOOKUP(B627,'[1]ĐÃ có CCHN'!$B$3:$I$889,4,FALSE)","v":"Thực hiện các kỹ thuật điều dưỡng cơ bản và các kỹ thuật điều dưỡng chuyên khoa"},"Toàn thời gian",null,"07h00 - 11h00; 13h00 - 17h00","CNĐD"]
["613","Lê Thị Thúy","003133/CT-CCHN",{"$f":"VLOOKUP(B628,'[1]ĐÃ có CCHN'!$B$3:$I$889,4,FALSE)","v":"Thực hiện các kỹ thuật điều dưỡng cơ bản"},"Toàn thời gian",null,"07h00 - 11h00; 13h00 - 17h00","ĐDTC"]
["614","Nguyễn Ngọc Ý","003152/CT-CCHN",{"$f":"VLOOKUP(B629,'[1]ĐÃ có CCHN'!$B$3:$I$889,4,FALSE)","v":"Thực hiện các kỹ thuật điều dưỡng cơ bản"},"Toàn thời gian",null,"07h00 - 11h00; 13h00 - 17h00","ĐDTC"]
["615","Nguyễn Thị Hồng","003150/CT-CCHN",{"$f":"VLOOKUP(B630,'[1]ĐÃ có CCHN'!$B$3:$I$889,4,FALSE)","v":"Thực hiện các kỹ thuật điều dưỡng cơ bản"},"Toàn thời gian",null,"07h00 - 11h00; 13h00 - 17h00","ĐDTC"]
["616","Võ Phan Tường Vi","007726/CT-CCHN","Thực hiện chức năng nhiệm vụ của Điều dưỡng theo Thông tư liên tịch số 26/2015/TTLT-BYT ngày 07/10/2015","Toàn thời gian",null,"07h00 - 11h00; 13h00 - 17h00","ĐDCĐ"]
["617","Đỗ Thị Phương Châm","005369/CT-CCHN","Thực hiện chức năng nhiệm vụ của Điều dưỡng theo Thông tư liên tịch số 26/2015/TTLT-BYT ngày 07/10/2015","Toàn thời gian",null,"07h00 - 11h00; 13h00 - 17h00","CNĐD"]
["618","Đỗ Hồng Nhan","005664/CT-CCHN","Khám bệnh, chữa bênh chuyên khoa Y học gia đình","Toàn thời gian",null,"07h00 - 11h00; 13h00 - 17h00","BSCKI","Phó\nTrưởng khoa"]
["619","Phan Thị Hiền","004591/CT-CCHN",{"$f":"VLOOKUP(B634,'[1]ĐÃ có CCHN'!$B$3:$I$889,4,FALSE)","v":"Quy định tại Quyết định số 41/2005/QĐ – BNV ngày 22/4/2005 của Bộ trưởng Bộ Nội vụ về việc ban hành tiêu chuẩn nghiệp vụ các ngạch viên chức y tế điều dưỡng."},"Toàn thời gian",null,"07h00 - 11h00; 13h00 - 17h00","ĐDCĐ"]
["620","Nguyễn Thị Cẩm Hằng","003962/CT-CCHN",{"$f":"VLOOKUP(B635,'[1]ĐÃ có CCHN'!$B$3:$I$889,4,FALSE)","v":"Quy định tại Quyết định số 41/2005/QĐ – BNV ngày 22/4/2005 của Bộ trưởng Bộ Nội vụ về việc ban hành tiêu chuẩn nghiệp vụ các ngạch viên chức y tế điều dưỡng."},"Toàn thời gian",null,"07h00 - 11h00; 13h00 - 17h00","CNĐD"]
["621","Nguyễn Dương Hiển","000031/CT-CCHN","Xét nghiệm","Toàn thời gian",null,"07h00 - 11h00; 13h00 - 17h00","Thạc sĩ Y học (Y học chức năng)","Trưởng khoa"]
["622","Huỳnh Quang Minh","000037/CT-CCHN","Xét nghiệm","Toàn thời gian",null,"07h00 - 11h00; 13h00 - 17h00","CKI XNYH","Phó\nTrưởng khoa"]
["623","Ông Trương Hoàng Mai","003161/CT-CCHN","- Thực hiện các kỹ thuật thông thường về xét nghiệm\n- Chuyên khoa xét nghiệm","Toàn thời gian",null,"07h00 - 11h00; 13h00 - 17h00","CN Xét nghiệm","KTV TK"]
["624","Lê Ngọc Diệp","006250/CT-CCHN","Chuyên khoa xét nghiệm ","Toàn thời gian",null,"07h00 - 11h00; 13h00 - 17h00","DSĐH"]
["625","Phạm Ngọc Thùy","006457/CT-CCHN","Chuyên khoa xét nghiệm ","Toàn thời gian",null,"07h00 - 11h00; 13h00 - 17h00","CN Sinh học"]
["626","Nguyễn Thị Oanh","003180/CT-CCHN","- Thực hiện các kỹ thuật thông thường về xét nghiệm\n- Chuyên khoa xét nghiệm","Toàn thời gian",null,"07h00 - 11h00; 13h00 - 17h00","CN Xét nghiệm"]
["627","Lê Thúy An","003178/CT-CCHN","Thực hiện các kỹ thuật thông thường về xét nghiệm","Toàn thời gian",null,"07h00 - 11h00; 13h00 - 17h00","CN Xét nghiệm"]
["628","Lê Hồ Ánh Huệ","003159/CT-CCHN","Thực hiện các kỹ thuật thông thường về xét nghiệm","Toàn thời gian",null,"07h00 - 11h00; 13h00 - 17h00","CN Xét nghiệm"]
["629","Huỳnh Thị Nhã Trúc","003164/CT-CCHN","Thực hiện các kỹ thuật thông thường về xét nghiệm","Toàn thời gian",null,"07h00 - 11h00; 13h00 - 17h00","CN Xét nghiệm"]
["630","Hà Minh Huấn","003830/CT-CCHN","- Thực hiện các kỹ thuật thông thường về xét nghiệm\n- Chuyên khoa xét nghiệm","Toàn thời gian",null,"07h00 - 11h00; 13h00 - 17h00","CN Xét nghiệm"]
["631","Nguyễn Thị Kim Lang","007574/CT-CCHN","\n- Chuyên khoa xét nghiệm","Toàn thời gian",null,"07h00 - 11h00; 13h00 - 17h00","CN Xét nghiệm"]
["632","Bùi Thị Diễm Kiều","003165/CT-CCHN","Thực hiện các kỹ thuật thông thường về xét nghiệm","Toàn thời gian",null,"07h00 - 11h00; 13h00 - 17h00","KTV Xét nghiệm/\nCNXN"]
["633","Nguyễn Trần Ngọc Thảo","003871/CT-CCHN","- Thực hiện các kỹ thuật thông thường về xét nghiệm\n- Chuyên khoa xét nghiệm","Toàn thời gian",null,"07h00 - 11h00; 13h00 - 17h00","CN Xét nghiệm"]
["634","Nguyễn Thụy Tố Chinh","003824/CT-CCHN","- Thực hiện các kỹ thuật thông thường về xét nghiệm\n- Chuyên khoa xét nghiệm","Toàn thời gian",null,"07h00 - 11h00; 13h00 - 17h00","CNXN Y học"]
["635","Nguyễn Thị Hoàng Liên","005134/CT-CCHN","Kỹ thuật viên xét nghiệm","Toàn thời gian",null,"07h00 - 11h00; 13h00 - 17h00","KTV Xét nghiệm"]
["636","Lê Thị Kim Thoa","003883/CT-CCHN","- Thực hiện các kỹ thuật thông thường về xét nghiệm\n- Chuyên khoa xét nghiệm","Toàn thời gian",null,"07h00 - 11h00; 13h00 - 17h00","CNXN Y học"]
["637","Lê Thị Bé Ngoan","003873/CT-CCHN","- Thực hiện các kỹ thuật thông thường về xét nghiệm\n- Chuyên khoa xét nghiệm","Toàn thời gian",null,"07h00 - 11h00; 13h00 - 17h00","CN Xét nghiệm"]
["638","Nguyễn Kim Nguyên","003886/CT-CCHN","Thực hiện các kỹ thuật thông thường về xét nghiệm","Toàn thời gian",null,"07h00 - 11h00; 13h00 - 17h00","KTV Xét nghiệm/\nCN KT XNYH"]
["639","Trần Thị Mai Hương","003160/CT-CCHN","Thực hiện các kỹ thuật điều dưỡng cơ bản và các kỹ thuật thông thường về xét nghiệm","Toàn thời gian",null,"07h00 - 11h00; 13h00 - 17h00","ĐDTC"]
["640","Nguyễn Minh Trang","004932/CT-CCHN","Chuyên khoa xét nghiệm ","Toàn thời gian",null,"07h00 - 11h00; 13h00 - 17h00","CN Xét nghiệm"]
["641","Trần Thị Tường Vi","006371/CT-CCHN","Chuyên khoa xét nghiệm ","Toàn thời gian",null,"07h00 - 11h00; 13h00 - 17h00","CN Xét nghiệm"]
["642","Trần Hồng Nhiên","006773/CT-CCHN","Chuyên khoa xét nghiệm ","Toàn thời gian",null,"07h00 - 11h00; 13h00 - 17h00","CN Xét nghiệm"]
["643","Nguyễn Huỳnh Giao","006772/CT-CCHN","Chuyên khoa xét nghiệm ","Toàn thời gian",null,"07h00 - 11h00; 13h00 - 17h00","CN Xét nghiệm"]
["644","Hoàng Đăng Quang","004784/CM-CCHN","Chuyên khoa xét nghiệm ","Toàn thời gian",null,"07h00 - 11h00; 13h00 - 17h00","CN Xét nghiệm"]
["645","Nguyễn Bích Mơ","004998/CM-CCHN","Thực hiện Phạm vi hoạt động chuyên môn theo quy định tại Thông tư liên tịch số 26/2015/TTLTBYT-BNV ngày 07/10/2015","Toàn thời gian",null,"07h00 - 11h00; 13h00 - 17h00","CN Xét nghiệm"]
["646","Nguyễn Thị Kim Thoa","007607/CT-CCHN","Chuyên khoa xét nghiệm ","Toàn thời gian",null,"07h00 - 11h00; 13h00 - 17h00","CN Xét nghiệm"]
["647","Trương Xuân Anh","007278/CT-CCHN","Chuyên khoa xét nghiệm ","Toàn thời gian",null,"07h00 - 11h00; 13h00 - 17h00","CNXN"]
["648","Lê Võ Thúy Đang","007561/CT-CCHN","Chuyên khoa xét nghiệm","Toàn thời gian",null,"07h00 - 11h00; 13h00 - 17h00","CNXN"]
["649","Đỗ Thị Yến Phương","004219/CT-CCHN","Chuyên khoa xét nghiệm vi sinh","Toàn thời gian",null,"07h00 - 11h00; 13h00 - 17h00","Cử nhân CNSH"]
["650","Nguyễn Thúy Hằng","006277/CT-CCHN","Kỹ thuật viên xét nghiệm","Toàn thời gian",null,"07h00 - 11h00; 13h00 - 17h00","CNXN"]
["651","Lâm Nguyễn Phúc Vinh","006788/CT-CCHN","Kỹ thuật viên xét nghiệm","Toàn thời gian",null,"07h00 - 11h00; 13h00 - 17h00","CNXN"]
["652","Lê Minh Vương","005133/CT-CCHN","- Kỹ thuật viên xét nghiệm\n- Chuyên khoa xét nghiệm","Toàn thời gian",null,"07h00 - 11h00; 13h00 - 17h00","CNXN"]
["653","Nguyễn Thị Diễm Trinh","007581/CT-CCHN","Kỹ thuật viên xét nghiệm","Toàn thời gian",null,"07h00 - 11h00; 13h00 - 17h00","CĐXN"]
["654","Dương Thị Hồng Phúc","006247/CT-CCHN","Kỹ thuật viên xét nghiệm","Toàn thời gian",null,"07h00 - 11h00; 13h00 - 17h00","KT Xét nghiệm"]
["655","Bùi Hữu Nghĩa","007513/CT-CCHN","Kỹ thuật viên xét nghiệm","Toàn thời gian",null,"07h00 - 11h00; 13h00 - 17h00","KT Xét nghiệm"]
["656","Võ Thị Yến","007803/CT-CCHN","Chuyên khoa xét nghiệm","Toàn thời gian",null,"07h00 - 11h00; 13h00 - 17h00","KT Xét nghiệm"]
["657","Phạm Kiều Anh Thơ","032338/BYT-CCHN","Chuyên khoa thăm dò chức năng","Bán thời gian","2,3,4,5,6,7,CN","07h00 - 11h00; 13h00 - 17h00","KT Xét nghiệm"," BS GV BVĐHYDCT"]
["658","Lê Thanh Phong","608/CCHND","Nhà thuốc tư nhân ","Toàn thời gian",null,"07h00 - 11h00; 13h00 - 17h00","DSCKII","Trưởng khoa "]
["659","Thiều Thị Thanh Thuỷ","502/CCHN-D-SYT-CT","- Bán lẻ thuốc: chịu trách nhiệm chuyên môn về dược của cơ sở: nhà thuốc, quầy thuốc, tủ thuốc Trạm Y tế.\n- Dược lâm sàng: phụ trách công tác dược lâm sàng của cơ sở khám bệnh, chữa bệnh (trừ cơ sở khám bệnh, chữa bệnh bằng y học cổ truyền).","Toàn thời gian",null,"07h00 - 11h00; 13h00 - 17h00","DSCKI","Phó\nTrưởng khoa"]
["660","Nguyễn Thị Thùy Trang","421/CCHN-D-SYT-CT","Bảo quản; Bán buôn thuốc, nguyên liệu làm thuốc; Bán lẻ thuốc; Dược lâm sàng;\nChịu trách nhiệm chuyên môn về dược của cơ sở kinh doanh dịch vụ bảo quả; bán buôn thuốc, nguyên liệu làm thuốc (trừ vắc xin, sinh phẩm); Bán buôn dược liệu, thuốc","Toàn thời gian",null,"07h00 - 11h00; 13h00 - 17h00","DSCKII"]
["661","Nguyễn Thị Mỹ Ngọc","299/CCHN-D-SYT-CT","- Bán lẻ thuốc: chịu trách nhiệm chuyên môn về dược của cơ sở: nhà thuốc, quầy thuốc, tủ thuốc Trạm Y tế.\n- Dược lâm sàng: phụ trách công tác dược lâm sàng của cơ sở khám bệnh, chữa bệnh (trừ cơ sở khám bệnh, chữa bệnh bằng y học cổ truyền).","Toàn thời gian",null,"07h00 - 11h00; 13h00 - 17h00","DSCKI"]
["662","Lê Ngọc Anh Pha","1145/VL-CCHND",{"$f":"VLOOKUP(B677,'[1]ĐÃ có CCHN'!$B$3:$I$889,4,FALSE)","v":"Bán lẻ thuốc (đủ tiêu chuẩn hành nghề Dược các hình thức tổ chức kinh doanh thuốc sau: doanh nghiệp bán buôn thuốc, quầy thuốc)"},"Toàn thời gian",null,"07h00 - 11h00; 13h00 - 17h00","ThS Dược"]
["663","Tô Mỹ Trang","315/CCHN-D-SYT-CT","Bảo quản; Bán buôn thuốc, nguyên liệu làm thuốc; Bán lẻ thuốc; Dược lâm sàng\nChịu trách nhiệm chuyên môn về dược của cơ sở kinh doanh dịch vụ bảo quản; bán buôn thuốc, nguyên liệu làm thuốc (trừ vắc xin, sinh phẩm); Bán buôn dược liệu, thuốc dược liệu, thuốc cổ truyền; Nhà thuốc; Quầy thuốc; tủ thuốc Trạm Y tế. \nPhụ trách công tác dược lâm sàng của cơ sở khám bệnh, chữa bệnh (trừ cơ sở khám bệnh, chữa bệnh bừang y học cổ truyền). ","Toàn thời gian",null,"07h00 - 11h00; 13h00 - 17h00","ThS Dược"]
["664","Dương Bửu Châu","185/CCHN-D-SYT-CT","- Bán lẻ thuốc: Chịu trách nhiệm chuyên môn về dược của cơ sở: nhà thuốc; quầy thuốc;  tủ thuốc Trạm Y tế.\n-Dược lâm sàng: Phụ trách công tác dược lâm sàng của cơ sở khám bệnh, chữa bệnh (trừ cơ sở khám bệnh, chữa bệnh bằng y học cổ truyền). ","Toàn thời gian",null,"07h00 - 11h00; 13h00 - 17h00","DSCKI"]
["665","Nguyễn Thúy Quỳnh","834/CCHN-D-SYT-CT","Bán lẻ thuốc: chịu trách nhiệm chuyên môn về dược của nhà thuốc","Toàn thời gian",null,"07h00 - 11h00; 13h00 - 17h00","DSĐH"]
["666","Phan Thị Anh Thư","860/CCHN-D-SYT-CT","Bán buôn thuốc, nguyên liệu làm thuốc; Bán lẻ thuốc: Chịu trách nhiệm chuyên môn về dược của cơ sở bán buôn thuốc, (trừ vắc xin, sinh phẩm, dược liệu), thuốc dược liệu, thuốc cổ truyền; nhà thuốc; quầy thuốc; tủ thuốc Trạm Y tế. ","Toàn thời gian",null,"07h00 - 11h00; 13h00 - 17h00","CKI dược lý, dược LS"]
["667","Trần Tú Linh","1421/CCHN-D-SYT-CT","Bảo quản; Bán buôn thuốc, nguyên liệu làm thuốc; Bán lẻ thuốc: Chịu trách nhiệm chuyên môn về dược của cơ sở Bảo quản; bán buôn thuốc, nguyện liệu làm thuốc (trừ vắc xin, sinh phẩm, dược liệu); Nhà thuốc; Quầy thuốc; Tủ thuốc trạm Y tế. ","Toàn thời gian",null,"07h00 - 11h00; 13h00 - 17h00","DSĐH"]
["668","Đặng Hoàng Nam","2648/CCHN-D-SYT-CT","Bán lẻ thuốc (người chịu trách nhiệm chuyên môn về Dược của nhà thuốc, quầy thuốc, tủ thuốc Trạm Y tế)","Toàn thời gian",null,"07h00 - 11h00; 13h00 - 17h00","DSĐH"]
["669","Triệu Ngọc Duệ","1598/CCHN-D-SYT-CT","Bán lẻ thuốc (người chịu trách nhiệm chuyên môn về Dược của nhà thuốc, quầy thuốc)","Toàn thời gian",null,"07h00 - 11h00; 13h00 - 17h00","DSĐH"]
["670","Nguyễn Thị Mận","1645/CCHN-D-SYT-CT","Bán lẻ thuốc (người chịu trách nhiệm chuyên môn về Dược của nhà thuốc, quầy thuốc)","Toàn thời gian",null,"07h00 - 11h00; 13h00 - 17h00","DSĐH"]
["671","Nguyễn Thị Phương Thảo","1585/CCHN-D-SYT-CT",{"$f":"VLOOKUP(B686,'[1]ĐÃ có CCHN'!$B$3:$I$889,4,FALSE)","v":"Bán lẻ thuốc (người chịu trách nhiệm chuyên môn về Dược của quầy thuốc )"},"Toàn thời gian",null,"07h00 - 11h00; 13h00 - 17h00","DSĐH"]
["672","Nguyễn Đặng Anh Thy","934/CT-CCHND","Đủ tiêu chuẩn hành nghề Dược các hình thức tổ chức kinh doanh thuốc sau: Quầy thuốc; Đại lý bán thuốc của doanh nghiệp; Cơ sở bán lẻ thuốc đông y, thuốc từ dược liệu, tủ thuốc trạm y tế.","Toàn thời gian",null,"07h00 - 11h00; 13h00 - 17h00","DSĐH"]
["673","Huỳnh Thị Mỹ An","1714/CCHN-D-SYT-CT","Bán lẻ thuốc (người chịu trách nhiệm chuyên môn về Dược của nhà thuốc, quầy thuốc, tủ thuốc Trạm Y tế)","Toàn thời gian",null,"07h00 - 11h00; 13h00 - 17h00","DSĐH"]
["674","Võ Thị Thúy","1712/CCHN-D-SYT-CT","Bán lẻ thuốc (người chịu trách nhiệm chuyên môn về Dược của quầy thuốc, nhà thuốc, tủ thuốc Trạm Y tế)","Toàn thời gian",null,"07h00 - 11h00; 13h00 - 17h00","DSĐH"]
["675","Trần Hằng Ni","1644/CCHN-D-SYT-CT",{"$f":"VLOOKUP(B690,'[1]ĐÃ có CCHN'!$B$3:$I$889,4,FALSE)","v":"Bán lẻ thuốc (người chịu trách nhiệm chuyên môn về Dược của quầy thuốc )"},"Toàn thời gian",null,"07h00 - 11h00; 13h00 - 17h00","DSTH/ DSCĐ"]
["676","Lê Trần Thanh Trúc","1671/CCHN-D-SYT-CT",{"$f":"VLOOKUP(B691,'[1]ĐÃ có CCHN'!$B$3:$I$889,4,FALSE)","v":"Bán lẻ thuốc (người chịu trách nhiệm chuyên môn về Dược của quầy thuốc )"},"Toàn thời gian",null,"07h00 - 11h00; 13h00 - 17h00","DSTH/ DSCĐ"]
["677","Ca Thị Quế Trân","1667/CCHN-D-SYT-CT",{"$f":"VLOOKUP(B692,'[1]ĐÃ có CCHN'!$B$3:$I$889,4,FALSE)","v":"Bán lẻ thuốc (người chịu trách nhiệm chuyên môn về Dược của quầy thuốc, tủ thuốc Trạm Y tế)"},"Toàn thời gian",null,"07h00 - 11h00; 13h00 - 17h00","DSTH/ DSCĐ"]
["678","Phan Trần Huyền Trang","1658/CCHN-D-SYT-CT",{"$f":"VLOOKUP(B693,'[1]ĐÃ có CCHN'!$B$3:$I$889,4,FALSE)","v":"Bán lẻ thuốc (người chịu trách nhiệm chuyên môn về Dược của quầy thuốc, tủ thuốc Trạm Y tế)"},"Toàn thời gian",null,"07h00 - 11h00; 13h00 - 17h00","DSTH/ DSCĐ"]
["679","Bùi Thị Bích Trâm","1700/CCHN-D-SYT-CT",{"$f":"VLOOKUP(B694,'[1]ĐÃ có CCHN'!$B$3:$I$889,4,FALSE)","v":"Bán lẻ thuốc (người chịu trách nhiệm chuyên môn về Dược của quầy thuốc, tủ thuốc Trạm Y tế)"},"Toàn thời gian",null,"07h00 - 11h00; 13h00 - 17h00","DSTH/ DSCĐ"]
["680","Đinh Thị Diễm Trinh","1745/CCHN-D-SYT-CT",{"$f":"VLOOKUP(B695,'[1]ĐÃ có CCHN'!$B$3:$I$889,4,FALSE)","v":"Bán lẻ thuốc (người chịu trách nhiệm chuyên môn về Dược của quầy thuốc, tủ thuốc trạm y tế xã)"},"Toàn thời gian",null,"07h00 - 11h00; 13h00 - 17h00","DSTH/ DSCĐ"]
["681","Nguyễn Thị Tuyết Mai","1731/CCHN-D-SYT-CT",{"$f":"VLOOKUP(B696,'[1]ĐÃ có CCHN'!$B$3:$I$889,4,FALSE)","v":"Bán lẻ thuốc (người chịu trách nhiệm chuyên môn về Dược của quầy thuốc )"},"Toàn thời gian",null,"07h00 - 11h00; 13h00 - 17h00","DSTH/ DSCĐ"]
["682","Triệu Ngọc Mai Hương","514/CCHN-D-SYT-CT",{"$f":"VLOOKUP(B697,'[1]ĐÃ có CCHN'!$B$3:$I$889,4,FALSE)","v":"Bán lẻ thuốc (người chịu trách nhiệm chuyên môn về Dược của quầy thuốc )"},"Toàn thời gian",null,"07h00 - 11h00; 13h00 - 17h00"," DSCĐ/\nDSĐH"]
["683","Đặng Thu Hồng","1732/CCHN-D-SYT-CT",{"$f":"VLOOKUP(B698,'[1]ĐÃ có CCHN'!$B$3:$I$889,4,FALSE)","v":"Bán lẻ thuốc (người chịu trách nhiệm chuyên môn về Dược của quầy thuốc, tủ thuốc Trạm Y tế)"},"Toàn thời gian",null,"07h00 - 11h00; 13h00 - 17h00","DSTH/ DSCĐ"]
["684","Lê Ngọc Diễm","1637/CCHN-D-SYT-CT",{"$f":"VLOOKUP(B699,'[1]ĐÃ có CCHN'!$B$3:$I$889,4,FALSE)","v":"Bán lẻ thuốc (người chịu trách nhiệm chuyên môn về Dược của quầy thuốc )"},"Toàn thời gian",null,"07h00 - 11h00; 13h00 - 17h00","DSTH/\nDSĐH"]
["685","Nguyễn Ngô Phương Lan","1688/CCHN-D-SYT-CT",{"$f":"VLOOKUP(B700,'[1]ĐÃ có CCHN'!$B$3:$I$889,4,FALSE)","v":"Bán lẻ thuốc (người chịu trách nhiệm chuyên môn về Dược của quầy thuốc, tủ thuốc Trạm Y tế)"},"Toàn thời gian",null,"07h00 - 11h00; 13h00 - 17h00","DSTH/ DSCĐ"]
["686","Nguyễn Thị Quyến","1604/CCHN-D-SYT-CT",{"$f":"VLOOKUP(B701,'[1]ĐÃ có CCHN'!$B$3:$I$889,4,FALSE)","v":"Bán lẻ thuốc (người chịu trách nhiệm chuyên môn về Dược của quầy thuốc )"},"Toàn thời gian",null,"07h00 - 11h00; 13h00 - 17h00","DSTH/ DSCĐ"]
["687","Nguyễn Ánh Xuân","1643/CCHN-D-SYT-CT",{"$f":"VLOOKUP(B702,'[1]ĐÃ có CCHN'!$B$3:$I$889,4,FALSE)","v":"Bán lẻ thuốc (người chịu trách nhiệm chuyên môn về Dược của quầy thuốc, tủ thuốc Trạm Y tế)"},"Toàn thời gian",null,"07h00 - 11h00; 13h00 - 17h00","DSTH/ DSCĐ"]
["688","Phạm Thanh Thùy","1653/CCHN-D-SYT-CT",{"$f":"VLOOKUP(B703,'[1]ĐÃ có CCHN'!$B$3:$I$889,4,FALSE)","v":"Bán lẻ thuốc (người chịu trách nhiệm chuyên môn về Dược của quầy thuốc, tủ thuốc Trạm Y tế)"},"Toàn thời gian",null,"07h00 - 11h00; 13h00 - 17h00","DSTH/ DSCĐ"]
["689","Vũ Ngọc Diệp","1716/CCHN-D-SYT-CT",{"$f":"VLOOKUP(B704,'[1]ĐÃ có CCHN'!$B$3:$I$889,4,FALSE)","v":"Bán lẻ thuốc, Dược lâm sàng (Người phụ trách nhiệm chuyên môn về Dược của: nhà thuốc, quầy thuốc, tủ thuốc Trạm Y tế, người phụ trách công tác Dược lâm sàng của cơ sở khám bệnh, chữa bệnh (trừ cơ sở khám bệnh, chữa bệnh bằng y học cổ truyền)"},"Toàn thời gian",null,"07h00 - 11h00; 13h00 - 17h00","DSĐH"]
["690","Lư Thanh Liêm","1640/CCHN-D-SYT-CT","Bán lẻ thuốc (người chịu trách nhiệm chuyên môn về Dược của nhà thuốc, quầy thuốc, tủ thuốc Trạm Y tế)","Toàn thời gian",null,"07h00 - 11h00; 13h00 - 17h00","DSĐH"]
["691","Nguyễn Bình Minh","1663/CCHN-D-SYT-CT",{"$f":"VLOOKUP(B706,'[1]ĐÃ có CCHN'!$B$3:$I$889,4,FALSE)","v":"Bán lẻ thuốc (người chịu trách nhiệm chuyên môn về Dược của quầy thuốc )"},"Toàn thời gian",null,"07h00 - 11h00; 13h00 - 17h00","DSĐH"]
["692","Đào Nguyễn Trọng Hoài","2979/CCHN-D-SYT-CT","Bán lẻ thuốc (người chịu trách nhiệm chuyên môn về Dược của quầy thuốc, tủ thuốc trạm y tế xã)","Toàn thời gian",null,"07h00 - 11h00; 13h00 - 17h00","DSĐH"]
["693","Nguyễn Thị Thanh Thảo","1567/CCHN-D-SYT-CT",{"$f":"VLOOKUP(B708,'[1]ĐÃ có CCHN'!$B$3:$I$889,4,FALSE)","v":"Bán lẻ thuốc (người chịu trách nhiệm chuyên môn về Dược của quầy thuốc )"},"Toàn thời gian",null,"07h00 - 11h00; 13h00 - 17h00","DSCĐ"]
["694","Nguyễn Hồ Thúy Duy","697/CCHN-D-SYT-CT",{"$f":"VLOOKUP(B709,'[1]ĐÃ có CCHN'!$B$3:$I$889,4,FALSE)","v":"Bán lẻ thuốc (người chịu trách nhiệm chuyên môn về Dược của quầy thuốc )"},"Toàn thời gian",null,"07h00 - 11h00; 13h00 - 17h00","DSTH/ DSCĐ"]
["695","Trần Thế Duy","1589/CCHN-D-SYT-CT",{"$f":"VLOOKUP(B710,'[1]ĐÃ có CCHN'!$B$3:$I$889,4,FALSE)","v":"Bán lẻ thuốc (người chịu trách nhiệm chuyên môn về Dược của quầy thuốc )"},"Toàn thời gian",null,"07h00 - 11h00; 13h00 - 17h00","DSCĐ"]
["696","Nguyễn Thị Ngọc Ngân","1841/CCHN-D-SYT-CT",{"$f":"VLOOKUP(B711,'[1]ĐÃ có CCHN'!$B$3:$I$889,4,FALSE)","v":"Bán lẻ thuốc (người chịu trách nhiệm chuyên môn về Dược của quầy thuốc, tủ thuốc Trạm Y tế)"},"Toàn thời gian",null,"07h00 - 11h00; 13h00 - 17h00","DSTH/ DSCĐ"]
["697","Trương Nhị Được","1723/CCHN-D-SYT-CT",{"$f":"VLOOKUP(B712,'[1]ĐÃ có CCHN'!$B$3:$I$889,4,FALSE)","v":"Bán lẻ thuốc (người chịu trách nhiệm chuyên môn về Dược của quầy thuốc )"},"Toàn thời gian",null,"07h00 - 11h00; 13h00 - 17h00","DSTH/ DSCĐ"]
["698","Thái Ngọc Hân","1766/CCHN-D-SYT-CT",{"$f":"VLOOKUP(B713,'[1]ĐÃ có CCHN'!$B$3:$I$889,4,FALSE)","v":"Bán lẻ thuốc (người chịu trách nhiệm chuyên môn về Dược của quầy thuốc )"},"Toàn thời gian",null,"07h00 - 11h00; 13h00 - 17h00","DSĐH"]
["699","Cao Âu Huy Hoàng","1755/CCHN-D-SYT-CT",{"$f":"VLOOKUP(B714,'[1]ĐÃ có CCHN'!$B$3:$I$889,4,FALSE)","v":"Bán lẻ thuốc (người chịu trách nhiệm chuyên môn về Dược của quầy thuốc, tủ thuốc Trạm Y tế)"},"Toàn thời gian",null,"07h00 - 11h00; 13h00 - 17h00","DSTH"]
["700","Lê Kim Thành","541/CCHN-D-SYT-HAUG",{"$f":"VLOOKUP(B715,'[1]ĐÃ có CCHN'!$B$3:$I$889,4,FALSE)","v":"Bán lẻ thuốc (người chịu trách nhiệm chuyên môn về Dược của quầy thuốc, tủ thuốc trạm y tế xã)"},"Toàn thời gian",null,"07h00 - 11h00; 13h00 - 17h00","DSTH/\nDSĐH"]
["701","Hà Hữu Danh","1638/CCHN-D-SYT-CT",{"$f":"VLOOKUP(B716,'[1]ĐÃ có CCHN'!$B$3:$I$889,4,FALSE)","v":"Bán lẻ thuốc (người chịu trách nhiệm chuyên môn về Dược của quầy thuốc )"},"Toàn thời gian",null,"07h00 - 11h00; 13h00 - 17h00","DSĐH"]
["702","Lê Thái Hùng","1734/CCHN-D-SYT-CT",{"$f":"VLOOKUP(B717,'[1]ĐÃ có CCHN'!$B$3:$I$889,4,FALSE)","v":"Bán lẻ thuốc (người chịu trách nhiệm chuyên môn về Dược của quầy thuốc, tủ thuốc Trạm Y tế)"},"Toàn thời gian",null,"07h00 - 11h00; 13h00 - 17h00","DSĐH"]
["703","Mai Thị Hồng Đoan","1632/CCHN-D-SYT-CT",{"$f":"VLOOKUP(B718,'[1]ĐÃ có CCHN'!$B$3:$I$889,4,FALSE)","v":"Bán lẻ thuốc (người chịu trách nhiệm chuyên môn về Dược của quầy thuốc )"},"Toàn thời gian",null,"07h00 - 11h00; 13h00 - 17h00","DSĐH"]
["704","Huỳnh Thái Châu","007871/CT-CCHN","Khám ,chữa bệnh nội khoa","Toàn thời gian",null,"07h00 - 11h00; 13h00 - 17h00","Bác sĩ"]
["705","Nguyễn Vũ Khánh Hoàng","007868/CT-CCHN","Khám ,chữa bệnh nội khoa","Toàn thời gian",null,"07h00 - 11h00; 13h00 - 17h00","Bác sĩ"]
["706","Ngô Đức Lộc","007914/CT-CCHN","Khám ,chữa bệnh nội khoa","bán thời gian",null,"07h00 - 11h00; 13h00 - 17h00","Bác sĩ"]
["707","Nguyễn Ngọc Thiên Trang","007886/CT-CCHN","Khám ,chữa bệnh nội khoa","Toàn thời gian",null,"07h00 - 11h00; 13h00 - 17h00","Bác sĩ"]
["708","Quách Ngọc Tâm","007961/CT-CCHN","Thực hiện theo chức năng nhiệm vụ của điều dưỡng quy định theo thông tư liên tịch số 26/2015/TTLT-BYT- BNV ngày 07/10/2015","Toàn thời gian",null,"07h00 - 11h00; 13h00 - 17h00","Điều dưỡng viên"]
["709","Phạm Quốc Quy","007942/CT-CCHN","Khám ,chữa bệnh nội khoa","Toàn thời gian",null,"07h00 - 11h00; 13h00 - 17h00","Bác sĩ"]
["710","Đống Minh Huyền","007985/CT-CCHN","Khám ,chữa bệnh nội khoa","Toàn thời gian",null,"07h00 - 11h00; 13h00 - 17h00","Bác sĩ"]
["711","Trương Thị Mỹ Huyền","007958/CT-CCHN","Thực hiện theo chức năng nhiệm vụ của điều dưỡng quy định theo thông tư liên tịch số 26/2015/TTLT-BYT- BNV ngày 07/10/2015","Toàn thời gian",null,"07h00 - 11h00; 13h00 - 17h00","Điều dưỡng viên"]
["712","Trần Văn Tùng","007945/CT-CCHN","Thực hiện theo chức năng nhiệm vụ của điều dưỡng quy định theo thông tư liên tịch số 26/2015/TTLT-BYT- BNV ngày 07/10/2015","Toàn thời gian",null,"07h00 - 11h00; 13h00 - 17h01","Điều dưỡng viên"]
["713","Nguyễn Kim Vượng","003897/CT-CCHN","Khám bệnh, chữa bệnh bằng y học cổ truyền","Bán thời gian","5","07h00 - 11h00, 13h00 - 17h00","BSCKI","BS GV ĐH VTT"]
["714","Trương Thanh Xuân","007601/CT-CCHN","Khám bệnh, chữa bệnh đa khoa","Bán thời gian","6","07h00 - 11h00, 13h00 - 17h00","Bác sĩ","BS GV ĐH VTT"]
["715","Lê Nguyên Lâm","005129/BYT-CCHN","Khám bệnh, chữa bệnh chuyên khoa Răng Hàm Mặt","Bán thời gian","2,3,4,5,6,7,CN","07h00 - 11h00; 13h00 - 17h00","Tiến sĩ Bác sĩ","BS GV ĐHYDCT"]
["716","Nguyễn Hoàng Giang","7106/ĐT-CCHN","Khám bệnh, chữa bệnh chuyên khoa Răng Hàm Mặt","Bán thời gian","2,3,4,5,6,7,CN","07h00 - 11h00; 13h00 - 17h00","Thạc sĩ Bác sĩ","BS GV ĐHYDCT"]
["717","Trương Văn Lâm","000886/CT-CCHN","Khám, chữa bệnh đa khoa - Tai Mũi Họng","Bán thời gian","5","07h00 - 11h00, 13h00 - 17h00","BSCKI","BS GV ĐH VTT"]
["718","Lê Vũ Linh","043779/BYT-CCHN","Chuyên khoa Gây mê hồi sức","Bán thời gian","5,6","07h00 - 11h00, 13h00 - 17h00","Thạc sĩ Bác sĩ","BS GV ĐHYDCT"]
["719","Nguyễn Xuân Đặng","002345/CT-CCHN","Khám bệnh, chữa bệnh đa khoa","Bán thời gian","5","07h00 - 11h00, 13h00 - 17h00","BSCKI","BS GV ĐHYDCT"]
["720","Lê Hoài Thanh","004648/CT-CCHN","Khám bệnh, chữa bệnh Nội khoa. Khám bệnh, chữa bệnh Y học gia đình","Bán thời gian","6","07h00 - 11h00, 13h00 - 17h00","BSCKI","BS GV ĐHYDCT"]
["721","Trình Đình Thảo","038795/BYT-CCHN","khám bệnh, chữa bệnh chuyên khoa Ngoại","Bán thời gian",null,"07h00 - 11h00, 13h00 - 17h00","BS","BS GV ĐHYDCT"]
["722","Huỳnh Tuấn An","038792/BYT-CCHN","khám bệnh, chữa bệnh chuyên khoa Ngoại","Bán thời gian",null,"07h00 - 11h00, 13h00 - 17h00","BS","BS GV ĐHYDCT"]
["723","Lê Công Hành","003521/BYT-CCHN","Khám bệnh, chữa bệnh chuyên khoa Truyền nhiễm","Bán thời gian",null,"07h00 - 11h00, 13h00 - 17h00","BS","BS GV ĐHYDCT"]
["724","Lý Thị Diễm Trang","001698/HAUG-CCHN","Khám bệnh, chữa bệnh đa khoa","Bán thời gian",null,"07h00 - 11h00, 13h00 - 17h00","BS","GV trường VTT"]
["725","Trần Thị Hồng Nhung","005167/CT-CCHN","Thực hiện theo chức năng nhiệm vụ của điều dưỡng quy định theo thông tư liên tịch số 26/2015/TTLT-BYT- BNV ngày 07/10/2015","Toàn thời gian",null,"07h00 - 11h00, 13h00 - 17h00","ĐD"]
["726","Võ Thanh Hùng","001073/CT-CCHN","khám bệnh, chữa bệnh chuyên khoa Nội","Bán thời gian",null,"07h00 - 11h00, 13h00 - 17h00","BS"]
["727","Võ Minh Phương","003442/BYT-CCHN","khám bệnh, chữa bệnh chuyên khoa Nội tổng hợp","Bán thời gian",null,"07h00 - 11h00, 13h00 - 17h00","BS"]
["728","Nguyễn Hữu Tài","036352/BYT-CCHN","khám bệnh, chữa bệnh chuyên khoa Ngoại","Bán thời gian",null,"07h00 - 11h00, 13h00 - 17h00","BS","BS GV ĐHYDCT"]
["729","Huỳnh Thị Tố Huyên","002911/CT-CCHN","thực hiện các kỹ thuật điều dưỡng cơ bản","Toàn thời gian",null,"07h00 - 11h00, 13h00 - 17h00","ĐD"]
["730","Võ Thị Diễm Phúc","003061/CT-CCHN","thực hiện các kỹ thuật điều dưỡng cơ bản","Toàn thời gian",null,"07h00 - 11h00, 13h00 - 17h00","ĐD"]
["731","Đặng Thị Bé Nhi","001750/CT-CCHN","Thực hiện các kỹ thuật điều dưỡng cơ bản và một số kỹ thuật điều dưỡng chuyên khoa","Toàn thời gian",null,"07h00 - 11h00, 13h00 - 17h00","ĐD"]
["732","Trần Thị Thùy Linh","007424/CT-CCHN","Thực hiện theo chức năng nhiệm vụ của điều dưỡng quy định theo thông tư liên tịch số 26/2015/TTLT-BYT- BNV ngày 07/10/2015","Toàn thời gian",null,"07h00 - 11h00, 13h00 - 17h00","ĐD"]
["733","Lê Minh Mẩn","007616/CT-CCHN","Thực hiện theo chức năng nhiệm vụ của điều dưỡng quy định theo thông tư liên tịch số 26/2015/TTLT-BYT- BNV ngày 07/10/2015","Toàn thời gian",null,"07h00 - 11h00, 13h00 - 17h00","ĐD"]
["734","Nguyễn Thị Mỹ Phương","003004/CT-CCHN","thực hiện các kỹ thuật điều dưỡng cơ bản","Toàn thời gian",null,"07h00 - 11h00, 13h00 - 17h00","ĐD"]
["735","Nguyễn Hứa Như Quỳnh","003182/CT-CCHN","Chuyên khoa xét nghiệm","Toàn thời gian",null,"07h00 - 11h00, 13h00 - 17h00","KTV"]
["736","Trần Trung Tính","0002663/VL-CCHN","Kỹ thuật viên hình ảnh y học","Toàn thời gian",null,"07h00 - 11h00, 13h00 - 17h00","KTV"]
["737","Đặng Khánh Nam","007996/CT-CCHN","Thực hiện chức năng nhiệm vụ của điều dưỡng quy định theo thông tư liên tịch số 26/2015/TTLT-BYT-BNV ngày 07/10/2015","Toàn thời gian",null,"07h00 - 11h00; 13h00 - 17h01"]
["738","VÕ TẤN PHÚC","007962/CT-CCHN","Thực hiện chức năng nhiệm vụ của điều dưỡng quy định theo thông tư liên tịch số 26/2015/TTLT-BYT-BNV ngày 07/10/2015","Toàn thời gian",null,"07h00 - 11h00; 13h00 - 17h02"]
["739","HUỲNH HẢI YẾN","008014/CT-CCHN ","Thực hiện chức năng nhiệm vụ của điều dưỡng quy định theo thông tư liên tịch số 26/2015/TTLT-BYT-BNV ngày 07/10/2015","Toàn thời gian",null,"07h00 - 11h00; 13h00 - 17h03"]
["740","LA MINH TÂM","008040/CT-CCHN","Thực hiện chức năng nhiệm vụ của điều dưỡng quy định theo thông tư liên tịch số 26/2015/TTLT-BYT-BNV ngày 07/10/2015","Toàn thời gian",null,"07h00 - 11h00; 13h00 - 17h04"]
["741","DƯƠNG VĂN PHIẾU","007626/LA-CCHN","Khám bệnh, chữa bệnh nội khoa","Bán thời gian ",null,"Từ 7h -11 giờ","Bác sĩ","GV Trường ĐH NAM CT"]
["742","Trương Cao Quang Hiển","007936/CT-CCHN","Thực hiện theo chức năng nhiệm vụ của điều dưỡng quy định theo Thông tư liên tịch số 26/2015/TTLT-BYT-BNV ngày 07/10/2015","Toàn thời gian",null,"07h00 - 11h00; 13h00 - 17h00","Điều dưỡng"]
["743","Phạm Thị Diễm Thuý","008008/CT-CCHN","Thực hiện theo chức năng nhiệm vụ của điều dưỡng quy định theo Thông tư liên tịch số 26/2015/TTLT-BYT-BNV ngày 07/10/2015","Toàn thời gian",null,"07h00 - 11h00; 13h00 - 17h00","Điều dưỡng"]
["744","Đỗ Huyền Trang","006497/CT-CCHN","Thực hiện theo chức năng nhiệm vụ của điều dưỡng quy định theo Thông tư liên tịch số 26/2015/TTLT-BYT-BNV ngày 07/10/2015","Toàn thời gian",null,"07h00 - 11h00; 13h00 - 17h00","Điều dưỡng"]
["745","Trần Nhật Thanh","008061/CT-CCHN","Khám bệnh, chữa bệnh nội khoa","Toàn thời gian",null,"07h00 - 11h00; 13h00 - 17h00","Bác sĩ"]
["746","Nguyễn Lê Hồng Nghĩa","008022/CT-CCHN","Thực hiện theo chức năng nhiệm vụ của điều dưỡng quy định theo Thông tư liên tịch số 26/2015/TTLT-BYT-BNV ngày 07/10/2015","Toàn thời gian",null,"07h00 - 11h00; 13h00 - 17h00","Điều dưỡng"]
["747","Âu Hồng Lam","009919/AG-CCHN","Thực hiện theo Thông tư liên tịch số 26/2015/TTLT-BYT-BNV ngày 07/10/2015, quy định mã số, tiêu chuẩn chức danh, nghề nghiệp điều dưỡng, hộ sinh, kĩ thuật y","Toàn thời gian",null,"07h00 - 11h00; 13h00 - 17h00","Điều dưỡng"]
[]
[]
[]
[]
[null,"NGƯỜI LẬP BẢNG",null,"TP.KHTH",null,null,"GIÁM ĐỐC"]

{"sheet":"NV ĐÃ NGHĨ 10.2023","index":1,"n_rows":1048574,"n_cols":8,"rows_kept":1048574,"cut":false,"hidden":false,"merged":[[9,3,9,5],[4,0,4,6],[5,0,5,7],[9,0,10,0],[9,1,10,1],[9,2,10,2],[9,6,10,6],[9,7,10,7],[1,0,1,2],[1,3,1,6],[2,0,2,2],[2,3,2,6],[3,3,3,6]]}
[]
[" SỞ Y TẾ TP.CẦN THƠ",null,null,"CỘNG HÒA XÃ HỘI CHỦ NGHĨA VIỆT NAM"]
["BỆNH VIỆN ĐA KHOA TP.CẦN THƠ",null,null,"                       Độc lập - Tự do - Hạnh phúc"]
[null,null,null,"Cần Thơ, ngày    tháng     năm 2023"]
["DANH SÁCH NVYT ĐÃ NGHĨ VIỆC/HƯU"]
[" (từ 01/2023 đến tháng 20/10/2023)"]
[]
["4.3 Danh sách NVYT đã nghĩ việc/nghĩ hưu"]
[]
["STT","Họ và tên","Số CCHN\nđã được cấp","Thời gian đăng ký làm việc\ntại cơ sở khám bệnh, chữa bệnh\n(ghi cụ thể thời gian làm việc)",null,null,"Chức danh","Ngày nghĩ việc/hưu"]
[null,null,null,"Thời gian\nđăng ký ","Thời gian\n(ngày)","Thời gian\n(giờ)"]
[1,"Hàn Khánh Như",{"$f":"VLOOKUP(B12,[2]Sheet!$F$2:$G$771,2,0)","v":"005822/CT-CCHN"},"Toàn thời gian",null,"07h00 - 11h00; 13h00 - 17h00","ĐDCĐ","2023-01-01"]
[2,"Lê Đình Minh Hải",null,"Toàn thời gian",null,"07h00 - 11h00; 13h00 - 17h00","ĐDCĐ","2023-01-01"]
[3,"Nguyễn Thị Ngọc Hân",{"$f":"VLOOKUP(B14,[2]Sheet!$F$2:$G$771,2,0)","v":"004280/CT-CCHN"},"Toàn thời gian",null,"07h00 - 11h00; 13h00 - 17h00","DSTH","2023-02-01"]
[4,"Huỳnh Vĩnh An",{"$f":"VLOOKUP(B15,[2]Sheet!$F$2:$G$771,2,0)","v":"006937/CT-CCHN"},"Toàn thời gian",null,"07h00 - 11h00; 13h00 - 17h00","Bác sĩ","2023-02-01"]
[5,"Vũ Thanh Hồng Vân",{"$f":"VLOOKUP(B16,[2]Sheet!$F$2:$G$771,2,0)","v":"005588/AG-CCHN"},"Toàn thời gian",null,"07h00 - 11h00; 13h00 - 17h00","Bác sĩ","2023-02-01"]
[6,"Nguyễn Phạm Ái Phương",{"$f":"VLOOKUP(B17,[2]Sheet!$F$2:$G$771,2,0)","v":"005925/CT-CCHN"},"Toàn thời gian",null,"07h00 - 11h00; 13h00 - 17h00","Bác sĩ","2023-02-01"]
[7,"Từ Mậu Xương",{"$f":"VLOOKUP(B18,[2]Sheet!$F$2:$G$771,2,0)","v":"006800/CT-CCHN"},"Toàn thời gian",null,"07h00 - 11h00; 13h00 - 17h00","Bác sĩ","2023-03-01"]
[8,"Đào Quốc Toàn",null,"Toàn thời gian",null,"07h00 - 11h00; 13h00 - 17h00","CNĐD","2023-03-01"]
[9,"Nguyễn Ngọc Anh Thư",{"$f":"VLOOKUP(B20,[2]Sheet!$F$2:$G$771,2,0)","v":"004497/CT-CCHN"},"Toàn thời gian",null,"07h00 - 11h00; 13h00 - 17h00","ĐDCĐ","2023-03-01"]
[10,"Khưu Hồng Anh",{"$f":"VLOOKUP(B21,[2]Sheet!$F$2:$G$771,2,0)","v":"007435/CT-CCHN"},"Toàn thời gian",null,"07h00 - 11h00; 13h00 - 17h00","Bác sĩ","2023-03-01"]
[11,"Võ Thế Nhiều",{"$f":"VLOOKUP(B22,[2]Sheet!$F$2:$G$771,2,0)","v":"003931/CT-CCHN"},"Toàn thời gian",null,"07h00 - 11h00; 13h00 - 17h00","Bác sĩ","2023-03-08"]
[12,"Nguyễn Thị Kim Lê",{"$f":"VLOOKUP(B23,[2]Sheet!$F$2:$G$771,2,0)","v":"005099/CT-CCHN"},"Toàn thời gian",null,"07h00 - 11h00; 13h00 - 17h00","CNĐD","2023-04-01"]
[13,"Phạm Thị Kim Dung",{"$f":"VLOOKUP(B24,[2]Sheet!$F$2:$G$771,2,0)","v":"003141/CT-CCHN"},"Toàn thời gian",null,"07h00 - 11h00; 13h00 - 17h00","CNĐD","2023-04-01"]
[14,"lê Thanh Nguyên",{"$f":"VLOOKUP(B25,[2]Sheet!$F$2:$G$771,2,0)","v":"005078/CT-CCHN"},"Toàn thời gian",null,"07h00 - 11h00; 13h00 - 17h00","CNĐD","2023-04-01"]
[15,"Trần Thị Bích Thuận",{"$f":"VLOOKUP(B26,[2]Sheet!$F$2:$G$771,2,0)","v":"002904/CT-CCHN"},"Toàn thời gian",null,"07h00 - 11h00; 13h00 - 17h00","ĐDCĐ","2023-04-01"]
[16,"Nguyễn Thị Diễm Hương","006061/CT-CCHN","Toàn thời gian",null,"07h00 - 11h00; 13h00 - 17h00","CNĐD","2023-04-01"]
[17,"Lâm Thị Cẩm Hường",{"$f":"VLOOKUP(B28,[2]Sheet!$F$2:$G$771,2,0)","v":"004733/CT-CCHN"},"Toàn thời gian",null,"07h00 - 11h00; 13h00 - 17h00","ĐDCĐ","2023-04-01"]
[18,"Đỗ Đức Trí Nhân",{"$f":"VLOOKUP(B29,[2]Sheet!$F$2:$G$771,2,0)","v":"004071/CT-CCHN"},"Toàn thời gian",null,"07h00 - 11h00; 13h00 - 17h00","ThsBs","2023-04-17"]
[19,"Trần Hà Quốc Đạt",{"$f":"VLOOKUP(B30,[2]Sheet!$F$2:$G$771,2,0)","v":"006488/CT-CCHN"},"Toàn thời gian",null,"07h00 - 11h00; 13h00 - 17h00","Bác sĩ","2023-04-14"]
[20,"Trần Thanh Loan",null,"Toàn thời gian",null,"07h00 - 11h00; 13h00 - 17h00","Th TCNH","2023-04-14"]
[21,"Trần Bửu Giám",{"$f":"VLOOKUP(B32,[2]Sheet!$F$2:$G$771,2,0)","v":"001115/CT-CCHN"},"Toàn thời gian",null,"07h00 - 11h00; 13h00 - 17h00","BSCKII","2023-05-01"]
[22,"Bùi Quang Huy",{"$f":"VLOOKUP(B33,[2]Sheet!$F$2:$G$771,2,0)","v":"006400/CT-CCHN"},"Toàn thời gian",null,"07h00 - 11h00; 13h00 - 17h00","Bác sĩ","2023-05-08"]
[23,"Nguyễn Phú Quý",null,"Toàn thời gian",null,"07h00 - 11h00; 13h00 - 17h00","KSXD","2023-05-06"]
[24,"Bùi Như Quỳnh",null,"Toàn thời gian",null,"07h00 - 11h00; 13h00 - 17h00","Bác sĩ","2023-05-10"]
[25,"Du Kim Tuyến",null,"Toàn thời gian",null,"07h00 - 11h00; 13h00 - 17h00","ĐDCĐ","2023-05-15"]
[26,"Lê Hoàng Nam",null,"Toàn thời gian",null,"07h00 - 11h00; 13h00 - 17h00","BSCKI ","2023-05-15"]
[27,"Trần Thị Thảo Linh",{"$f":"VLOOKUP(B38,[2]Sheet!$F$2:$G$771,2,0)","v":"003740/CT-CCHN"},"Toàn thời gian",null,"07h00 - 11h00; 13h00 - 17h00","BSCKI ","2023-06-05"]
[28,"Nguyễn Huỳnh Quang Huy",{"$f":"VLOOKUP(B39,[2]Sheet!$F$2:$G$771,2,0)","v":"003169/CT-CCHN"},"Toàn thời gian",null,"07h00 - 11h00; 13h00 - 17h00","BSCKI ","2023-06-13"]
[29,"Cao Thị Huỳnh Hoa",{"$f":"VLOOKUP(B40,[2]Sheet!$F$2:$G$771,2,0)","v":"002949/CT-CCHN"},"Toàn thời gian",null,"07h00 - 11h00; 13h00 - 17h00","CNĐD","2023-06-19"]
[30,"Nguyễn Duy Kha",{"$f":"VLOOKUP(B41,[2]Sheet!$F$2:$G$771,2,0)","v":"007541/CT-CCHN"},"Toàn thời gian",null,"07h00 - 11h00; 13h00 - 17h00","Bác sĩ","2023-06-12"]
[31,"Văn Quốc Tâm",{"$f":"VLOOKUP(B42,[2]Sheet!$F$2:$G$771,2,0)","v":"004608/CT-CCHN"},"Toàn thời gian",null,"07h00 - 11h00; 13h00 - 17h00","ĐDTC","2023-06-26"]
[32,"Trần Hy","006461/CT-CCHN","Toàn thời gian",null,"07h00 - 11h00; 13h00 - 17h00","ĐDCĐ","2023-06-26"]
[33,"Bùi Văn Đời",{"$f":"VLOOKUP(B44,[2]Sheet!$F$2:$G$771,2,0)","v":"000920/CT-CCHN"},"Toàn thời gian",null,"07h00 - 11h00; 13h00 - 17h00","BSCKII","2023-06-20"]
[34,"Châu Huỳnh Thái Châu",{"$f":"VLOOKUP(B45,[2]Sheet!$F$2:$G$771,2,0)","v":"005827/CT-CCHN"},"Toàn thời gian",null,"07h00 - 11h00; 13h00 - 17h00","Bác sĩ","2023-07-01"]
[35,"Phạm tuấn Vũ",{"$f":"VLOOKUP(B46,[2]Sheet!$F$2:$G$771,2,0)","v":"004492/CT-CCHN"},"Toàn thời gian",null,"07h00 - 11h00; 13h00 - 17h00","CNĐD","2023-07-01"]
[36,"Phan Viết Lượng",{"$f":"VLOOKUP(B47,[2]Sheet!$F$2:$G$771,2,0)","v":"008231/ĐNAI-CCHN"},"Toàn thời gian",null,"07h00 - 11h00; 13h00 - 17h00","Bác sĩ","2023-07-01"]
[37,"Lê Phúc Hiệp",{"$f":"VLOOKUP(B48,[2]Sheet!$F$2:$G$771,2,0)","v":"006616/CT-CCHN"},"Toàn thời gian",null,"07h00 - 11h00; 13h00 - 17h00","Bác sĩ","2023-07-01"]
[38,"Nguyễn Minh Trí","005528/CT-CCHN","Toàn thời gian",null,"07h00 - 11h00; 13h00 - 17h00","ĐDTC","2023-07-07"]
[39,"Trần Minh Trung","007595/CT-CCHN","Toàn thời gian",null,"07h00 - 11h00; 13h00 - 17h00","Bác sĩ","2023-07-01"]
[40,"Huỳnh Văn Mai Phước",{"$f":"VLOOKUP(B51,[2]Sheet!$F$2:$G$771,2,0)","v":"003117/CT-CCHN"},"Toàn thời gian",null,"07h00 - 11h00; 13h00 - 17h00","KTV HAYH","2023-07-17"]
[41,"Bùi Xuân Trà",{"$f":"VLOOKUP(B52,[2]Sheet!$F$2:$G$771,2,0)","v":"006246/CT-CCHN"},"Toàn thời gian",null,"07h00 - 11h00; 13h00 - 17h00","Ths BSCKI","2023-07-17"]
[42,"Ngô Lâm Phương Linh",{"$f":"VLOOKUP(B53,[2]Sheet!$F$2:$G$771,2,0)","v":"005093/CT-CCHN"},"Toàn thời gian",null,"07h00 - 11h00; 13h00 - 17h00","ĐDCĐ","2023-08-01"]
[43,"Đỗ Việt Chương",{"$f":"VLOOKUP(B54,[2]Sheet!$F$2:$G$771,2,0)","v":"007478/CT-CCHN"},"Toàn thời gian",null,"07h00 - 11h00; 13h00 - 17h00","Bác sĩ","2023-08-01"]
[44,"Nguyễn Minh Thuỳ Châu","006856/CT-CCHN","Toàn thời gian",null,"07h00 - 11h00; 13h00 - 17h00","Bác sĩ","2023-09-01"]
[45,"Lê Hoàng Phúc",{"$f":"VLOOKUP(B56,[2]Sheet!$F$2:$G$771,2,0)","v":"006954/CT-CCHN"},"Toàn thời gian",null,"07h00 - 11h00; 13h00 - 17h00","Bác sĩ","2023-09-01"]
[46,"Diệp Thị Thúy Quyên",{"$f":"VLOOKUP(B57,[2]Sheet!$F$2:$G$771,2,0)","v":"003996/CT-CCHN"},"Toàn thời gian",null,"07h00 - 11h00; 13h00 - 17h00","ĐDCĐ","2023-09-01"]
[47,"Nguyễn Bảo Vy",null,"Toàn thời gian",null,"07h00 - 11h00; 13h00 - 17h00","ĐDTC","2023-09-01"]
[48,"Lại Tố Hảo","007812/CT-CCHN","Toàn thời gian",null,"07h00 - 11h00; 13h00 - 17h00","ĐDCĐ","2023-09-01"]
[49,"Nguyễn Thị Chúc Ly",{"$f":"VLOOKUP(B60,[2]Sheet!$F$2:$G$771,2,0)","v":"004747/CT-CCHN"},"Toàn thời gian",null,"07h00 - 11h00; 13h00 - 17h00","ĐDCĐ","2023-09-21"]
[50,"Phạm Thị Ngọc Hân",{"$f":"VLOOKUP(B61,[2]Sheet!$F$2:$G$771,2,0)","v":"006285/CT-CCHN"},"Toàn thời gian",null,"07h00 - 11h00; 13h00 - 17h00","ĐDCĐ","2023-09-22"]
[51,"Nguyễn Thiên Trang",{"$f":"VLOOKUP(B62,[2]Sheet!$F$2:$G$771,2,0)","v":"000060/CT-CCHN"},"Toàn thời gian",null,"07h00 - 11h00; 13h00 - 17h00","BSCKII","2023-10-01"]
[52,"Nguyễn Thương Quý","006678/CT-CCHN","Toàn thời gian",null,"07h00 - 11h00; 13h00 - 17h00","KTHAYH","2023-10-01"]
[53,"Trần Minh Tú",{"$f":"VLOOKUP(B64,[2]Sheet!$F$2:$G$771,2,0)","v":"006648/CT-CCHN"},"Toàn thời gian",null,"07h00 - 11h00; 13h00 - 17h00","Bác sĩ","2023-10-01"]
[54,"Trương Thị Ngọc Thể",{"$f":"VLOOKUP(B65,[2]Sheet!$F$2:$G$771,2,0)","v":"003172/CT-CCHN"},"Toàn thời gian",null,"07h00 - 11h00; 13h00 - 17h00","ĐDTC","2023-10-01"]
[55,"Võ Thị Minh Khoa","003130/CT-CCHN","Toàn thời gian",null,"07h00 - 11h00; 13h00 - 17h00","ĐD","Hưu 1/8/2023"]
[56,"Hồ Thị Việt Hà","003050/CT-CCHN","Toàn thời gian",null,"07h00 - 11h00; 13h00 - 17h00","ĐD","Hưu 1/6/2023"]
[57,"Lưu Thị Tuyết Hoa","003369/CT-CCHN","Toàn thời gian",null,"07h00 - 11h00; 13h00 - 17h00","CNXN"," Hưu 1/7/2023"]
[58,"Nguyễn Việt Hằng","000046/CT-CCHN","Toàn thời gian",null,"07h00 - 11h00; 13h00 - 17h00","BSCKI","2023-01-01"]
[59,"Nguyễn Thị Kim Loan","003198/CT-CCHN","Toàn thời gian",null,"07h00 - 11h00; 13h00 - 17h00","YS","2023-01-01"]
[60,"Phạm Thành Dương","003167/CT-CCHN","Toàn thời gian",null,"07h00 - 11h00; 13h00 - 17h00","YS","2023-05-01"]
[61,"Lê Ngọc Thanh",null,"Toàn thời gian",null,"07h00 - 11h00; 13h00 - 17h00","tài xế","2023-09-01"]
[]
[null,"NGƯỜI LẬP BẢNG",null,"TP. KHTH",null,null,"GIÁM ĐỐC"]
{"$rows_empty":1048499}
[{"$nulls":7},"2023-08-01"]

{"sheet":"DS NVBV chưa có CCHN 10.2023","index":2,"n_rows":98,"n_cols":13,"rows_kept":98,"cut":false,"hidden":false,"merged":[[0,0,0,2],[1,0,1,2],[0,4,0,5],[1,4,1,5],[6,0,6,6],[7,0,7,12],[8,7,8,12],[2,4,2,5],[97,3,97,4],[97,6,97,7]]}
[" SỞ Y TẾ TP.CẦN THƠ",null,null,null,"CỘNG HÒA XÃ HỘI CHỦ NGHĨA VIỆT NAM"]
["BỆNH VIỆN ĐA KHOA TP.CẦN THƠ",null,null,null,"                       Độc lập - Tự do - Hạnh phúc"]
[{"$nulls":4},"Cần Thơ, ngày    tháng     năm 2023"]
[]
["4.2 Danh sách nhân viên đã chưa có CCHN"]
[]
["DANH SÁCH NHÂN VIÊN CHƯA CÓ CCHN TẠI BỆNH VIỆN ĐA KHOA THÀNH PHỐ "]
[" (đến tháng 20/10/2023)"]
["TT","Họ và tên ","Văn bằng chuyên môn","Số \nhợp đồng","Khoa/ Phòng","Dự kiến phạm vi cấp CCHN","Người hướng dẫn thực hành","Thời gian thực hành"]
[1,"Nguyễn Quốc Thể","Bác sĩ",48,"HỒI SỨC CẤP CỨU","Đáp ứng KCB chuyên khoa Nội","ThsBS Lê Thị Cẩm Hồng","2021-08-01"]
[{"$f":"A10+1","v":2},"Phạm Nguyễn Ngọc Thảo","Bác sĩ",31,"HỒI SỨC CẤP CỨU","Đáp ứng KCB chuyên khoa Nội","ThsBS Lê Thị Cẩm Hồng"]
[{"$f":"A11+1","v":3},"Lê Thị Thúy Huỳnh","Bác sĩ",32,"HỒI SỨC CẤP CỨU","Đáp ứng KCB chuyên khoa Nội","ThsBS Lê Thị Cẩm Hồng"]
[4,"Trầm Hữu Lộc","Bác sĩ",168,"HỒI SỨC CẤP CỨU","Đáp ứng KCB chuyên khoa Nội","BSCKII Đặng Văn Hải"]
[5,"Nguyễn Lâm Phú","Bác sĩ",170,"HỒI SỨC CẤP CỨU","Đáp ứng KCB chuyên khoa Nội","BSCKI Trầm Thanh Thủy"]
[6,"Hoàng Tấn Đạt","ĐDCĐ",48,"HỒI SỨC CẤP CỨU","Đáp ứng nhu cầu chăm sóc người bệnh","CNĐD Nguyễn Minh Trí"]
[7,"Mân Lê Huy","CNĐD",284,"HỒI SỨC CẤP CỨU","Đáp ứng nhu cầu chăm sóc người bệnh","CNĐD Nguyễn Minh Trí"]
[8,"Nguyễn Phúc Lê Trí","ĐDCĐ ",46,"HỒI SỨC CẤP CỨU","Đáp ứng nhu cầu chăm sóc người bệnh","CNĐD Nguyễn Minh Trí","01/03/2019","2019-12-01",null,"X",null,"2019-12-01"]
[9,"Nguyễn Văn Rợi","CNĐD",163,"HỒI SỨC CẤP CỨU","Đáp ứng nhu cầu chăm sóc người bệnh","CNĐD Nguyễn Minh Trí","2022-01-01"]
[10,"Nguyễn Minh Triết","CNĐD",191,"HỒI SỨC CẤP CỨU","Đáp ứng nhu cầu chăm sóc người bệnh","CNĐD Nguyễn Minh Trí"]
[11,"Đặng Mỹ Tiên","ĐDCĐ",183,"HỒI SỨC CẤP CỨU","Đáp ứng nhu cầu chăm sóc người bệnh","CNĐD Nguyễn Minh Trí"]
[12,"Nguyễn Thanh Ngân","ĐDCĐ",40,"K.KB","Đáp ứng nhu cầu chăm sóc người bệnh","CNĐD Trần Thị Kim Hằng","2022-01-01"]
[13,"Phạm Huỳnh Bình Văn","ĐDCĐ",55,"K.KB","Đáp ứng nhu cầu chăm sóc người bệnh","CNĐD Trần Thị Kim Hằng"]
[14,"Lương Túc Vinh","Bác sĩ",77,"K. HSTC-CĐ","Đáp ứng KCB chuyên khoa Nội","BSCKII Nguyễn Thành Bích Thảo"]
[15,"Đào Anh Kiệt","Bác sĩ",105,"K. HSTC-CĐ","Đáp ứng KCB chuyên khoa Nội","BSCKII Nguyễn Thành Bích Thảo"]
[16,"Lê Hoàng Ân","Bác sĩ",164,"K. HSTC-CĐ","Đáp ứng KCB chuyên khoa Nội","BSCKII Lâm Phương Thúy"]
[17,"Châu Hoàng Thanh Vy","Bác sĩ",176,"K. HSTC-CĐ","Đáp ứng KCB chuyên khoa Nội","BSCKII Lâm Phương Thúy"]
[18,"Nguyễn Trần Kim Cương","CĐĐD",193,"K. HSTC-CĐ","Đáp ứng nhu cầu chăm sóc người bệnh","ĐDCKI Lương Thị Thanh Hoài","2022-01-01"]
[19,"Đoàn Như Ngọc","CĐĐD",55,"K. HSTC-CĐ","Đáp ứng nhu cầu chăm sóc người bệnh","CNĐD Lương Thị Thanh Hoài","2022-01-01"]
[20,"Bùi Thị Kiều Oanh","CĐĐD",33,"K. HSTC-CĐ","Đáp ứng nhu cầu chăm sóc người bệnh","CNĐD Lương Thị Thanh Hoài","2020-02-01","2021-08-01",null,null,null,"2020-02-01"]
[21,"Phạm Quốc Quy","Bác sĩ",145,"K. NỘI TH","Đáp ứng KCB chuyên khoa Nội","BSCKII Triệu Anh Đệ","01/10/2019","2020-07-01",null,"X",null,"2020-04-01"]
[22,"Trần Hữu Lợi","Bác sĩ",41,"K. NỘI TH","Đáp ứng KCB chuyên khoa Nội","BSCKII Triệu Anh Đệ","2021-03-01",{"$nulls":4},"2021-02-01"]
[23,"Nguyễn Thị Trà Mi","Bác sĩ",42,"K. NỘI TH","Đáp ứng KCB chuyên khoa Nội","BSCKII Triệu Anh Đệ"]
[24,"Lê Huỳnh Kim Khánh","Bác sĩ",47,"K. NỘI TH","Đáp ứng KCB chuyên khoa Nội","BSCKII Triệu Anh Đệ"]
[25,"Đỗ Trung Niên","Bác sĩ",172,"K. NỘI TH","Đáp ứng KCB chuyên khoa Nội","ThsBS Tống Vấn Thùy"]
[26,"Lê Thị Trang Thảo","Bác sĩ",173,"K. NỘI TH","Đáp ứng KCB chuyên khoa Nội","ThsBS Tống Vấn Thùy"]
[27,"Nguyễn Nhật Khánh","CNĐD",41,"K. NỘI TH","Đáp ứng nhu cầu chăm sóc người bệnh","CNĐD Từ Thị Ngọc Huệ","2021-08-01"]
[28,"Nguyễn Hà Trúc Giang","Bác sĩ",144,"K. NỘI TM-LH","Đáp ứng KCB chuyên khoa Nội","ThsBS Lê Văn Cường"]
[29,"Dư Kim Giàu","Bác sĩ",107,"K. NỘI TM-LH","Đáp ứng KCB chuyên khoa Nội","BSCKII Võ Việt Thắng"]
[30,"Nguyễn Thị Ánh Kim","ĐDCĐ",147,"K. NỘI TM-LH","Đáp ứng nhu cầu chăm sóc người bệnh","ĐDCKI Nguyễn Thị Ngọc Hài","2022-01-01"]
[31,"Phan Phạm Trường Nhựt","ĐDCĐ",149,"K. NỘI TM-LH","Đáp ứng nhu cầu chăm sóc người bệnh","ĐDCKI Nguyễn Thị Ngọc Hài","2021-08-01"]
[32,"Nguyễn Viết Thanh","ĐDCĐ",151,"K. NỘI TM-LH","Đáp ứng nhu cầu chăm sóc người bệnh","ĐDCKI Nguyễn Thị Ngọc Hài"]
[33,"Thái Bình An","Bác sĩ",153,"K. NỘI TIẾT","Đáp ứng KCB chuyên khoa Nội","BSCKII Lưu Ngọc Trân"]
[34,"Trần Thị Kỳ Thanh","Bác sĩ",109,"K. NỘI TIẾT","Đáp ứng KCB chuyên khoa Nội","BSCKII Lưu Ngọc Trân"]
[35,"Nguyễn Ngọc Linh Đan","Bác sĩ",166,"K. NỘI TIẾT","Đáp ứng KCB chuyên khoa Nội","BS Nguyễn Thị Cẩm Nhung"]
[36,"Bùi Thị Bích Tuyền","Bác sĩ",174,"K. NỘI TIẾT","Đáp ứng KCB chuyên khoa Nội","BS Nguyễn Thị Cẩm Nhung"]
[37,"Nguyễn Thị Diễm Ngọc","ĐDCĐ",196,"K. NỘI TIẾT","Đáp ứng nhu cầu chăm sóc người bệnh","ĐDCKI Võ Thị Phương Đài"]
[38,"Dương Tôn Tử","Bác sĩ",152,"K. NỘI TH-HH","Đáp ứng KCB chuyên khoa Nội","ThsBS Trần Thị Thanh Hoa"]
[39,"Nguyễn Thị Hậu","Bác sĩ",44,"K. NỘI TH-HH","Đáp ứng KCB chuyên khoa Nội","ThsBS Trần Thị Thanh Hoa"]
[40,"Thái Thiện Tâm","ĐDCĐ",107,"K. NỘI TH-HH","Đáp ứng nhu cầu chăm sóc người bệnh","ĐDCĐ Lê Thị Mộng Thi"]
[41,"Lâm Phương Đăng","CNĐD",178,"K. NỘI TH-HH","Đáp ứng nhu cầu chăm sóc người bệnh","ĐDCĐ Lê Thị Mộng Thi"]
[42,"Đoái Như Anh","ĐDCĐ",192,"K. NỘI TH-HH","Đáp ứng nhu cầu chăm sóc người bệnh","ĐDCĐ Lê Thị Mộng Thi"]
[43,"Nguyễn Khả Uyên","Bác sĩ",110,"TNT","Đáp ứng KCB chuyên khoa Nội","BSCKII Nguyễn Hoàng Bảo Ngọc","2020-03-01","2020-12-01",null,null,null,"2020-04-01"]
[44,"Lê Thị Trang Đài","CNĐD",35,"TNT","Đáp ứng nhu cầu chăm sóc người bệnh","CNĐD Nguyễn Kim Sơn"]
[45,"Lê Hoàng Nhã","CNĐD",185,"TNT","Đáp ứng nhu cầu chăm sóc người bệnh","CNĐD Nguyễn Kim Sơn","2022-01-01"]
[46,"Châu Thị Yến Nhi","CNĐD",189,"TNT","Đáp ứng nhu cầu chăm sóc người bệnh","CNĐD Nguyễn Kim Sơn","2022-01-01"]
[47,"Ông Minh Nhật","Bác sĩ",9,"K. NỘI TK-CXK","Đáp ứng KCB chuyên khoa Nội","ThsBS Nguyễn Văn Phong","2022-01-01"]
[48,"Nguyễn Trần Hữu Phúc","Bác sĩ",159,"K. NGOẠI TH","Đáp ứng KCB chuyên khoa Ngoại","TSBS La Văn Phú","01/04/2016",null,null,"X",null,"2021-04-01"]
[49,"Võ Thảo Trang","CNĐD",53,"K. NGOẠI TH","Đáp ứng nhu cầu chăm sóc người bệnh","CNĐD Nguyễn Thị Bạch Mai"]
[50,"Nguyễn Cao Huỳnh Cơ","CNĐD",177,"K. NGOẠI TH","Đáp ứng nhu cầu chăm sóc người bệnh","CNĐD Nguyễn Thị Bạch Mai"]
[51,"Nguyễn Hồng Ngọc","CNĐD",190,"K. NGOẠI TH","Đáp ứng nhu cầu chăm sóc người bệnh","CNĐD Nguyễn Thị Bạch Mai","2022-01-01"]
[52,"Trần Thị Diễm Yến","ĐDCĐ",45,"K. NGOẠI CTCH-B","Đáp ứng nhu cầu chăm sóc người bệnh","CNĐD Phạm Tiến Quyết"]
[53,"Nguyễn Thanh Tùng","ĐDCĐ",182,"K. NGOẠI CTCH-B","Đáp ứng nhu cầu chăm sóc người bệnh","CNĐD Phạm Tiến Quyết","01/12/2019","2020-09-01",null,"X",null,"2020-09-01"]
[54,"Nguyễn Phúc Thịnh","Bác sĩ",108,"K. NGOẠI LỒNG NGỰC","Đáp ứng KCB chuyên khoa Ngoại","ThsBS Nguyễn Văn Trang"]
[55,"Đinh Việt Dũng","Bác sĩ",null,"K. NGOẠI LỒNG NGỰC","Đáp ứng KCB chuyên khoa Ngoại","ThsBS Nguyễn Văn Trang"]
[56,"Lê Nguyễn Hải Đăng","Bác sĩ",106,"K. NGOẠI LỒNG NGỰC","Đáp ứng KCB chuyên khoa Ngoại","ThsBS Nguyễn Văn Trang","2021-08-01"]
[57,"Nguyễn Thành Sinh","CNĐD",166,"K. NGOẠI LỒNG NGỰC","Đáp ứng nhu cầu chăm sóc người bệnh","CNĐD Nguyễn Thị Thúy Trâm"]
[58,"Lê Quang Huy","Bác sĩ",167,"K. NGOẠI THẦN KINH","Đáp ứng KCB chuyên khoa Ngoại","ThsBS Nguyễn Tấn Luông"]
[59,"Đặng Thị Hiền","ĐDCĐ ",194,"K. NGOẠI THẬN - TN","Đáp ứng nhu cầu chăm sóc người bệnh","CNĐD Trà Mỹ Linh","2022-01-01"]
[60,"Huỳnh Vạn Thịnh ","ĐDCĐ ",161,"K.RHM","Đáp ứng nhu cầu chăm sóc người bệnh","CNĐD Tô Thị Lan Anh"]
[61,"Nguyễn Thái Bảo","ĐDCĐ ",162,"K.RHM","Đáp ứng nhu cầu chăm sóc người bệnh","CNĐD Tô Thị Lan Anh"]
[62,"Ngô Minh Hiền","CNĐD",179,"K.TMH","Đáp ứng nhu cầu chăm sóc người bệnh","CNĐD Âu Lê Phương","01/10/2016",null,null,"X",null,"2021-06-01"]
[63,"Ngô Thị Huyền","Bác sĩ",228,"K.YDCT-VLTL-PHCN","Khám bệnh, chữa bệnh Y học cổ truyền","BSCKII Huỳnh Thanh Vũ","01/11/2016",null,null,"X"]
[64,"Phạm Châu Khánh Dung","CĐ VLTL-PHCN",168,"K.YDCT-VLTL-PHCN","Đủ năng lực thực hiện kỹ thuật VLTL - PHCN","CNĐD Thái Thị Thúy Hằng","01/12/2018",null,null,"X"]
[65,"Trần Kim Ngân","Bác sĩ",38,"K. Truyền nhiễm","Đáp ứng KCB chuyên khoa Nội","BSCKI Trần Văn Phúc","2016-07-01"]
[{"$f":"A74+1","v":66},"Bùi Trọng Nghĩa","Bác sĩ",null,"K. Truyền nhiễm","Đáp ứng KCB chuyên khoa Nội","BSCKI Trần Văn Phúc","2021-08-01"]
[67,"Phạm Đinh Thị Phương Anh","Bác sĩ",165,"K. Truyền nhiễm","Đáp ứng KCB chuyên khoa Nội","BSCKI Trần Văn Phúc"]
[68,"Nguyễn Thị Hồng Hào","CĐĐD",39,"K. Truyền nhiễm","Đáp ứng nhu cầu chăm sóc người bệnh","CNĐD Nguyễn Thị Thanh Điều","2020-07-01",{"$nulls":4},"2020-04-01"]
[69,"Tống Mỹ Ngọc","KTV Xét nghiệm",410,"K.XN","Kỹ thuật viên xét nghiệm","CN Hà Minh Huấn","2020-10-01",{"$nulls":4},"2022-04-01"]
[70,"Nguyễn Đặng Quỳnh San","KT Xét nghiệm",null,"K.XN","Kỹ thuật viên xét nghiệm","CN Hà Minh Huấn","2015-12-01"]
[71,"Bùi Hữu Nghĩa","KT Xét nghiệm",null,"K.XN","Kỹ thuật viên xét nghiệm","CN Hà Minh Huấn","01/07/2015"]
[72,"Võ Thị Diễm My","KS CNSH",null,"K.XN","Kỹ thuật viên xét nghiệm","CN Hà Minh Huấn","01/10/2018"]
[73,"Lê Thị Cẩm Nhiên","KS CNSH",null,"K.XN","Kỹ thuật viên xét nghiệm","Ths Nguyễn Dương Hiển","03/06/2013"]
[74,"Võ Ngọc Hân","KS CNSH",null,"K.XN","Kỹ thuật viên xét nghiệm","Ths Nguyễn Dương Hiển","01/12/2015"]
[75,"Nguyễn Duy Anh","Bác sĩ",157,"K. CĐHA","Đáp ứng KCB chuyên khoa Nội",null,{"$error":"#N/A"}]
[76,"Nguyễn Quốc Tuấn","Bác sĩ",36,"K. CĐHA","Đáp ứng KCB chuyên khoa Nội",null,{"$error":"#N/A"}]
[77,"Phạm Thị Chúc Ly","Bác sĩ",169,"K. CĐHA","Đáp ứng KCB chuyên khoa Nội",null,{"$error":"#N/A"}]
[78,"Phạm Thị Ly Na","Bác sĩ",171,"K. CĐHA","Đáp ứng KCB chuyên khoa Nội"]
[79,"Trần Trung Tính","CĐ HAYH",158,"K. CĐHA","Kỹ thuật viên hình ảnh y học","KTV Châu Bá Tòng"]
[80,"Đỗ Ngọc Trân","KT HAYH",168,"K. CĐHA","Kỹ thuật viên hình ảnh y học","KTV Châu Bá Tòng"]
[81,"Châu Thị Mỹ Huyền","CĐĐD",195,"K. CĐHA","Đáp ứng nhu cầu chăm sóc người bệnh","CNĐD Nguyễn Thị Bích Tuyền"]
[82,"Trần Hoàng My","CĐĐD",165,"K.PHẪU THUẬT-GMHS","Đáp ứng nhu cầu chăm sóc người bệnh","CNĐD Lâm Danh Trà My"]
[83,"Nguyễn Thị Bé Ngoan","DSTH/ DSCĐ",null,"K. KSNK","Đáp ứng nhu cầu chăm sóc người bệnh"]
[84,"Lê Huỳnh Như","ĐDTC",147,"K. KSNK","Đáp ứng nhu cầu chăm sóc người bệnh"]
[85,"Phan Văn Nghĩa","Y sĩ",null,"K. KSNK","Đáp ứng nhu cầu chăm sóc người bệnh"]
[86,"Đỗ Thị Trúc Phương","ĐDCĐ",null,"K. KSNK","Đáp ứng nhu cầu chăm sóc người bệnh"]
[87,"Phan Thị Hồng Sen","DSĐH",61,"K.Dược","Người chịu trách nhiệm chuyên môn về dược của quầy thuốc","DSCKII Lê Thanh Phong"]
[88,"Nguyễn Thị Bảo Thơ","DSCĐ",62,"K.Dược","Người chịu trách nhiệm chuyên môn về dược của quầy thuốc","DSCKII Lê Thanh Phong"]
[null,"NGƯỜI LẬP BẢNG",null,"TP. KHTH ",null,null,"GIÁM ĐỐC"]

{"sheet":"DS ĐĂNG KÝ NGƯỜI LÀM VIỆC 10 ","index":3,"n_rows":126,"n_cols":5,"rows_kept":126,"cut":false,"hidden":false,"merged":[[4,1,4,4],[5,1,5,4],[6,1,6,4],[8,0,8,4],[1,0,1,2],[1,3,1,4],[2,0,2,2],[2,3,2,4],[3,3,3,4]]}
[]
[" SỞ Y TẾ TP.CẦN THƠ",null,null,"CỘNG HÒA XÃ HỘI CHỦ NGHĨA VIỆT NAM"]
["BỆNH VIỆN ĐA KHOA TP.CẦN THƠ",null,null,"                       Độc lập - Tự do - Hạnh phúc"]
[null,null,null,"Cần Thơ, ngày    tháng     năm 2023"]
[null,"DANH SÁCH"]
[null,"         Đăng ký người làm việc (không thuộc diện cấp chứng chỉ hành nghề)"]
[null," (đến tháng 20/10/2023)"]
[]
["5. Danh sách  đăng ký người làm việc (không thuộc diện cấp chứng chỉ hành nghề)"]
[]
["STT","Họ và tên","Văn bằng chuyên môn","Thời gian đăng ký làm việc\ntại cơ sở khám bệnh, chữa bệnh\n(ghi cụ thể thời gian làm việc)","Vị trí làm việc"]
[1,"Bùi Hoàng Minh","KS tin học","Toàn thời gian","P. KHTH"]
[{"$f":"A12+1","v":2},"Võ Thúy Huỳnh","KS tin học","Toàn thời gian","P. KHTH"]
[3,"Nguyễn Hữu Hạ","KS KTĐT,TT","Toàn thời gian","P. KHTH"]
[2,"Nguyễn Văn Hùng","Ths Khoa học máy tính","Toàn thời gian","P. KHTH"]
[3,"Phạm Thanh Đồng","KS HTTT","Toàn thời gian","P. KHTH"]
[4,"Lý Trí Hoa","KS Công nghệ thông tin","Toàn thời gian","P. KHTH"]
[3,"Nguyễn Thanh Liêm","KS Công nghệ phần mềm","Toàn thời gian","P. KHTH"]
[4,"Trần Đường Trúc Thanh","KS KTPM","Toàn thời gian","P. KHTH"]
[5,"Trịnh Hoàng Nhựt","KS MTT & TT","Toàn thời gian","P. KHTH"]
[4,"Huỳnh Xuân Trường","KS KT Máy tính","Toàn thời gian","P. KHTH"]
[5,"Nguyễn Minh Triết","KS KH Máy tính","Toàn thời gian","P. KHTH"]
[6,"Nguyễn Bá Nhanh","NVPV/ Y Sĩ","Toàn thời gian","P. KHTH"]
[5,"Trịnh Hồng Tỏ","CN QTKD","Toàn thời gian","P. TCCB (PTP)"]
[6,"Trần Ngọc Lan Thảo","CN kế toán","Toàn thời gian","P. TCCB (PTP)"]
[7,"Trần Hà Thanh Trúc","CN Anh Văn/ CN QTKD","Toàn thời gian","P. TCCB"]
[6,"Dương Lê Thị Hạnh Nguyên","CNKT","Toàn thời gian","P. CTXH"]
[7,"Lê Thị Bé Trang","CN QTKD","Toàn thời gian","P. TCCB"]
[8,"Nguyễn Hoàng Tươi","CN Luật","Toàn thời gian","P. HCQT (PTP -PT)"]
[7,"Lưu Mạnh Hùng","KS xây dựng","Toàn thời gian","P. HCQT (PTP)"]
[8,"Nguyễn Thị Trúc Linh","Thạc sĩ Q/lý k/tế","Toàn thời gian","P. HCQT"]
[9,"Lê Trung Hậu","KS Điện KH & CC điện","Toàn thời gian","P. HCQT"]
[8,"Nguyễn Thị Thúy Uyên","CN Kinh tế ","Toàn thời gian","P. HCQT\n(cơ sở 2)"]
[9,"Trần Thanh Phong","Ths QTKD","Toàn thời gian","P. HCQT"]
[10,"Phạm Quang Chín","CNKT","Toàn thời gian","P. HCQT"]
[9,"Lê Ngọc Thanh","Lái xe","Toàn thời gian","P. HCQT"]
[10,"Lê Thanh Hải","NVPV","Toàn thời gian","P. HCQT"]
[11,"Phạm Hoàng Tài","NVKT","Toàn thời gian","P. HCQT"]
[10,"Lê Phước Tăng","KS ĐKH-CCĐ","Toàn thời gian","P. HCQT"]
[11,"Lâm Danh Lê Quyền","KS Cảnh quan","Toàn thời gian","P. HCQT"]
[12,"Trần Nguyên Khoa","CN Luật","Toàn thời gian","P. HCQT"]
[11,"Nguyễn Hoàng Thoại","Cao đẳng Điện lạnh","Toàn thời gian","P. HCQT"]
[12,"Nguyễn Xuân Thạch","CĐKT-KT/ CN kế toán","Toàn thời gian","P. HCQT"]
[13,"Bùi Hoàng Phúc","NVKT","Toàn thời gian","P. HCQT"]
[12,"Trần Văn Nhu","Lái xe","Toàn thời gian","P. HCQT"]
[13,"Lê Trường Ân","NVPV","Toàn thời gian","P. HCQT"]
[14,"Nguyễn Thị Cô","NVPV","Toàn thời gian","P. HCQT"]
[13,"Nguyễn Việt Thúy","Thạc sĩ QTKD","Toàn thời gian","P. TCKT (TP)"]
[14,"Nguyễn Lê Tố Nga","CN Khoa học  ","Toàn thời gian","P. TCKT (PTP)"]
[15,"Châu La Ngọc Anh","CN kế toán","Toàn thời gian","P. TCKT"]
[14,"Lê Ngọc Thanh Đăng","CN kế toán","Toàn thời gian","P. TCKT"]
[15,"Nguyễn Hồ Dạ Tuyền","CN kế toán","Toàn thời gian","P. TCKT"]
[16,"Phạm Ngân Hà","CN kế toán","Toàn thời gian","P. TCKT"]
[15,"Nguyễn Thị Hồng Đào","CN kế toán","Toàn thời gian","P. TCKT"]
[16,"Nguyễn Trần Thanh Nghi","CN kế toán","Toàn thời gian","P. TCKT"]
[17,"Nguyễn Thụy Mỹ Yến","CN Kinh tế","Toàn thời gian","P. TCKT"]
[16,"Trần Thị Thúy Oanh","CN kế toán","Toàn thời gian","P. TCKT"]
[17,"Nguyễn Thị Sơn Nguyên","CN Kinh tế","Toàn thời gian","P. TCKT"]
[18,"Đoàn Ngọc Đồng","CN TCKT","Toàn thời gian","P. TCKT"]
[17,"Huỳnh Văn Phong","CN Kế toán","Toàn thời gian","P. TCKT (PTP)"]
[18,"Trần Thị Lệ Thủy","CN Kinh tế ","Toàn thời gian","P. TCKT(cơ sở 2)"]
[19,"Phùng Thị Mỹ Nga","Kế toán TC","Toàn thời gian","P. TCKT"]
[18,"Trương Thị Thủy Tiên","CN Kế toán","Toàn thời gian","P. TCKT"]
[19,"Nguyễn Anh Duy","CNKT","Toàn thời gian","P. TCKT"]
[20,"Trần Thị Thùy Như","CNKT","Toàn thời gian","P. TCKT"]
[19,"Lương Thị Thanh Trang","ThS QTKD","Toàn thời gian","P. TCKT"]
[20,"Nguyễn Lâm Phương Ngọc","ThS Kế toán","Toàn thời gian","P. TCKT"]
[21,"Đỗ Nguyễn Quang Sơn","CN TCNH","Toàn thời gian","P. TCKT"]
[20,"Lê Thị Mỹ Xuân","CN Kế toán","Toàn thời gian","P. TCKT"]
[21,"Trần Ngọc Bích Xuân","CN TCNH","Toàn thời gian","P. TCKT"]
[22,"Cao Nguyễn Ngọc Hương","CN Kế toán","Toàn thời gian","P. TCKT"]
[21,"Lê Thị Như Hoàng","CN Kế toán","Toàn thời gian","P. TCKT"]
[22,"Ngô Thị Tường Vi","CN Kinh tế","Toàn thời gian","P. TCKT"]
[23,"Nguyễn Thị Kim Huyền","CN Kế toán","Toàn thời gian","P. TCKT"]
[22,"Nguyễn Thị Bích Qui","CN Kinh tế","Toàn thời gian","P. TCKT"]
[23,"Nguyễn Bùi Nhật Ái","CN Kế toán","Toàn thời gian","P. TCKT"]
[{"$f":"A76+1","v":24},"Lê Thị Khánh Ly","CN Kế toán","Toàn thời gian","P. TCKT"]
[23,"Đỗ Thị Thúy Hằng","CN Kế toán","Toàn thời gian","P. TCKT"]
[24,"Đào Anh Uyên","CN Kế toán","Toàn thời gian","P. TCKT"]
[25,"Nguyễn Thị Hoài Phương","CN Kế toán","Toàn thời gian","P. TCKT"]
[24,"Trần Thị Thúy Liễu","CN TCNH","Toàn thời gian","P. TCKT"]
[25,"Nguyễn Thị Thu Thảo","CN TCNH/ CNKT","Toàn thời gian","P. TCKT"]
[26,"Trần Diễm Thúy","CN TCNH","Toàn thời gian","P. TCKT"]
[25,"Trần Diễm Thơ","CN Kế toán","Toàn thời gian","P. TCKT"]
[26,"Lê Hoàng Kim Ngân","CĐKT/ CN kế toán","Toàn thời gian","P. TCKT"]
[27,"Huỳnh Quốc Hưng","KS Công nghệ thông tin","Toàn thời gian","P. TCKT"]
[26,"Nguyễn Hoàng Liệt","KS Điện-CN","Toàn thời gian","P. VT-TBYT (PTP)"]
[27,"Nguyễn Trung Kiên","KS Điện CN","Toàn thời gian","P. VT-TBYT"]
[28,"Cao Văn Bình","KS Đ-ĐT","Toàn thời gian","P. VT-TBYT"]
[27,"Nguyễn Đức Anh Duy","KS KT Điện","Toàn thời gian","P. VT-TBYT"]
[28,"Trần Đình Dũng","KS KT Điện","Toàn thời gian","P. VT-TBYT"]
[29,"Nguyễn Đức Anh","KS Cơ điện tử","Toàn thời gian","P. VT-TBYT"]
[28,"Đoàn Hoàng Lam","CĐ KTTB ĐTYT","Toàn thời gian","P. VT-TBYT"]
[29,"Phạm Hoàn Song Phúc","CN KT ngoại thương","Toàn thời gian","P. VT-TBYT"]
[30,"Nguyễn Thị Kim Điều","CN Ngữ Văn","Toàn thời gian","P.ĐD"]
[29,"Huỳnh Phương Uyên","CN KD quốc tế","Toàn thời gian","P.CĐT-ĐT"]
[30,"Mai Thị Ngọc Lan","Thạc sĩ QLBV","Toàn thời gian","P. QLCLBV"]
[31,"Phạm Thị Yến Loan","CN Xã hội học","Toàn thời gian","P. CTXH"]
[30,"Nguyễn Thúy Anh","CN Luật","Toàn thời gian","P. CTXH"]
[31,"Nguyễn Thị Hồng ","Hộ lý","Toàn thời gian","K. KSNK"]
[32,"Phạm Thị Kim Phượng","Hộ lý","Toàn thời gian","K. KSNK"]
[31,"Nguyễn Thị Tuyết Trang","Hộ lý","Toàn thời gian","K. KSNK"]
[32,"Lê Ngọc Yến","Hộ lý","Toàn thời gian","K. KSNK"]
[33,"Âu Thị Hà Phương","Hộ lý","Toàn thời gian","K. KSNK"]
[32,"Nguyễn Ngọc Nhi","Hộ lý","Toàn thời gian","K. KSNK"]
[33,"Lê Huy Phát","NVPV","Toàn thời gian","K. GPB"]
[34,"Nguyễn Ngọc Kim Anh","CN Y tế công cộng","Toàn thời gian","K. KB"]
[33,"Mai Hồng Phượng","Hộ lý","Toàn thời gian","K. HSTC-CĐ"]
[34,"Trần Kim Hoàng","Hộ lý","Toàn thời gian","K. XN"]
[35,"Nguyễn Trường Sơn","NVKT","Toàn thời gian","K. KSNK"]
[34,"Lê Trường Danh","NVPV","Toàn thời gian","K. KSNK"]
[35,"Nguyễn Thị Tuyết Mai","NVPV","Toàn thời gian","K. KSNK"]
[36,"Nguyễn Thị Thu Diệu","NVPV","Toàn thời gian","K. KSNK"]
[35,"Nguyễn Thị Ngọc Quyên","Hộ lý","Toàn thời gian","K. Dinh dưỡng"]
[36,"Nguyễn Thị Hồng Điệp","Hộ lý","Toàn thời gian","K. Dinh dưỡng"]
[37,"Huỳnh Thị Nga","TCKT","Toàn thời gian","K. Dinh dưỡng"]
[36,"Nguyễn Thị Ánh Tuyết","NVPV","Toàn thời gian","K. Dinh dưỡng"]
[37,"Phan Thị Hồng Tâm","NVPV","Toàn thời gian","K. Dinh dưỡng"]
[38,"Lê Ngọc Thủy","NVPV","Toàn thời gian","K. Dinh dưỡng"]
[37,"Tiêu Nguyễn Thùy Linh","NVPV","Toàn thời gian","K. Dinh dưỡng"]
[38,"Nguyễn Thị Muội","NVPV","Toàn thời gian","K. Dinh dưỡng"]
[39,"Lê Thị Ngọc Thi","NVPV","Toàn thời gian","K. Dinh dưỡng"]
[38,"Phan Thị Phương Dung","NVPV","Toàn thời gian","K. Dinh dưỡng"]
[39,"Nguyễn Thị Như Quỳnh","NVPV","Toàn thời gian","K. Dinh dưỡng"]
[]
[null,"NGƯỜI LẬP BẢNG","TP.KHTH",null,"GIÁM ĐỐC"]

{"sheet":"DS HỌC VIÊN THỰC HÀNH CCHN","index":4,"n_rows":53,"n_cols":12,"rows_kept":53,"cut":false,"hidden":false,"merged":[[0,1,0,3],[1,1,1,3],[2,1,2,2],[0,4,0,10],[1,4,1,10],[2,4,2,10],[3,0,3,6],[7,0,8,0],[7,1,8,1],[7,2,8,2],[7,3,8,3],[7,4,8,4],[7,5,8,5],[7,6,7,8],[5,0,5,11],[6,0,6,10],[52,9,52,10],[52,3,52,5],[7,9,8,9],[7,10,8,10],[7,11,8,11]]}
[null," SỞ Y TẾ TP.CẦN THƠ",null,null,"CỘNG HÒA XÃ HỘI CHỦ NGHĨA VIỆT NAM"]
[null,"BỆNH VIỆN ĐA KHOA TP.CẦN THƠ",null,null,"                       Độc lập - Tự do - Hạnh phúc"]
[{"$nulls":4},"Cần Thơ, ngày    tháng     năm 2023"]
[]
[]
["DANH SÁCH HỌC VIÊN ĐANG THỰC HÀNH TẠI BỆNH VIỆN ĐỂ ĐỦ ĐIỀU KIỆN CẤP CHỨNG CHỈ HÀNH NGHỀ"]
[" TẠI THỜI ĐIỂM 20/10/2023"]
["TT","Họ và tên ","Ngày sinh","Văn bằng chuyên môn","Số \nhợp đồng","Dự kiến phạm vi cấp CCHN","Thời gian thực hành",null,null,"Khoa thực hành","Người hướng dẫn","Ghi chú"]
[{"$nulls":6},"Từ ngày","đến ngày","Gia hạn HĐ"]
[1,"Nguyễn Tấn Sang","1997-10-01","BS RHM","158/HD","RMH","2023-02-13","2024-08-12",null," RHM","T.K.Hoa"]
[2,"Nguyễn Trung Hậu","1997-10-04","BS RHM","157/HĐ","RMH","2023-02-13","2024-08-12",null," RHM","N.N.Sáng"]
[3,"Lê Cao Tầng","1998-07-25","BS RHM","155/HĐ","RMH","2023-02-13","2024-08-12",null," RHM","T.T.Dân"]
[4,"Trầm Hữu Lộc","1997-02-03","BSĐK","277/HĐ","Nội Khoa","2023-03-01","2024-08-01",null,"Nội Khoa"]
[5,"Huỳnh Thị Thanh Uyên","2000-10-17","CNXN","333/HĐ","Xét nghiệm","2023-03-06","2023-12-05",null,"Xét nghiệm","T.T. Tường Vy"]
[6,"Võ Thị Huyền Trân","2001-07-05","CĐXN","363/HĐ","Xét nghiệm","2023-03-13","2023-12-12",null,"Xét nghiệm","N.T Oanh"]
[7,"Huỳnh Văn PHát Huy","2000-08-25","CNXN","248/HĐ","Xét nghiệm","2023-03-13","2023-12-12",null,"Xét nghiệm","Hà Minh Tuấn"]
[8,"Phan Thị Kiều Anh","2000-04-28","CĐXN","390/HĐ","Xét nghiệm","2023-03-20","2023-12-19",null,"Xét nghiệm","Hoàng Mai"]
[9,"Nguyễn Anh Duy","2001-12-31","CĐXN","383/HĐ","Xét nghiệm","2023-03-20","2023-12-19",null,"Xét nghiệm","L.M.Vương"]
[10,"Phạm Thị Hoa Nhi","2001-03-27","CĐĐD","409/HD","điều dưỡng","2023-03-23","2023-12-22",null,"HSTC-CĐ","L.T.T.Hoài"]
[11,"Võ Kim Phụng","2000-09-06","CNXN","565/hđ","Xét nghiệm","2023-04-19","2024-01-18",null,"Xét nghiệm","T.T. Tường Vy"]
[12,"Đặng Thị Hiền","2001-10-21","dd","566/HĐ","điều dưỡng","2023-04-20","2023-01-19",null,"nội tổng hợp","thanh thảo"]
[13,"Pang Tiêng K'Nhũy","1997-08-20","BS RHM","586/HĐ","RMH","2023-04-26","2024-10-25",null," RHM","B.A.Nhi"]
[14,"Phan Lưu Kim PHụng","1997-09-15","BS RHM","576/HĐ","RMH","2023-04-26","2024-10-25",null," RHM","B.A.Nhi"]
[15,"Lê Thái Cường","1996-04-05","BSĐK","658/HĐ","Nội Khoa","2023-05-15","2024-11-14",null,"Nội Khoa"]
[16,"Đỗ Trung Niên","1996-01-02","BSĐK","653/HĐ","Nội Khoa","2023-05-15","2024-11-14",null,"Nội Khoa"]
[17,"NGuyễn Thị My","2000-10-13","CNXN","544/HĐ","Xét nghiệm","2023-05-15","2024-02-14",null,"Xét nghiệm","N.M.Trang"]
[18,"Nguyễn Thị Bích Nga","1999-10-27","CNXN","567/HĐ","Xét nghiệm","2023-05-22","2024-02-21",null,"Xét nghiệm","L.H.H.Anh"]
[19,"Nguyễn Thanh Bình","1996-04-10","BSĐK","807/HD","đa khoa","2023-05-29","2024-04-28",null,"đa khoa",null,"BV Phụ Sản"]
[20,"Nguyễn Thị PHương Thảo","1990-11-23","BSĐK","784/HD","đa khoa","2023-05-29","2024-04-28",null,"đa khoa",null,"BV Phụ Sản"]
[21,"Nguyễn Trọng Nhân","1997-09-13","BSĐK","783/HĐ","đa khoa","2023-05-29","2024-04-28",null,"đa khoa",null,"BV Phụ Sản"]
[22,"Trần Thị Kim Trang","1987-04-02","TCYHCT","915/HĐ","YHCT","2023-06-22","22/06/204",null,"YHCT-PHCN","T.T.Loan"]
[23,"Đoàn Huỳnh Phú Duy","1996-05-24","TCYHCT","914/HĐ","YHCT","2023-06-22","2024-06-22",null,"YHCT-PHCN","T.T.Loan"]
[24,"HỒng Kim Tuyến","1996-03-15","BSYHCT","659/HĐ","YHCT","2023-06-22","2024-12-22",null,"YHCT-PHCN","T.T.Loan","BV Nhi Đồng"]
[25," Huỳnh Ngọc Quyên","2000-08-14","CĐXN","942/HĐ","điều dưỡng","2023-06-28","2023-03-27",null,"Nội thận","N.K.Sơn"]
[26,"Bùi Ngọc Trân","1999-10-17","CNXN","941/HĐ","Xét nghiệm","2023-06-28","2023-03-27",null,"Xét nghiệm","N.M.Trang"]
[27,"Nguyễn Hoàn Huy","1997-03-14","BSĐK","1057/HĐ","đa khoa","2023-07-21","2024-06-20",null,"đa khoa",null,"BV Phụ Sản"]
[28,"Mai Bảo Trân","1992-05-17","BSĐK","1094/HĐ","Nội Khoa","2023-07-28","2025-01-27",null,"Nội Khoa"]
[29,"Nguyễn Lý Khả Kỳ","2000-05-09","CNXN","1235/HĐ","Xét Nghiệm ","2023-08-28","2024-05-27",null,"Xét nghiệm","Nguyễn Thị Oanh "]
[30,"Ngô Hà Quốc Minh ","1999-12-30","BSĐK",null,"Nội Khoa","2023-09-11","2025-03-10",null," RHM","Trần Thị Kiều Hoa "]
[31,"Phạm Thị Thảo Nguyên","1996-05-18","BS RHM",null,"RMH","2023-09-18","2025-03-14",null," RHM","Trần Thị Kiều Hoa "]
[32,"Võ Nguyễn Thu Uyên ","1999-12-30","BSĐK","1403/HĐTH","đa khoa ","2023-09-27","2024-08-25",null,"đa khoa "]
[33,"Nguyễn Trung Tính ","1999-09-06","CNXN",null,"Xét nghiệm","2023-09-19","2024-09-18",null,"Xét nghiệm","Lê Thúy An "]
[34,"Đặng Liên Hoa ","1982-07-15","y sĩ đông y",null,"YHCT","2023-09-19","2024-09-18",null,"YHCT-PHCN","Nguyễn Thị Bích Nhung "]
[35,"Nguyễn Thị Kim Hân ","1997-11-15","BSĐK","1288/HĐTH","Nội khoa","2023-09-11","2025-03-10"]
[36,"Võ Kim Như","2000-09-06","Xét Nghiệm ",null,"Xét Nghiệm ","2023-09-11","2024-06-11",null,"Xét nghiệm","Trần Thị Tường Vi "]
[37,"Huỳnh Anh Khoa","1999-03-15","BS RHM",null,"Răng Hàm Mặt","2023-09-21","2025-03-20",null,"Răng Hàm Mặt","Tô Tuấn Dân "]
[38,"Trương Như Tuyết","1999-12-25","BS RHM",null,"Răng Hàm Mặt","2023-09-18","2025-03-17",null,"Răng Hàm Mặt","Nguyễn Ngọc Sáng "]
[39,"Diệp Đông Duy","1999-02-04","BS RHM",null,"BS RHM","2023-09-21","2025-03-20",null,null,"Tô Tuấn Dân "]
[40,"Chế Gia Hân ","1999-04-06","BSĐK","1402/HĐTH","Nội khoa","2023-09-26","2025-03-24",null,"Nội khoa"]
[41,"Huỳnh Hoàng Sơn","1989-08-17","y sĩ đông y",null,"YHCT","2023-09-19","2324-09-18",null,"YHCT-PHCN","Nguyễn Thị Bích Nhung "]
[42,"Phan Trần Hùng Phát ","1997-09-18","BSĐK",null,"Ngoại khoa","2023-09-26","2025-03-24",null,"Ngoại khoa"]
[]
[null,"NGƯỜI LẬP BẢNG",null,"TP.KHTH",{"$nulls":5},"GIÁM ĐỐC"]